{"text_format":"3","workbook":"xlsx","n_sheets":1,"sheets":["FORM 2"],"not_rendered":{"defined_names":1,"comments":1},"read":"whole","date_system":"1900"}

{"sheet":"FORM 2","index":0,"n_rows":1595,"n_cols":13,"rows_kept":1595,"merged":[[5,0,6,0],[5,1,5,3],[5,4,6,4],[5,5,6,5],[5,6,6,6],[5,7,6,7],[5,8,6,8],[5,9,6,9],[5,10,6,10],[6,1,6,3],[7,1,7,3],[9,1,9,3],[10,2,10,3],[17,2,17,3],[24,2,24,3],[31,2,31,3],[38,2,38,3],[45,2,45,3],[53,2,53,3],[60,2,60,3],[67,2,67,3],[74,2,74,3],[81,2,81,3],[87,2,87,3],[95,2,95,3],[101,2,101,3],[107,2,107,3],[112,1,112,3],[113,2,113,3],[119,2,119,3],[126,2,126,3],[133,2,133,3],[141,2,141,3],[150,2,150,3],[158,2,158,3],[166,2,166,3],[174,2,174,3],[182,2,182,3],[189,2,189,3],[197,2,197,3],[204,2,204,3],[212,2,212,3],[218,2,218,3],[224,2,224,3],[229,1,229,3],[230,2,230,3],[236,2,236,3],[243,2,243,3],[250,2,250,3],[258,2,258,3],[266,2,266,3],[277,2,277,3],[282,2,282,3],[290,2,290,3],[297,2,297,3],[305,2,305,3],[312,2,312,3],[320,2,320,3],[328,2,328,3],[334,2,334,3],[340,2,340,3],[345,1,345,3],[346,2,346,3],[352,2,352,3],[360,2,360,3],[368,2,368,3],[379,2,379,3],[384,2,384,3],[392,2,392,3],[399,2,399,3],[407,2,407,3],[414,2,414,3],[422,2,422,3],[430,2,430,3],[436,2,436,3],[441,1,441,3],[442,2,442,3],[448,2,448,3],[455,2,455,3],[462,2,462,3],[469,2,469,3],[476,2,476,3],[489,2,489,3],[496,2,496,3],[503,2,503,3],[509,2,509,3],[517,2,517,3],[525,2,525,3],[535,2,535,3],[541,2,541,3],[547,2,547,3],[552,1,552,3],[553,2,553,3],[553,10,554,10],[559,2,559,3],[566,2,566,3],[573,2,573,3],[586,2,586,3],[593,2,593,3],[600,2,600,3],[608,2,608,3],[614,2,614,3],[619,1,619,3],[620,2,620,3],[626,2,626,3],[632,2,632,3],[640,2,640,3],[650,2,650,3],[656,2,656,3],[661,1,661,3],[662,2,662,3],[668,2,668,3],[675,2,675,3],[682,2,682,3],[689,2,689,3],[696,2,696,3],[704,2,704,3],[711,2,711,3],[718,2,718,3],[725,2,725,3],[732,2,732,3],[739,2,739,3],[746,2,746,3],[757,2,757,3],[763,2,763,3],[769,2,769,3],[774,1,774,3],[775,2,775,3],[781,2,781,3],[787,2,787,3],[794,2,794,3],[801,2,801,3],[808,2,808,3],[815,2,815,3],[822,2,822,3],[830,2,830,3],[837,2,837,3],[846,2,846,3],[852,2,852,3],[857,1,857,3],[858,2,858,3],[864,2,864,3],[871,2,871,3],[878,2,878,3],[885,2,885,3],[892,2,892,3],[900,2,900,3],[906,2,906,3],[911,1,911,3],[912,2,912,3],[918,2,918,3],[925,2,925,3],[932,2,932,3],[939,2,939,3],[946,2,946,3],[954,2,954,3],[961,2,961,3],[968,2,968,3],[974,2,974,3],[979,1,979,3],[980,2,980,3],[986,2,986,3],[993,2,993,3],[1000,2,1000,3],[1007,2,1007,3],[1014,2,1014,3],[1022,2,1022,3],[1029,2,1029,3],[1036,2,1036,3],[1043,2,1043,3],[1049,2,1049,3],[1054,1,1054,3],[1055,2,1055,3],[1061,2,1061,3],[1068,2,1068,3],[1077,2,1077,3],[1087,2,1087,3],[1096,2,1096,3],[1106,2,1106,3],[1112,2,1112,3],[1117,1,1117,3],[1118,2,1118,3],[1125,2,1125,3],[1132,2,1132,3],[1139,2,1139,3],[1145,2,1145,3],[1151,2,1151,3],[1157,2,1157,3],[1162,1,1162,3],[1163,2,1163,3],[1169,2,1169,3],[1177,2,1177,3],[1185,2,1185,3],[1193,2,1193,3],[1200,2,1200,3],[1207,2,1207,3],[1214,2,1214,3],[1222,2,1222,3],[1230,2,1230,3],[1238,2,1238,3],[1245,2,1245,3],[1252,2,1252,3],[1259,2,1259,3],[1265,2,1265,3],[1270,1,1270,3],[1271,2,1271,3],[1271,10,1272,10],[1277,2,1277,3],[1286,2,1286,3],[1298,2,1298,3],[1310,2,1310,3],[1318,2,1318,3],[1323,2,1323,3],[1328,2,1328,3],[1340,2,1340,3],[1347,2,1347,3],[1354,2,1354,3],[1360,2,1360,3],[1365,1,1365,3],[1366,2,1366,3],[1373,2,1373,3],[1380,2,1380,3],[1388,2,1388,3],[1393,2,1393,3],[1398,2,1398,3],[1405,2,1405,3],[1412,2,1412,3],[1419,2,1419,3],[1425,2,1425,3],[1430,1,1430,3],[1431,2,1431,3],[1437,2,1437,3],[1444,2,1444,3],[1451,2,1451,3],[1459,2,1459,3],[1467,2,1467,3],[1474,2,1474,3],[1481,2,1481,3],[1488,2,1488,3],[1495,2,1495,3],[1502,2,1502,3],[1508,2,1508,3],[1513,1,1513,3],[1514,2,1514,3],[1520,2,1520,3],[1520,10,1535,10],[1537,2,1537,3],[1554,2,1554,3],[1571,2,1571,3],[1577,2,1577,3]]}
[{"$nulls":10},"FORM 2"]
["PERUMUSAN NAMA JABATAN "]
["SKPD",null,null,":  KECAMATAN ……….."]
["UNIT KERJA",null,null,":  -"]
[]
["NO ","URAIAN TUGAS DAN",null,null,"HASIL KERJA","VOL","SATUAN","WAKTU (MENIT) ","BEBAN KERJA","NAMA JABATAN","KET "]
[null,"TAHAPAN"]
[" 1 ",2,null,null,3,4,5,6,7,8,9]
[]
["I","Konseptual & Managerial (CAMAT)",{"$nulls":6},{"$f":"I11+I18+I25+I32+I39+I46+I54+I61+I68+I75+I88+I96+I102+I108+I82","v":{"v":91840,"d":"91,840"}},"Camat","1 orang"]
[null,1,"Merencanakan kegiatan Kecamatan sesuai program kerja Pemerintah Kabupaten Magelang dan ketentuan yang berlaku untuk pedoman pelaksanaan tugas.",null,"Program Kerja",2,"dokumen",{"$f":"I11/F11","v":375},{"$f":"SUM(I12:I16)","v":750}]
[null,null,"1)","Mempelajari pedoman pelaksanaan tugas;",null,2,null,60,{"$f":"F12*H12","v":120}]
[null,null,"2)","Menelaah Program Kerja Pemerintah Kabupaten Magelang;",null,2,null,60,{"$f":"F13*H13","v":120},null,"  "]
[null,null,"3)","Menyusun konsep rencana kegiatan Kecamatan;",null,2,null,180,{"$f":"F14*H14","v":360},null,"  "]
[null,null,"4)","Mengkonsultasikan konsep rencana kegiatan dengan pimpinan untuk mendapatkan pengarahan;",null,2,null,60,{"$f":"F15*H15","v":120},null,"  "]
[null,null,"5)","Menetapkan rencana kegiatan Kecamatan.",null,2,null,15,{"$f":"F16*H16","v":30}]
[]
[null,2,"Membagi tugas kepada bawahan di lingkungan Kecamatan sesuai dengan beban kerja dan tanggung jawab masing-masing untuk kelancaran pelaksanaan tugas.",null,"Distribusi Tugas",12,"kali",{"$f":"I18/F18","v":240},{"$f":"SUM(I19:I23)","v":{"v":2880,"d":"2,880"}},null,"  "]
[null,null,"1)","Menjabarkan rencana kegiatan menjadi tugas-tugas yang harus dilaksanakan bawahan;",null,12,null,60,{"$f":"F19*H19","v":720},null,"  "]
[null,null,"2)","Memaparkan rencana kegiatan Kecamatan;",null,12,null,60,{"$f":"F20*H20","v":720},null,"  "]
[null,null,"3)","Menghimpun saran dan masukan dari bawahan;",null,12,null,30,{"$f":"F21*H21","v":360},null,"  "]
[null,null,"4)","Menentukan target waktu penyelesaian;",null,12,null,30,{"$f":"F22*H22","v":360}]
[null,null,"5)","Memberikan petunjuk pelaksanaan tugas kepada bawahan.",null,12,null,60,{"$f":"F23*H23","v":720}]
[]
[null,3,"Melaksanakan supervisi pelaksanaan tugas bawahan di lingkungan Kecamatan setiap saat sesuai dengan tugas dan tanggung jawabnya agar pekerjaan berjalan tertib dan lancar.",null,"kegiatan ",24,"kali",{"$f":"I25/F25","v":285},{"$f":"SUM(I26:I30)","v":{"v":6840,"d":"6,840"}},null,"  "]
[null,null,"1)","Menjelaskan tugas yang akan dilaksanakan bawahan;",null,24,null,45,{"$f":"F26*H26","v":{"v":1080,"d":"1,080"}},null,"  "]
[null,null,"2)","Mengidentifikasi kesulitan yang dialami bawahan;",null,24,null,60,{"$f":"F27*H27","v":{"v":1440,"d":"1,440"}},null,"  "]
[null,null,"3)","Mengkoordinasikan pelaksanaan tugas;",null,24,null,60,{"$f":"F28*H28","v":{"v":1440,"d":"1,440"}}]
[null,null,"4)","Mengkonsultasikan permasalahan kepada pimpinan;",null,24,null,60,{"$f":"F29*H29","v":{"v":1440,"d":"1,440"}},null,"  "]
[null,null,"5)","Memberikan arahan kepada bawahan terkait permasalahan dalam pelaksanaan tugas.",null,24,null,60,{"$f":"F30*H30","v":{"v":1440,"d":"1,440"}}]
[]
[null,4,"Mengoordinasikan kegiatan pemberdayaan masyarakat sesuai ketentuan untuk meningkatkan kesejahteraan masyarakat.",null,"kegiatan",24,"kali",{"$f":"I32/F32","v":300},{"$f":"SUM(I33:I37)","v":{"v":7200,"d":"7,200"}}]
[null,null,"1)","Mempelajari pedoman pelaksaaan tugas;",null,24,null,60,{"$f":"F33*H33","v":{"v":1440,"d":"1,440"}}]
[null,null,"2)","Meneliti dan memveriifkasi rencana kegiatan pemberdayaan masyarakat;",null,24,null,60,{"$f":"F34*H34","v":{"v":1440,"d":"1,440"}}]
[null,null,"3)","Menyelenggarakan koordinasi lintas sektor terkait kegiatan pemberdayaan masyarakat;",null,24,null,120,{"$f":"F35*H35","v":{"v":2880,"d":"2,880"}}]
[null,null,"4)","Mendisposisi bawahan untuk tindak lanjut pelaksanaan;",null,24,null,30,{"$f":"F36*H36","v":720}]
[null,null,"5)","Menyelia hasil pelaksanaan tugas bawahan.",null,24,null,30,{"$f":"F37*H37","v":720}]
[]
[null,5,"Mengoordinasikan upaya penyelenggaraan ketentraman dan ketertiban umum sesuai ketentuan untuk terwujudnya lingkungan yang tenteram dan tertib.",null,"kegiatan",12,"kali",{"$f":"I39/F39","v":300},{"$f":"SUM(I40:I44)","v":{"v":3600,"d":"3,600"}}]
[null,null,"1)","Mempelajari pedoman pelaksaaan tugas;",null,12,null,60,{"$f":"F40*H40","v":720}]
[null,null,"2)","Meneliti dan memveriifkasi data ketentraman dan ketertiban umum;",null,12,null,60,{"$f":"F41*H41","v":720}]
[null,null,"3)","Menyelenggarakan koordinasi lintas sektor terkait ketentraman dan ketertiban umum;",null,12,null,120,{"$f":"F42*H42","v":{"v":1440,"d":"1,440"}}]
[null,null,"4)","Mendisposisi bawahan untuk tindak lanjut pelaksanaan;",null,12,null,30,{"$f":"F43*H43","v":360}]
[null,null,"5)","Menyelia hasil pelaksanaan tugas bawahan.",null,12,null,30,{"$f":"F44*H44","v":360}]
[]
[null,6,"Mengkoordinasikan penerapan dan penegakan peraturan perundang-undangan sesuai ketentuan untuk terwujudnya masyarakat yang sadar hukum.",null,"kegiatan",12,"kali",{"$f":"I46/F46","v":{"v":327.5,"d":"328"}},{"$f":"SUM(I47:I52)","v":{"v":3930,"d":"3,930"}}]
[null,null,"1)","Mempelajari pedoman pelaksaaan tugas.",null,10,null,60,{"$f":"F47*H47","v":600}]
[null,null,"2)","Mengalisa dan mengevaluasi bahan kebijakan teknis",null,12,null,60,720]
[null,null,"3)","Mengumpulkan bahan dan data",null,12,null,60,720]
[null,null,"4)","Mengonsep rencana kebijakan teknis",null,15,null,30,450]
[null,null,"5)","Mengkoordinasikan dengan kepala desa dan instansi terkait",null,12,null,60,720]
[null,null,"6)","Merevisi konsep kebijakan teknis.",null,12,null,60,720]
[]
[null,7,"Mengoordinasikan pemeliharaan prasarana dan fasilitas pelayanan umum sesuai ketentuan untuk kenyamanan masyarakat.",null,"kegiatan",12,"kali",{"$f":"I54/F54","v":300},{"$f":"SUM(I55:I59)","v":{"v":3600,"d":"3,600"}}]
[null,null,"1)","Mempelajari pedoman pelaksaaan tugas;",null,12,null,60,{"$f":"F55*H55","v":720}]
[null,null,"2)","Meneliti dan memveriifkasi data prasarana dan fasilitas pelayanan umum;",null,12,null,60,{"$f":"F56*H56","v":720}]
[null,null,"3)","Menyelenggarakan koordinasi lintas sektor terkait prasarana dan fasilitas pelayanan umum;",null,12,null,120,{"$f":"F57*H57","v":{"v":1440,"d":"1,440"}}]
[null,null,"4)","Mendisposisi bawahan untuk tindak lanjut pelaksanaan;",null,12,null,30,{"$f":"F58*H58","v":360}]
[null,null,"5)","Menyelia hasil pelaksanaan tugas bawahan.",null,12,null,30,{"$f":"F59*H59","v":360}]
[]
[null,8,"Mengoordinasikan penyelenggaraan kegiatan pemerintahan di tingkat kecamatan sesuai kewenangan dan tanggung jawab yang dimiliki untuk kelancaran penyelenggaraan kegiatan pemerintahan tingkat kecamatan. ",null,"kegiatan",12,"kali",{"$f":"I61/F61","v":300},{"$f":"SUM(I62:I66)","v":{"v":3600,"d":"3,600"}}]
[null,null,"1)","Mempelajari pedoman pelaksaaan tugas;",null,12,null,60,{"$f":"F62*H62","v":720}]
[null,null,"2)","Meneliti dan memveriifkasi data penyelenggaraan kegiatan pemerintahan di tingkat kecamatan;",null,12,null,60,{"$f":"F63*H63","v":720}]
[null,null,"3)","Menyelenggarakan koordinasi lintas sektor terkait penyelenggaraan kegiatan pemerintahan di tingkat kecamatan;",null,12,null,120,{"$f":"F64*H64","v":{"v":1440,"d":"1,440"}}]
[null,null,"4)","Mendisposisi bawahan untuk tindak lanjut pelaksanaan;",null,12,null,30,{"$f":"F65*H65","v":360}]
[null,null,"5)","Menyelia hasil pelaksanaan tugas bawahan.",null,12,null,30,{"$f":"F66*H66","v":360}]
[]
[null,9,"Membina penyelenggaraan pemerintahan desa dan/atau kelurahan  sesuai kewenangan dan tanggung jawab yang dimiliki untuk kelancaran penyelenggaraan pemerintahan desa dan/atau keleurahan.",null,"kegiatan",40,"kali",{"$f":"I68/F68","v":306},{"$f":"SUM(I69:I73)","v":{"v":12240,"d":"12,240"}}]
[null,null,"1)","Mempelajari pedoman pelaksaaan tugas;",null,4,null,60,{"$f":"F69*H69","v":240}]
[null,null,"2)","Meneliti dan memveriifkasi data penyelenggaraan kegiatan pemerintahan di tingkat kecamatan;",null,40,null,60,{"$f":"F70*H70","v":{"v":2400,"d":"2,400"}}]
[null,null,"3)","Melaksanakan pembinaan penyelenggaraan pemerintahan desa dan/atau kelurahan;",null,40,null,180,{"$f":"F71*H71","v":{"v":7200,"d":"7,200"}}]
[null,null,"4)","Mendisposisi bawahan untuk tindak lanjut pelaksanaan;",null,40,null,30,{"$f":"F72*H72","v":{"v":1200,"d":"1,200"}}]
[null,null,"5)","Menyelia hasil pelaksanaan tugas bawahan.",null,40,null,30,{"$f":"F73*H73","v":{"v":1200,"d":"1,200"}}]
[]
[null,10,"Melaksanakan pelayanan masyarakat yang menjadi ruang lingkup tugasnya dan/atau yang belum dapat dilaksanakan pemerintahan desa atau kelurahan.",null,"Layanan",{"v":1000,"d":"1,000"},"dokumen",{"$f":"I75/F75","v":{"v":21.4,"d":"21"}},{"$f":"SUM(I76:I80)","v":{"v":21400,"d":"21,400"}}]
[null,null,"1)","Mempelajari pedoman pelaksanaan tugas;",null,60,null,60,{"$f":"F76*H76","v":{"v":3600,"d":"3,600"}}]
[null,null,"2)","Mempelajari, meneliti, dan memverifikasi kelangkapan dokumen pengajuan pelayanan masyarakat;",null,{"v":1000,"d":"1,000"},null,5,{"$f":"F77*H77","v":{"v":5000,"d":"5,000"}}]
[null,null,"3)","Mengkoordinasikan substansi jenis pelayanan ke pihak-pihak terkait;",null,60,null,120,{"$f":"F78*H78","v":{"v":7200,"d":"7,200"}}]
[null,null,"4)","Menandatangani dokumen pangajuan pelayanan masyarakat;",null,{"v":1000,"d":"1,000"},null,5,{"$f":"F79*H79","v":{"v":5000,"d":"5,000"}}]
[null,null,"5)","Mendisposisi dan menyerahkan dokumen ke bawahan untuk ditindaklanjuti.",null,60,null,10,{"$f":"F80*H80","v":600}]
[]
[null,11,"Melaksanakan monitoring kegiatan pembangunan dan kemasyarakatan sesuai kebutuhan untuk meningkatkan kesejahteraan masyarakat.",null,"kegiatan",60,"kali",{"$f":"I82/F82","v":210},{"$f":"SUM(I83:I86)","v":{"v":12600,"d":"12,600"}}]
[null,null,"1)","Mempelajari pedoman pelaksanaan tugas;",null,60,null,30,{"$f":"F83*H83","v":{"v":1800,"d":"1,800"}}]
[null,null,"2)","Menyelia data dukung kegiatan;",null,60,null,30,{"$f":"F84*H84","v":{"v":1800,"d":"1,800"}}]
[null,null,"3)","Melaksanakan monitoring kegiatan;",null,60,null,120,{"$f":"F85*H85","v":{"v":7200,"d":"7,200"}}]
[null,null,"4)","Menyusun laporan pelaksanaan kegiatan.",null,60,null,30,{"$f":"F86*H86","v":{"v":1800,"d":"1,800"}}]
[]
[null,12,"Melaksanakan kewenangan pemerintahan yang dilimpahkan oleh Bupati sesuai ketentuan untuk mendukung kelancaran penyelenggaraan urusan pemerintah daerah.",null,"kegiatan",12,"dokumen",{"$f":"I88/F88","v":420},{"$f":"SUM(I89:I93)","v":{"v":5040,"d":"5,040"}}]
[null,null,"1)","Mempelajari peraturan perundangan, petunjuk teknis dan kebijakan pelaksanaan kegiatan; ",null,12,null,120,{"$f":"F89*H89","v":{"v":1440,"d":"1,440"}}]
[null,null,"2)","Mengidentifikasi permasalahan terkait pelimpahan wewenang;",null,12,null,90,{"v":1080,"d":"1,080"}]
[null,null,"3)","Mengkonsultasikan permasalahan kepada pimpinan;",null,12,null,60,720]
[null,null,"4)","Mengkoordinasikan pelaksanaan kewenangan pemerintahan yang dilimpahkan oleh Bupati;",null,12,null,120,{"v":1440,"d":"1,440"}]
[null,null,"5)","Memberikan penugasan ke bawahan untuk tindak lanjut pelaksanaan pelimpahan wewenang;",null,12,null,30,360]
[null,null,"6)","Menyelia hasil pelaksanaan tugas bawahan.",null,12,null,30,360]
[]
[null,13,"Melaksanakan monitoring dan evaluasi pelaksanaan tugas di lingkungan Kecamatan dengan cara mengidentifikasi hambatan yang ada dalam rangka perbaikan kinerja di masa mendatang.",null,"kegiatan",24,"kali",{"$f":"I96/F96","v":105},{"$f":"SUM(I97:I100)","v":{"v":2520,"d":"2,520"}},null,"  "]
[null,null,"1)","Mempelajari laporan pelaksanaan kegiatan bawahan;",null,24,null,15,{"$f":"F97*H97","v":360},null,"  "]
[null,null,"2)","Membandingkan target dengan realisasi pelaksanaan tugas;",null,24,null,30,{"$f":"F98*H98","v":720},null,"  "]
[null,null,"3)","Memberikan catatan atau penilaian pada hasil pelaksanaan tugas;",null,24,null,30,{"$f":"F99*H99","v":720},null,"  "]
[null,null,"4)","Memberikan langkah-langkah perbaikan dalam pelaksanaan kegiatan.",null,24,null,30,{"$f":"F100*H100","v":720}]
[]
[null,14,"Menyusun laporan pelaksanaan tugas di lingkungan Kecamatan sesuai prosedur dan peraturan yang berlaku untuk pertanggungjawaban kinerja dan rencana yang akan datang.",null,"Laporan ",12,"dokumen",{"$f":"I102/F102","v":110},{"$f":"SUM(I103:I106)","v":{"v":1320,"d":"1,320"}},null,"  "]
[null,null,"1)","Mengumpulkan bahan laporan pelaksanaan tugas;",null,12,null,20,{"$f":"F103*H103","v":240},null,"  "]
[null,null,"2)","Menganalisis bahan penyusunan laporan;",null,12,null,30,{"$f":"F104*H104","v":360},null,"  "]
[null,null,"3)","Membuat laporan pelaksanaan tugas;",null,12,null,30,{"$f":"F105*H105","v":360},null,"  "]
[null,null,"4)","Menyampaikan laporan kepada pimpinan;",null,12,null,30,{"$f":"F106*H106","v":360}]
[]
[null,15,"Melaksanakan tugas kedinasan lain yang diperintahkan oleh pimpinan baik lisan maupun tertulis sesuai prosedur untuk mendukung kelancaran pelaksanaan tugas satuan kerja.",null,"kegiatan",12,"kali",{"$f":"I108/F108","v":360},{"$f":"SUM(I109:I112)","v":{"v":4320,"d":"4,320"}},null,"  "]
[null,null,"1)","Mempelajari tugas;",null,12,null,120,{"$f":"F109*H109","v":{"v":1440,"d":"1,440"}},null,"  "]
[null,null,"2)","Menjalankan tugas;",null,12,null,120,{"$f":"F110*H110","v":{"v":1440,"d":"1,440"}},null,"  "]
[null,null,"3)","Melaporkan hasil pelaksanaan tugas.",null,12,null,120,{"$f":"F111*H111","v":{"v":1440,"d":"1,440"}},null,"  "]
[]
["II","Konseptual & Managerial (SEKCAM)",{"$nulls":6},{"$f":"I114+I120+I127+I134+I142+I151+I159+I167+I175+I183+I190+I198+I205+I213+I219+I225","v":{"v":88950,"d":"88,950"}},"Sekretaris Kecamatan","1 orang"]
[null,1,"Merencanakan kegiatan Sekretariat sesuai program kerja kecamatan dan ketentuan yang berlaku untuk pedoman pelaksanaan tugas.",null,"Program Kerja",2,"dokumen",{"$f":"I114/F114","v":225},{"$f":"SUM(I115:I118)","v":450}]
[null,null,"1)","Menelaah Program Kerja Kecamatan;",null,2,null,60,{"$f":"F115*H115","v":120},null,"  "]
[null,null,"2)","Menyusun konsep rencana kegiatan Sekretariat;",null,2,null,120,{"$f":"F116*H116","v":240},null,"  "]
[null,null,"3)","Mengkonsultasikan konsep rencana kegiatan dengan pimpinan untuk mendapatkan pengarahan;",null,2,null,30,{"$f":"F117*H117","v":60},null,"  "]
[null,null,"4)","Menetapkan rencana kegiatan Sekretariat;",null,2,null,15,{"$f":"F118*H118","v":30}]
[]
[null,2,"Membagi tugas kepada bawahan di lingkungan Sekretariat sesuai dengan beban kerja dan tanggung jawab masing-masing untuk kelancaran pelaksanaan tugas.",null,"Distribusi Tugas",12,"kali",{"$f":"I120/F120","v":240},{"$f":"SUM(I121:I125)","v":{"v":2880,"d":"2,880"}},null,"  "]
[null,null,"1)","Menjabarkan rencana kegiatan menjadi tugas-tugas yang harus dilaksanakan bawahan;",null,12,null,60,{"$f":"F121*H121","v":720},null,"  "]
[null,null,"2)","Memaparkan rencana kegiatan; ",null,12,null,60,{"$f":"F122*H122","v":720},null,"  "]
[null,null,"3)","Menghimpun saran dan masukan dari bawahan;",null,12,null,30,{"$f":"F123*H123","v":360},null,"  "]
[null,null,"4)","Menentukan target waktu penyelesaian;",null,12,null,30,{"$f":"F124*H124","v":360}]
[null,null,"5)","Memberikan petunjuk pelaksanaan tugas kepada bawahan.",null,12,null,60,{"$f":"F125*H125","v":720}]
[]
[null,3,"Melaksanakan supervisi pelaksanaan tugas bawahan di lingkungan Sekretariat setiap saat sesuai dengan tugas dan tanggung jawabnya agar pekerjaan berjalan tertib dan lancar.",null,"kegiatan ",24,"kali",{"$f":"I127/F127","v":180},{"$f":"SUM(I128:I132)","v":{"v":4320,"d":"4,320"}},null,"  "]
[null,null,"1)","Menjelaskan tugas yang akan dilaksanakan bawahan;",null,24,null,30,{"$f":"F128*H128","v":720},null,"  "]
[null,null,"2)","Mengidentifikasi kesulitan yang dialami bawahan;",null,24,null,30,{"$f":"F129*H129","v":720},null,"  "]
[null,null,"3)","Mengkoordinasikan pelaksanaan tugas;",null,24,null,60,{"$f":"F130*H130","v":{"v":1440,"d":"1,440"}}]
[null,null,"4)","Mengkonsultasikan permasalahan kepada pimpinan;",null,24,null,30,{"$f":"F131*H131","v":720},null,"  "]
[null,null,"5)","Memberikan arahan kepada bawahan terkait permasalahan dalam pelaksanaan tugas.",null,24,null,30,{"$f":"F132*H132","v":720}]
[]
[null,4,"Mengkoordinasikan perencanaan kegiatan seluruh Seksi sesuai ketentuan sebagai pedoman pelaksanaan tugas.",null,"Draf Rencana Kerja",2,"dokumen",{"$f":"I134/F134","v":600},{"$f":"SUM(I135:I140)","v":{"v":1200,"d":"1,200"}},null,"  "]
[null,null,"1)","Mempelajari pedoman pelaksanaan tugas;",null,2,null,60,{"$f":"F135*H135","v":120},null,"  "]
[null,null,"2)","Melaksanakan inventarisasi rencana kegiatan seluruh Seksi;",null,2,null,60,120,null,"  "]
[null,null,"3)","Melaksanakan analisa dan pengolahan data rencana kegiatan seluruh Seksi;",null,2,null,120,240]
[null,null,"4)","Mengkoordinasikan dan memverifikasi data rencana kegiatan seluruh Seksi;",null,2,null,120,240,null,"  "]
[null,null,"5)","Menyusun draft kompilasi rencana kegiatan seluruh Seksi;",null,2,null,180,360]
[null,null,"6)","Mengkonsultasikan rencana kegiatan seluruh Seksi ke pimpinan.",null,2,null,60,120]
[]
[null,5,"Mengkoordinasikan perencanaan, pelaksanaan dan pemantauan hasil musyawarah perencanaan pembangunan (musrenbang) desa / kelurahan dan kecamatan.       ",null,"Draf RPTD dan RPTK ",21,"dokumen",{"$f":"I142/F142","v":320},{"$f":"SUM(I143:I149)","v":{"v":6720,"d":"6,720"}},null,"  "]
[null,null,"1)","Mempelajari pedoman pelaksanaan tugas;",null,2,null,60,{"$f":"F143*H143","v":120}]
[null,null,"2)","Menyusun pedoman dan mekanisme pelaksanaan kegiatan;",null,1,null,180,180,null,"  "]
[null,null,"3)","Membagi dan menjelaskan tugas ke bawahan;",null,1,null,60,60,null,"  "]
[null,null,"4)","Mengkoordinasikan pelaksanaan kegiatan;",null,21,null,120,{"v":2520,"d":"2,520"}]
[null,null,"5)","Merumuskan hasil musrenbang;",null,21,null,120,{"v":2520,"d":"2,520"}]
[null,null,"6)","Melaporkan dan mengkonsultasikan permasalahan kepada pimpinan;",null,21,null,60,{"v":1260,"d":"1,260"},null,"  "]
[null,null,"7)","Memberikan arahan kepada bawahan terkait permasalahan dalam pelaksanaan tugas.",null,1,null,60,60]
[]
[null,6,"Mengoordinasikan monitoring dan evaluasi kegiatan seluruh Seksi sesuai ketentuan agar kegiatan dapat terlaksana sesuai rencana.",null,"Laporan Hasil Monitoring dan Evaluasi",12,"dokumen",{"$f":"I151/F151","v":720},{"$f":"SUM(I152:I157)","v":{"v":8640,"d":"8,640"}},null,"  "]
[null,null,"1)","Mempelajari pedoman pelaksaaan tugas;",null,12,null,30,{"$f":"F152*H152","v":360},null,"  "]
[null,null,"2)","Melaksanakan inventarisasi rencana dan realisasi kegiatan seluruh Seksi;",null,12,null,120,{"v":1440,"d":"1,440"}]
[null,null,"3)","Melaksanakan analisis dan pengolahan data antara target dan realisasi kegiatan seluruh Seksi;",null,12,null,180,{"v":2160,"d":"2,160"},null,"  "]
[null,null,"4)","Mengkoordinasikan dan memverifikasi data hasil monitoring dan evaluasi kegiatan seluruh Seksi;",null,12,null,180,{"v":2160,"d":"2,160"},null,"  "]
[null,null,"5)","Menyusun draft hasil monitoring dan evaluasi kegiatan seluruh Seksi;",null,12,null,180,{"v":2160,"d":"2,160"}]
[null,null,"6)","Menyampaikan draft hasil monitoring dan evaluasi ke atasan.",null,12,null,30,360]
[]
[null,7,"Membantu Camat dalam mengoordinasikan tugas Unit Pelaksana Teknis (UPT) Badan / Dinas, petugas Badan / Dinas, dan instansi vertikal yang melaksanakan operasional kegiatan di kecamatan.",null,"Laporan",12,"dokumen",{"$f":"I159/F159","v":750},{"$f":"SUM(I160:I165)","v":{"v":9000,"d":"9,000"}}]
[null,null,"1)","Mempelajari pedoman pelaksaaan tugas;",null,12,null,60,{"$f":"F160*H160","v":720},null,"  "]
[null,null,"2)","Melaksanakan inventarisasi rencana dan realisasi kegiatan (UPT), petugas Badan/Dinas, dan instansi vertikal;",null,12,null,120,{"v":1440,"d":"1,440"}]
[null,null,"3)","Melaksanakan analisis dan pengolahan data antara target dan realisasi kegiatan;",null,12,null,180,{"v":2160,"d":"2,160"},null,"  "]
[null,null,"4)","Mengkoordinasikan dan memverifikasi data hasil analisis dan pegolahan data;",null,12,null,180,{"v":2160,"d":"2,160"},null,"  "]
[null,null,"5)","Menyusun draft hasil koordinasi kegiatan (UPT), petugas Badan/Dinas, dan instansi vertikal;",null,12,null,180,{"v":2160,"d":"2,160"}]
[null,null,"6)","Mengkonsultasikan dan menyampaikan draft hasil koordinasi ke atasan.",null,12,null,30,360]
[]
[null,8,"Mengoordinasikan penyusunan laporan-laporan yang dibutuhkan sesuai ketentuan agar informasi sampai pada pihak-pihak terkait.",null,"Laporan",12,"dokumen",{"$f":"I167/F167","v":750},{"$f":"SUM(I168:I173)","v":{"v":9000,"d":"9,000"}}]
[null,null,"1)","Mempelajari pedoman pelaksaaan tugas;",null,12,null,60,{"$f":"F168*H168","v":720},null,"  "]
[null,null,"2)","Melaksanakan inventarisasi data bahan laporan;",null,12,null,120,{"v":1440,"d":"1,440"}]
[null,null,"3)","Melaksanakan analisis dan pengolahan data bahan laporan;",null,12,null,180,{"v":2160,"d":"2,160"},null,"  "]
[null,null,"4)","Mengkoordinasikan dan memverifikasi data bahan laporan;",null,12,null,180,{"v":2160,"d":"2,160"},null,"  "]
[null,null,"5)","Menyusun draft laporan;",null,12,null,180,{"v":2160,"d":"2,160"}]
[null,null,"6)","Mengkonsultasikan dan menyampaikan draft laporan ke atasan.",null,12,null,30,360]
[]
[null,9,"Menyusun rencana anggaran dan melaksanakan pengelolaan administrasi keuangan sesuai ketentuan untuk mendukung pelaksanaan program dan kegiatan.",null,"RKA, DPA & SPJ Keuangan",60,"dokumen",{"$f":"I175/F175","v":582},{"$f":"SUM(I176:I181)","v":{"v":34920,"d":"34,920"}},null,"  "]
[null,null,"1)","Mempelajari pedoman pelaksaaan tugas;",null,12,null,60,{"$f":"F176*H176","v":720},null,"  "]
[null,null,"2)","Melaksanakan inventarisasi rencana dan realisasi anggaran;",null,60,null,60,{"v":3600,"d":"3,600"},null,"  "]
[null,null,"3)","Melaksanakan analisis data rencana dan realisasi anggaran;",null,60,null,60,{"v":3600,"d":"3,600"},null,"  "]
[null,null,"4)","Menyusun rencana kegiatan dan anggaran sampai dengan dokumen pelaksanaan anggaran;",null,60,null,240,{"v":14400,"d":"14,400"},null,"  "]
[null,null,"5)","Menyusun draft laporan pertanggungjawaban pengelolaan anggaran;",null,60,null,180,{"v":10800,"d":"10,800"},null,"  "]
[null,null,"6)","Mengkonsultasi dan menyampaikan laporan ke pimpinan.",null,60,null,30,{"v":1800,"d":"1,800"}]
[]
[null,10,"Mengkoordinasikan pengelolaan surat menyurat dan kearsipan sesuai ketentuan untuk memudahkan dalam menemukan kembali.",null,"Kegiatan",24,"kali",{"$f":"I183/F183","v":95},{"$f":"SUM(I185:I188)","v":{"v":2280,"d":"2,280"}}]
[null,null,"1)","Mempelajari pedoman pelaksaaan tugas;",null,6,null,30,{"$f":"F184*H184","v":180},null,"  "]
[null,null,"2)","Menyiapkan sarana dan prasarana pengelola surat-menyurat dan kearsipan;",null,24,null,30,{"$f":"F185*H185","v":720}]
[null,null,"3)","Melakukan koordinasi persiapan teknis dengan pihak-pihak terkait;",null,24,null,30,{"$f":"F186*H186","v":720}]
[null,null,"4)","Mengkoordinasikan ke masing-masing seksi terkait surat yang akan dikirim ke instansi lain;",null,24,null,20,{"$f":"F187*H187","v":480}]
[null,null,"5)","Mengkonsultasikan kepada pimpinan.",null,24,null,15,{"$f":"F188*H188","v":360}]
[]
[null,11,"Mengoordinasikan pengelolaan dokumentasi produk hukum dan kegiatan sesuai ketentuan untuk memudahkan dalam menemukan kembali..",null,"Kegiatan",6,"kali",{"$f":"I190/F190","v":195},{"$f":"SUM(I191:I196)","v":{"v":1170,"d":"1,170"}}]
[null,null,"1)","Mempelajari pedoman pelaksaaan tugas;",null,6,null,30,{"$f":"F191*H191","v":180},null,"  "]
[null,null,"2)","Menyiapkan sarana dan prasarana pengelolaan dokumentasi produk hukum dan kegiatan;",null,6,null,30,180]
[null,null,"3)","Melakukan koordinasi teknis dengan pihak-pihak terkait;",null,6,null,30,180]
[null,null,"4)","Mengkonsultasikan kepada pimpinan.",null,6,null,30,180]
[null,null,"5)","Menyelia penataan dokumentasi produk hukum dan kegiatan;",null,6,null,60,360]
[null,null,"6)","Melaporkan hasil kegiatan kepada pimpinan.",null,6,null,15,90]
[]
[null,12,"Menyusun rencana kebutuhan dan melaksanakan pengelolaan barang dan perlengkapan dan rumah tangga sesuai ketentuan untuk mendukung pelaksanaan tugas.",null,"RKBU",2,"dokumen",{"$f":"I198/F198","v":195},{"$f":"SUM(I199:I203)","v":390}]
[null,null,"1)","Menganalisis target dengan realisasi pelaksanaan tugas tahun sebelumnya;",null,2,null,30,{"$f":"F199*H199","v":60}]
[null,null,"2)","Menyusun rencana kebutuhan barang;",null,2,null,60,{"$f":"F200*H200","v":120}]
[null,null,"3)","Menyelia proses pengadaan barang;",null,2,null,60,{"$f":"F201*H201","v":120}]
[null,null,"4)","Menyelia administrasi pengelolaan barang;",null,2,null,30,{"$f":"F202*H202","v":60}]
[null,null,"5)","Menyusun, mengkonkonsultasikan dan menyampaikan laporan ke pimpinan.",null,2,null,15,{"$f":"F203*H203","v":30}]
[]
[null,13,"Mengkoordinasikan pengelolaan administrasi kepegawaian dan pengembangan sumber daya manusia sesuai ketentuan untuk meningkatkan kompetensi pegawai.",null,"Administrasi Kepegawaian",12,"dokumen",{"$f":"I205/F205","v":210},{"$f":"SUM(I206:I211)","v":{"v":2520,"d":"2,520"}}]
[null,null,"1)","Mempelajari pedoman administrasi kepegawaian;",null,12,null,30,{"$f":"F206*H206","v":360}]
[null,null,"2)","Mengidentifikasi penjagaan administrasi Kepegawaian sesuai dengan ketentuan;",null,12,null,30,360]
[null,null,"3)","Mengkoordinasikan pelaksanaan pengelolaan administrasi kepegawaian dan pengembangan sumber daya manusia;",null,12,null,60,720]
[null,null,"4)","Menyelia usulan dokumen dan laporan kepegawaian (KP, KGB, DUK, Formasi, dan lainnya);",null,12,null,30,360]
[null,null,"5)","Mengkonsultasikan permasalahan kepada pimpinan;",null,12,null,30,360]
[null,null,"6)","Melaksanakan pemantauan terkait dengan tindak lanjut administrasi kepegawaian.",null,12,null,30,360]
[]
[null,14,"Melaksanakan monitoring dan evaluasi pelaksanaan tugas di lingkungan Sekretariat dengan cara mengidentifikasi hambatan yang ada dalam rangka perbaikan kinerja di masa mendatang.",null,"Kegiatan",12,"dokumen",{"$f":"I213/F213","v":135},{"$f":"SUM(I214:I217)","v":{"v":1620,"d":"1,620"}},null,"  "]
[null,null,"1)","Mempelajari laporan pelaksanaan kegiatan bawahan;",null,12,null,30,{"$f":"F214*H214","v":360},null,"  "]
[null,null,"2)","Membandingkan target dengan realisasi pelaksanaan tugas;",null,12,null,45,{"$f":"F215*H215","v":540},null,"  "]
[null,null,"3)","Memberikan catatan atau penilaian pada hasil pelaksanaan tugas;",null,12,null,30,{"$f":"F216*H216","v":360},null,"  "]
[null,null,"4)","Memberikan langkah-langkah perbaikan dalam pelaksanaan kegiatan.",null,12,null,30,{"$f":"F217*H217","v":360}]
[]
[null,15,"Menyusun laporan pelaksanaan tugas di lingkungan Sekretariat sesuai prosedur dan peraturan yang berlaku untuk pertanggungjawaban kinerja dan rencana yang akan datang.",null,"Laporan ",12,"dokumen",{"$f":"I219/F219","v":110},{"$f":"SUM(I220:I223)","v":{"v":1320,"d":"1,320"}},null,"  "]
[null,null,"1)","Mengumpulkan bahan laporan pelaksanaan tugas;",null,12,null,20,{"$f":"F220*H220","v":240},null,"  "]
[null,null,"2)","Menganalisis bahan penyusunan laporan;",null,12,null,30,{"$f":"F221*H221","v":360},null,"  "]
[null,null,"3)","Membuat laporan pelaksanaan tugas;",null,12,null,30,{"$f":"F222*H222","v":360},null,"  "]
[null,null,"4)","Menyampaikan laporan kepada pimpinan;",null,12,null,30,{"$f":"F223*H223","v":360}]
[]
[null,16,"Melaksanakan tugas kedinasan lain yang diperintahkan oleh pimpinan baik lisan maupun tertulis sesuai prosedur untuk mendukung kelancaran pelaksanaan tugas satuan kerja.",null,"kegiatan",7,"kali",{"$f":"I225/F225","v":360},{"$f":"SUM(I226:I229)","v":{"v":2520,"d":"2,520"}},null,"  "]
[null,null,"1)","Mempelajari tugas;",null,7,null,120,{"$f":"F226*H226","v":840},null,"  "]
[null,null,"2)","Menjalankan tugas;",null,7,null,60,{"$f":"F227*H227","v":420},null,"  "]
[null,null,"3)","Melaporkan hasil pelaksanaan tugas",null,7,null,180,{"$f":"F228*H228","v":{"v":1260,"d":"1,260"}},null,"  "]
[]
["III.1","KONSEPTUAL & MANAGERIAL (KASUBBAG PERMONEVLAP)",{"$nulls":6},{"$f":"I231+I237+I244+I251+I259+I267+I278+I283+I291+I298+I306+I313+I321+I329+I335+I341","v":{"v":56370,"d":"56,370"}},"Kasubbag Perencanaan Monitoring Evaluasi dan Pelaporan","1 orang"]
[null,1,"Merencanakan kegiatan Sub Bagian Perencanaan, Monitoring, Evaluasi dan Pelaporan sesuai program kerja kecamatan dan ketentuan yang berlaku untuk pedoman pelaksanaan tugas.",null,"Program Kerja",2,"dokumen",{"$f":"I231/F231","v":225},{"$f":"SUM(I232:I235)","v":450}]
[null,null,"1)","Menelaah Program Kerja Sekretariat Kecamatan;",null,2,null,60,{"$f":"F232*H232","v":120},null,"  "]
[null,null,"2)","Menyusun konsep rencana kegiatan Sub Bagian Perencanaan, Monitoring, Evaluasi dan Pelaporan;",null,2,null,120,{"$f":"F233*H233","v":240},null,"  "]
[null,null,"3)","Mengkonsultasikan konsep rencana kegiatan dengan pimpinan untuk mendapatkan pengarahan;",null,2,null,30,{"$f":"F234*H234","v":60},null,"  "]
[null,null,"4)","Menetapkan rencana kegiatan Sub Bagian Perencanaan, Monitoring, Evaluasi dan Pelaporan;",null,2,null,15,{"$f":"F235*H235","v":30}]
[]
[null,2,"Membagi tugas kepada bawahan di lingkungan Sub Bagian Perencanaan, Monitoring, Evaluasi dan Pelaporan sesuai dengan beban kerja dan tanggung jawab masing-masing untuk kelancaran pelaksanaan tugas.",null,"Distribusi Tugas",12,"dokumen",{"$f":"I237/F237","v":150},{"$f":"SUM(I238:I242)","v":{"v":1800,"d":"1,800"}},null,"  "]
[null,null,"1)","Menjabarkan rencana kegiatan menjadi tugas-tugas yang harus dilaksanakan bawahan;",null,12,null,30,{"$f":"F238*H238","v":360},null,"  "]
[null,null,"2)","Memaparkan rencana kegiatan; ",null,12,null,30,{"$f":"F239*H239","v":360},null,"  "]
[null,null,"3)","Menghimpun saran dan masukan dari bawahan;",null,12,null,30,{"$f":"F240*H240","v":360},null,"  "]
[null,null,"4)","Menentukan target waktu penyelesaian;",null,12,null,30,{"$f":"F241*H241","v":360}]
[null,null,"5)","Memberikan petunjuk pelaksanaan tugas kepada bawahan.",null,12,null,30,{"$f":"F242*H242","v":360}]
[]
[null,3,"Melaksanakan supervisi pelaksanaan tugas bawahan di lingkungan Sub Bagian Perencanaan, Monitoring, Evaluasi dan Pelaporan setiap saat sesuai dengan tugas dan tanggung jawabnya agar pekerjaan berjalan tertib dan lancar.",null,"Kegiatan ",24,"kali",{"$f":"I244/F244","v":180},{"$f":"SUM(I245:I249)","v":{"v":4320,"d":"4,320"}},null,"  "]
[null,null,"1)","Menjelaskan tugas yang akan dilaksanakan bawahan;",null,24,null,30,{"$f":"F245*H245","v":720},null,"  "]
[null,null,"2)","Mengidentifikasi kesulitan yang dialami bawahan;",null,24,null,30,{"$f":"F246*H246","v":720},null,"  "]
[null,null,"3)","Mengkoordinasikan pelaksanaan tugas;",null,24,null,60,{"$f":"F247*H247","v":{"v":1440,"d":"1,440"}}]
[null,null,"4)","Mengkonsultasikan permasalahan kepada pimpinan;",null,24,null,30,{"$f":"F248*H248","v":720},null,"  "]
[null,null,"5)","Memberikan arahan kepada bawahan terkait permasalahan dalam pelaksanaan tugas.",null,24,null,30,{"$f":"F249*H249","v":720}]
[]
[null,4,"Melaksanakan koordinasi perencanaan kegiatan masing-masing Seksi sesuai ketentuan agar rencana kerja tersusun dengan baik.",null,"Draft Rencana Kerja",2,"dokumen",{"$f":"I251/F251","v":780},{"$f":"SUM(I252:I257)","v":{"v":1560,"d":"1,560"}}]
[null,null,"1)","Mempelajari pedoman pelaksanaan tugas;",null,2,null,60,{"$f":"F252*H252","v":120},null,"  "]
[null,null,"2)","Melaksanakan inventarisasi rencana kegiatan seluruh Seksi;",null,2,null,120,240,null,"  "]
[null,null,"3)","Melaksanakan analisa dan pengolahan data rencana kegiatan seluruh Seksi;",null,2,null,180,360]
[null,null,"4)","Mengkoordinasikan dan memverifikasi data rencana kegiatan seluruh Seksi;",null,2,null,180,360,null,"  "]
[null,null,"5)","Menyusun draft kompilasi rencana kegiatan seluruh Seksi;",null,2,null,180,360]
[null,null,"6)","Mengkonsultasikan dan menyampaikan draft rencana kegiatan seluruh Seksi ke pimpinan.",null,2,null,60,120]
[]
[null,5,"Menyusun rencana jangka panjang, menengah dan pendek internal SKPD sesuai ketentuan sebagai pedoman pelaksanaan kegiatan.",null,"Draft RPJMD, Renstra, Renja",3,"dokumen",{"$f":"I259/F259","v":720},{"$f":"SUM(I260:I265)","v":{"v":2160,"d":"2,160"}}]
[null,null,"1)","Mempelajari pedoman pelaksanaan tugas;",null,3,null,60,{"$f":"F260*H260","v":180},null,"  "]
[null,null,"2)","Melaksanakan inventarisasi rencana kerja seluruh Seksi;",null,3,null,60,180,null,"  "]
[null,null,"3)","Melaksanakan analisa dan pengolahan data rencana kerja seluruh Seksi;",null,3,null,180,540]
[null,null,"4)","Mengkoordinasikan dan memverifikasi data rencana kerja seluruh Seksi;",null,3,null,180,540,null,"  "]
[null,null,"5)","Menyusun draft kompilasi rencana kerja seluruh Seksi;",null,3,null,180,540]
[null,null,"6)","Mengkonsultasikan dan menyampaikan draft rencana kerja seluruh Seksi ke pimpinan.",null,3,null,60,180]
[]
[null,6,"Melaksanakan koordinasi teknis dengan Seksi Pemberdayaan Masyarakat dan Desa / Kelurahan mengenai inventarisasi hasil musyawarah perencanaan pembangunan (musrenbang) desa / kelurahan dan kecamatan, pemantauan hasil musrenbang yang telah diakomodasi / dilaksanakan dengan biaya APBN, APBD Provinsi, APBD Kabupaten, Alokasi Dana Desa (ADD) maupun sumber dana lain yang sah.",null,"RPTK",1,"dokumen",{"$f":"I267/F267","v":{"v":5580,"d":"5,580"}},{"$f":"SUM(I268:I276)","v":{"v":5580,"d":"5,580"}}]
[null,null,"1)","Mempelajari pedoman pelaksanaan tugas;",null,2,null,60,{"$f":"F268*H268","v":120},null,"  "]
[null,null,"2)","Melaksanakan inventarisasi hasil musrenbangdes/kel dan musrenbangkec;",null,1,null,240,240,null,"  "]
[null,null,"3)","Melaksanakan analisa dan pengolahan data hasil musrenbangdes/kel dan musrenbangkec;",null,1,null,300,300]
[null,null,"4)","Mengkoordinasikan dan memverifikasi hasil pengolahan data ke seluruh Seksi;",null,4,null,120,480,null,"  "]
[null,null,"5)","Menyusun draft Rencana Pembangunan Tingkat Kecamatan (RPTK);",null,1,null,240,240]
[null,null,"6)","Mengkonsultasikan dan menyampaikan draft RPTK ke pimpinan;",null,3,null,60,180]
[null,null,"7)","Melaksanakan pemantauan pengakomodasian pembiayaan RPTK ke pihak-pihak terkait;",null,13,null,120,{"$f":"F274*H274","v":{"v":1560,"d":"1,560"}}]
[null,null,"8)","Mengkoordinasikan rencana pembiayaan ke pihak-pihak calon pelaksana kegiatan;",null,20,null,120,{"$f":"F275*H275","v":{"v":2400,"d":"2,400"}}]
[null,null,"9)","Melaporkan hasil pemantuan dan koordinasi ke pimpinan;",null,1,null,60,{"$f":"F276*H276","v":60}]
[]
[null,7,"Menyiapkan bahan-bahan yang diperlukan guna kepentingan perencanaan, monitoring, evaluasi dan pelaporan.",null,"Bahan Renmonevlap",12,"dokumen",{"$f":"I278/F278","v":240},{"$f":"SUM(I279:I281)","v":{"v":2880,"d":"2,880"}}]
[null,null,"1)","Mempelajari pedoman pelaksanaan tugas;",null,12,null,60,{"$f":"F279*H279","v":720},null,"  "]
[null,null,"2)","Menyiapkan rencana kerja seluruh seksi dan dokumen lain yang terkait;",null,12,null,120,{"$f":"F280*H280","v":{"v":1440,"d":"1,440"}},null,"  "]
[null,null,"3)","Mengkonsultasikan dan menyampaikan ke pimpinan.",null,12,null,60,{"$f":"F281*H281","v":720}]
[]
[null,8,"Menyusun Kebijakan Umum Anggaran (KUA) dan Prioritas dan Plafon Anggaran Sementara (PPAS) internal SKPD sesuai ketentuan untuk pedoman penyusunan rencana kegiatan dan anggaran.",null,"KUA dan PPAS",2,"dokumen",{"$f":"I283/F283","v":{"v":1020,"d":"1,020"}},{"$f":"SUM(I284:I289)","v":{"v":2040,"d":"2,040"}}]
[null,null,"1)","Mempelajari pedoman pelaksanaan tugas;",null,2,null,60,{"$f":"F284*H284","v":120},null,"  "]
[null,null,"2)","Melaksanakan inventarisasi rencana kegiatan dan anggaran seluruh Seksi dan Subbag;",null,2,null,240,480,null,"  "]
[null,null,"3)","Melaksanakan analisa dan pengolahan data rencana kegiatan dan anggaran seluruh Seksi dan Subbag;",null,2,null,240,480]
[null,null,"4)","Mengkoordinasikan dan memverifikasi data rencana kegiatan dan anggaran seluruh Seksi dan Subbag;",null,2,null,240,480,null,"  "]
[null,null,"5)","Menyusun draft KUA dan PPAS;",null,2,null,180,360]
[null,null,"6)","Mengkonsultasikan draft KUA dan PPAS ke pimpinan.",null,2,null,60,120]
[]
[null,9,"Menyusun Penetapan Kinerja atau yang sejenis satuan kerja perangkat daerah sesuai ketentuan untuk pedoman pencapaian target kinerja.",null,"PK",2,"dokumen",{"$f":"I291/F291","v":660},{"$f":"SUM(I292:I296)","v":{"v":1320,"d":"1,320"}}]
[null,null,"1)","Mempelajari pedoman pelaksanaan tugas;",null,2,null,60,{"$f":"F292*H292","v":120},null,"  "]
[null,null,"3)","Melaksanakan analisa Dokumen Pelaksanaan Anggaran (DPA) seluruh Seksi dan Subbag;",null,2,null,180,{"$f":"F293*H293","v":360}]
[null,null,"4)","Menyusun draft Penetapan Kinerja;",null,2,null,180,{"$f":"F294*H294","v":360},null,"  "]
[null,null,"5)","Mengkoordinasikan dan memverifikasi draft Penetapan Kinerja seluruh Seksi dan Subbag;",null,2,null,180,{"$f":"F295*H295","v":360}]
[null,null,"6)","Mengkonsultasikan dan menyampaikan draft Penetapan Kinerja ke pimpinan.",null,2,null,60,{"$f":"F296*H296","v":120}]
[]
[null,10,"Melakukan monitoring dan evaluasi kegiatan internal SKPD sesuai ketentuan agar kegiatan terlaksana sesuai rencana.",null,"Laporan",12,"dokumen",{"$f":"I298/F298","v":810},{"$f":"SUM(I299:I304)","v":{"v":9720,"d":"9,720"}}]
[null,null,"1)","Mempelajari pedoman pelaksaaan tugas;",null,12,null,30,{"$f":"F299*H299","v":360},null,"  "]
[null,null,"2)","Melaksanakan inventarisasi rencana dan realisasi kegiatan seluruh Seksi dan Subbag;",null,12,null,180,{"v":2160,"d":"2,160"}]
[null,null,"3)","Melaksanakan analisis dan pengolahan data antara target dan realisasi kegiatan seluruh Seksi dan Subbag;",null,12,null,180,{"v":2160,"d":"2,160"},null,"  "]
[null,null,"4)","Mengkoordinasikan dan memverifikasi data hasil monitoring dan evaluasi kegiatan seluruh Seksi dan Subbag;",null,12,null,180,{"v":2160,"d":"2,160"},null,"  "]
[null,null,"5)","Menyusun draft hasil monitoring dan evaluasi kegiatan seluruh Seksi dan Subbag;",null,12,null,180,{"v":2160,"d":"2,160"}]
[null,null,"6)","Menyampaikan draft hasil monitoring dan evaluasi ke pimpinan.",null,12,null,60,720]
[]
[null,11,"Melaksanakan pengendalian kegiatan perencanaan, monitoring, evaluasi dan pelaporan agar kegiatan terlaksana sesuai rencana.",null,"Laporan",12,"dokumen",{"$f":"I306/F306","v":540},{"$f":"SUM(I307:I311)","v":{"v":6480,"d":"6,480"}}]
[null,null,"1)","Mempelajari pedoman pelaksaaan tugas;",null,12,null,60,{"$f":"F307*H307","v":720},null,"  "]
[null,null,"2)","Menyusun jadwal kegiatan;",null,12,null,60,{"$f":"F308*H308","v":720}]
[null,null,"3)","Melaksanakan koordinasi ke pihak-pihak terkait;",null,12,null,180,{"$f":"F309*H309","v":{"v":2160,"d":"2,160"}},null,"  "]
[null,null,"4)","Menyusun laporan hasil koordinasi;",null,12,null,180,{"$f":"F310*H310","v":{"v":2160,"d":"2,160"}}]
[null,null,"5)","Mengkonsultasikan dan menyampaikan laporan hasil koordinasi ke pimpinan.",null,12,null,60,{"$f":"F311*H311","v":720}]
[]
[null,12,"Menyusun bahan Laporan Penyelenggaraan Pemerintahan Daerah (LPPD) dan suplemennya, Laporan Keterangan Pertanggungjawaban (LKPJ) Bupati, dan Laporan Akuntabilitas Kinerja Instansi Pemerintah (LAKIP) dan laporan sejenis internal SKPD.",null,"LPPD, LKPJ, LAKIP.",3,"dokumen",{"$f":"I313/F313","v":840},{"$f":"SUM(I314:I319)","v":{"v":2520,"d":"2,520"}}]
[null,null,"1)","Mempelajari pedoman pelaksaaan tugas;",null,3,null,60,{"$f":"F314*H314","v":180},null,"  "]
[null,null,"2)","Melaksanakan inventarisasi data bahan laporan;",null,3,null,180,540]
[null,null,"3)","Melaksanakan analisis dan pengolahan data bahan laporan;",null,3,null,180,540,null,"  "]
[null,null,"4)","Mengkoordinasikan dan memverifikasi data bahan laporan;",null,3,null,180,540,null,"  "]
[null,null,"5)","Menyusun draft laporan;",null,3,null,180,540]
[null,null,"6)","Mengkonsultasikan dan menyampaikan draft laporan ke atasan.",null,3,null,60,180]
[]
[null,13,"Menghimpun dan menyusun laporan-laporan rutin, berkala dan insidentil lainnya sesuai ketentuan untuk disampaikan ke pihak-pihak terkait.",null,"Laporan",12,"dokumen",{"$f":"I321/F321","v":840},{"$f":"SUM(I322:I327)","v":{"v":10080,"d":"10,080"}}]
[null,null,"1)","Mempelajari pedoman pelaksaaan tugas;",null,12,null,60,{"$f":"F322*H322","v":720},null,"  "]
[null,null,"2)","Melaksanakan inventarisasi data bahan laporan;",null,12,null,180,{"v":2160,"d":"2,160"}]
[null,null,"3)","Melaksanakan analisis dan pengolahan data bahan laporan;",null,12,null,180,{"v":2160,"d":"2,160"},null,"  "]
[null,null,"4)","Mengkoordinasikan dan memverifikasi data bahan laporan;",null,12,null,180,{"v":2160,"d":"2,160"},null,"  "]
[null,null,"5)","Menyusun draft laporan;",null,12,null,180,{"v":2160,"d":"2,160"}]
[null,null,"6)","Mengkonsultasikan dan menyampaikan draft laporan ke atasan.",null,12,null,60,720]
[]
[null,14,"Melaksanakan monitoring dan evaluasi pelaksanaan tugas di lingkungan Sub Bagian Perencanaan, Monitoring, Evaluasi dan Pelaporan dengan cara mengidentifikasi hambatan yang ada dalam rangka perbaikan kinerja di masa mendatang.",null,"Laporan",12,"dokumen",{"$f":"I329/F329","v":135},{"$f":"SUM(I330:I333)","v":{"v":1620,"d":"1,620"}},null,"  "]
[null,null,"1)","Mempelajari laporan pelaksanaan kegiatan bawahan;",null,12,null,30,{"$f":"F330*H330","v":360},null,"  "]
[null,null,"2)","Membandingkan target dengan realisasi pelaksanaan tugas;",null,12,null,45,{"$f":"F331*H331","v":540},null,"  "]
[null,null,"3)","Memberikan catatan atau penilaian pada hasil pelaksanaan tugas;",null,12,null,30,{"$f":"F332*H332","v":360},null,"  "]
[null,null,"4)","Memberikan langkah-langkah perbaikan dalam pelaksanaan kegiatan.",null,12,null,30,{"$f":"F333*H333","v":360}]
[]
[null,15,"Menyusun laporan pelaksanaan tugas di lingkungan Sub Bagian Perencanaan, Monitoring, Evaluasi dan Pelaporan dan Kecamatan sesuai prosedur dan peraturan yang berlaku untuk pertanggungjawaban kinerja dan rencana yang akan datang.",null,"Laporan ",12,"dokumen",{"$f":"I335/F335","v":110},{"$f":"SUM(I336:I339)","v":{"v":1320,"d":"1,320"}},null,"  "]
[null,null,"1)","Mengumpulkan bahan laporan pelaksanaan tugas;",null,12,null,20,{"$f":"F336*H336","v":240},null,"  "]
[null,null,"2)","Menganalisis bahan penyusunan laporan;",null,12,null,30,{"$f":"F337*H337","v":360},null,"  "]
[null,null,"3)","Membuat laporan pelaksanaan tugas;",null,12,null,30,{"$f":"F338*H338","v":360},null,"  "]
[null,null,"4)","Menyampaikan laporan kepada pimpinan;",null,12,null,30,{"$f":"F339*H339","v":360}]
[]
[null,16,"Melaksanakan tugas kedinasan lain yang diperintahkan oleh pimpinan baik lisan maupun tertulis sesuai prosedur untuk mendukung kelancaran pelaksanaan tugas satuan kerja.",null,"kegiatan",7,"kali",{"$f":"I341/F341","v":360},{"$f":"SUM(I342:I345)","v":{"v":2520,"d":"2,520"}},null,"  "]
[null,null,"1)","Mempelajari tugas;",null,7,null,120,{"$f":"F342*H342","v":840},null,"  "]
[null,null,"2)","Menjalankan tugas;",null,7,null,60,{"$f":"F343*H343","v":420},null,"  "]
[null,null,"3)","Melaporkan hasil pelaksanaan tugas",null,7,null,180,{"$f":"F344*H344","v":{"v":1260,"d":"1,260"}},null,"  "]
[]
["III.2","TEKNIK MENENGAH DAN RENDAH (Pengolah Data Perencanaan Monitoring Evaluasi dan Pelaporan)",{"$nulls":6},{"$f":"I347+I353+I361+I369+I380+I385+I393+I400+I408+I415+I423+I431+I437","v":{"v":49970,"d":"49,970"}},"Pengolah Data Perencanaan Monitoring Evaluasi dan Pelaporan","1 orang"]
[null,1,"Merencanakan kegiatan yang menjadi tugasnya sesuai program kerja atasannya dan ketentuan yang berlaku untuk pedoman pelaksanaan tugas.",null,"Program Kerja",2,"dokumen",{"$f":"I347/F347","v":{"v":772.5,"d":"773"}},{"$f":"SUM(I348:I351)","v":{"v":1545,"d":"1,545"}},null,"  "]
[null,null,"1)","Menelaah Program Kerja yang telah ditetapkan;",null,5,null,180,{"$f":"F348*H348","v":900},null,"  "]
[null,null,"2)","Menyusun konsep rencana kegiatan;",null,2,null,180,{"$f":"F349*H349","v":360},null,"  "]
[null,null,"3)","Mengkonsultasikan konsep rencana kegiatan dengan pimpinan untuk mendapatkan arahan;",null,5,null,45,{"$f":"F350*H350","v":225},null,"  "]
[null,null,"4)","Menetapkan rencana pelaksanaan kegiatan;",null,2,null,30,{"$f":"F351*H351","v":60}]
[]
[null,2,"Menyiapkan bahan koordinasi perencanaan kegiatan masing-masing Seksi sesuai ketentuan agar rencana kerja tersusun dengan baik.",null,"Draft Rencana Kerja",2,"dokumen",{"$f":"I353/F353","v":780},{"$f":"SUM(I354:I359)","v":{"v":1560,"d":"1,560"}}]
[null,null,"1)","Mempelajari pedoman pelaksanaan tugas;",null,2,null,60,{"$f":"F354*H354","v":120},null,"  "]
[null,null,"2)","Melaksanakan inventarisasi rencana kegiatan seluruh Seksi;",null,2,null,120,240,null,"  "]
[null,null,"3)","Melaksanakan analisa dan pengolahan data rencana kegiatan seluruh Seksi;",null,2,null,180,360]
[null,null,"4)","Mengkoordinasikan dan memverifikasi data rencana kegiatan seluruh Seksi;",null,2,null,180,360,null,"  "]
[null,null,"5)","Menyusun draft kompilasi rencana kegiatan seluruh Seksi;",null,2,null,180,360]
[null,null,"6)","Mengkonsultasikan dan menyampaikan draft rencana kegiatan seluruh Seksi ke pimpinan.",null,2,null,60,120]
[]
[null,3,"Menyiapkan bahan penyusunan rencana jangka panjang, menengah dan pendek internal SKPD sesuai ketentuan sebagai pedoman pelaksanaan kegiatan.",null,"Draft RPJMD, Renstra, Renja",3,"dokumen",{"$f":"I361/F361","v":720},{"$f":"SUM(I362:I367)","v":{"v":2160,"d":"2,160"}}]
[null,null,"1)","Mempelajari pedoman pelaksanaan tugas;",null,3,null,60,{"$f":"F362*H362","v":180},null,"  "]
[null,null,"2)","Melaksanakan inventarisasi rencana kerja seluruh Seksi;",null,3,null,60,180,null,"  "]
[null,null,"3)","Melaksanakan analisa dan pengolahan data rencana kerja seluruh Seksi;",null,3,null,180,540]
[null,null,"4)","Mengkoordinasikan dan memverifikasi data rencana kerja seluruh Seksi;",null,3,null,180,540,null,"  "]
[null,null,"5)","Menyusun draft kompilasi rencana kerja seluruh Seksi;",null,3,null,180,540]
[null,null,"6)","Mengkonsultasikan dan menyampaikan draft rencana kerja seluruh Seksi ke pimpinan.",null,3,null,60,180]
[]
[null,4,"Menyiapkan bahan koordinasi teknis dengan Seksi Pemberdayaan Masyarakat dan Desa / Kelurahan mengenai inventarisasi hasil musyawarah perencanaan pembangunan (musrenbang) desa / kelurahan dan kecamatan, pemantauan hasil musrenbang yang telah diakomodasi / dilaksanakan dengan biaya APBN, APBD Provinsi, APBD Kabupaten, Alokasi Dana Desa (ADD) maupun sumber dana lain yang sah.",null,"RPTK",1,"dokumen",{"$f":"I369/F369","v":{"v":5580,"d":"5,580"}},{"$f":"SUM(I370:I378)","v":{"v":5580,"d":"5,580"}}]
[null,null,"1)","Mempelajari pedoman pelaksanaan tugas;",null,2,null,60,{"$f":"F370*H370","v":120},null,"  "]
[null,null,"2)","Melaksanakan inventarisasi hasil musrenbangdes/kel dan musrenbangkec;",null,1,null,240,240,null,"  "]
[null,null,"3)","Melaksanakan analisa dan pengolahan data hasil musrenbangdes/kel dan musrenbangkec;",null,1,null,300,300]
[null,null,"4)","Mengkoordinasikan dan memverifikasi hasil pengolahan data ke seluruh Seksi;",null,4,null,120,480,null,"  "]
[null,null,"5)","Menyusun draft Rencana Pembangunan Tingkat Kecamatan (RPTK);",null,1,null,240,240]
[null,null,"6)","Mengkonsultasikan dan menyampaikan draft RPTK ke pimpinan;",null,3,null,60,180]
[null,null,"7)","Melaksanakan pemantauan pengakomodasian pembiayaan RPTK ke pihak-pihak terkait;",null,13,null,120,{"$f":"F376*H376","v":{"v":1560,"d":"1,560"}}]
[null,null,"8)","Mengkoordinasikan rencana pembiayaan ke pihak-pihak calon pelaksana kegiatan;",null,20,null,120,{"$f":"F377*H377","v":{"v":2400,"d":"2,400"}}]
[null,null,"9)","Melaporkan hasil pemantuan dan koordinasi ke pimpinan;",null,1,null,60,{"$f":"F378*H378","v":60}]
[]
[null,5,"Menyiapkan bahan-bahan yang diperlukan guna kepentingan perencanaan, monitoring, evaluasi dan pelaporan.",null,"Bahan Renmonevlap",12,"dokumen",{"$f":"I380/F380","v":240},{"$f":"SUM(I381:I383)","v":{"v":2880,"d":"2,880"}}]
[null,null,"1)","Mempelajari pedoman pelaksanaan tugas;",null,12,null,60,{"$f":"F381*H381","v":720},null,"  "]
[null,null,"2)","Menyiapkan rencana kerja seluruh seksi dan dokumen lain yang terkait;",null,12,null,120,{"$f":"F382*H382","v":{"v":1440,"d":"1,440"}},null,"  "]
[null,null,"3)","Mengkonsultasikan dan menyampaikan ke pimpinan.",null,12,null,60,{"$f":"F383*H383","v":720}]
[]
[null,6,"Menyiapkan bahan penyusunan Kebijakan Umum Anggaran (KUA) dan Prioritas dan Plafon Anggaran Sementara (PPAS) internal SKPD sesuai ketentuan untuk pedoman penyusunan rencana kegiatan dan anggaran.",null,"KUA dan PPAS",2,"dokumen",{"$f":"I385/F385","v":{"v":1020,"d":"1,020"}},{"$f":"SUM(I386:I391)","v":{"v":2040,"d":"2,040"}}]
[null,null,"1)","Mempelajari pedoman pelaksanaan tugas;",null,2,null,60,{"$f":"F386*H386","v":120},null,"  "]
[null,null,"2)","Melaksanakan inventarisasi rencana kegiatan dan anggaran seluruh Seksi dan Subbag;",null,2,null,240,480,null,"  "]
[null,null,"3)","Melaksanakan analisa dan pengolahan data rencana kegiatan dan anggaran seluruh Seksi dan Subbag;",null,2,null,240,480]
[null,null,"4)","Mengkoordinasikan dan memverifikasi data rencana kegiatan dan anggaran seluruh Seksi dan Subbag;",null,2,null,240,480,null,"  "]
[null,null,"5)","Menyusun draft KUA dan PPAS;",null,2,null,180,360]
[null,null,"6)","Mengkonsultasikan draft KUA dan PPAS ke pimpinan.",null,2,null,60,120]
[]
[null,7,"Menyiapkan bahan penyusunan Penetapan Kinerja atau yang sejenis satuan kerja perangkat daerah sesuai ketentuan untuk pedoman pencapaian target kinerja.",null,"PK",2,"dokumen",{"$f":"I393/F393","v":660},{"$f":"SUM(I394:I398)","v":{"v":1320,"d":"1,320"}}]
[null,null,"1)","Mempelajari pedoman pelaksanaan tugas;",null,2,null,60,{"$f":"F394*H394","v":120},null,"  "]
[null,null,"3)","Melaksanakan analisa Dokumen Pelaksanaan Anggaran (DPA) seluruh Seksi dan Subbag;",null,2,null,180,{"$f":"F395*H395","v":360}]
[null,null,"4)","Menyusun draft Penetapan Kinerja;",null,2,null,180,{"$f":"F396*H396","v":360},null,"  "]
[null,null,"5)","Mengkoordinasikan dan memverifikasi draft Penetapan Kinerja seluruh Seksi dan Subbag;",null,2,null,180,{"$f":"F397*H397","v":360}]
[null,null,"6)","Mengkonsultasikan dan menyampaikan draft Penetapan Kinerja ke pimpinan.",null,2,null,60,{"$f":"F398*H398","v":120}]
[]
[null,8,"Menyiapkan bahan monitoring dan evaluasi kegiatan internal SKPD sesuai ketentuan agar kegiatan terlaksana sesuai rencana.",null,"Laporan",12,"dokumen",{"$f":"I400/F400","v":810},{"$f":"SUM(I401:I406)","v":{"v":9720,"d":"9,720"}}]
[null,null,"1)","Mempelajari pedoman pelaksaaan tugas;",null,12,null,30,{"$f":"F401*H401","v":360},null,"  "]
[null,null,"2)","Melaksanakan inventarisasi rencana dan realisasi kegiatan seluruh Seksi dan Subbag;",null,12,null,180,{"v":2160,"d":"2,160"}]
[null,null,"3)","Melaksanakan analisis dan pengolahan data antara target dan realisasi kegiatan seluruh Seksi dan Subbag;",null,12,null,180,{"v":2160,"d":"2,160"},null,"  "]
[null,null,"4)","Mengkoordinasikan dan memverifikasi data hasil monitoring dan evaluasi kegiatan seluruh Seksi dan Subbag;",null,12,null,180,{"v":2160,"d":"2,160"},null,"  "]
[null,null,"5)","Menyusun draft hasil monitoring dan evaluasi kegiatan seluruh Seksi dan Subbag;",null,12,null,180,{"v":2160,"d":"2,160"}]
[null,null,"6)","Menyampaikan draft hasil monitoring dan evaluasi ke pimpinan.",null,12,null,60,720]
[]
[null,9,"Menyiapkan bahan pengendalian kegiatan perencanaan, monitoring, evaluasi dan pelaporan agar kegiatan terlaksana sesuai rencana.",null,"Laporan",12,"dokumen",{"$f":"I408/F408","v":540},{"$f":"SUM(I409:I413)","v":{"v":6480,"d":"6,480"}}]
[null,null,"1)","Mempelajari pedoman pelaksaaan tugas;",null,12,null,60,{"$f":"F409*H409","v":720},null,"  "]
[null,null,"2)","Menyusun jadwal kegiatan;",null,12,null,60,{"$f":"F410*H410","v":720}]
[null,null,"3)","Melaksanakan koordinasi ke pihak-pihak terkait;",null,12,null,180,{"$f":"F411*H411","v":{"v":2160,"d":"2,160"}},null,"  "]
[null,null,"4)","Menyusun laporan hasil koordinasi;",null,12,null,180,{"$f":"F412*H412","v":{"v":2160,"d":"2,160"}}]
[null,null,"5)","Mengkonsultasikan dan menyampaikan laporan hasil koordinasi ke pimpinan.",null,12,null,60,{"$f":"F413*H413","v":720}]
[]
[null,10,"Menyiapkan bahan penyusunan bahan Laporan Penyelenggaraan Pemerintahan Daerah (LPPD) dan suplemennya, Laporan Keterangan Pertanggungjawaban (LKPJ) Bupati, dan Laporan Akuntabilitas Kinerja Instansi Pemerintah (LAKIP) dan laporan sejenis internal SKPD.",null,"LPPD, LKPJ, LAKIP.",3,"dokumen",{"$f":"I415/F415","v":840},{"$f":"SUM(I416:I421)","v":{"v":2520,"d":"2,520"}}]
[null,null,"1)","Mempelajari pedoman pelaksaaan tugas;",null,3,null,60,{"$f":"F416*H416","v":180},null,"  "]
[null,null,"2)","Melaksanakan inventarisasi data bahan laporan;",null,3,null,180,540]
[null,null,"3)","Melaksanakan analisis dan pengolahan data bahan laporan;",null,3,null,180,540,null,"  "]
[null,null,"4)","Mengkoordinasikan dan memverifikasi data bahan laporan;",null,3,null,180,540,null,"  "]
[null,null,"5)","Menyusun draft laporan;",null,3,null,180,540]
[null,null,"6)","Mengkonsultasikan dan menyampaikan draft laporan ke atasan.",null,3,null,60,180]
[]
[null,11,"Menghimpun dan menyusun laporan-laporan rutin, berkala dan insidentil lainnya sesuai ketentuan untuk disampaikan ke pihak-pihak terkait.",null,"Laporan",12,"dokumen",{"$f":"I423/F423","v":840},{"$f":"SUM(I424:I429)","v":{"v":10080,"d":"10,080"}}]
[null,null,"1)","Mempelajari pedoman pelaksaaan tugas;",null,12,null,60,{"$f":"F424*H424","v":720},null,"  "]
[null,null,"2)","Melaksanakan inventarisasi data bahan laporan;",null,12,null,180,{"v":2160,"d":"2,160"}]
[null,null,"3)","Melaksanakan analisis dan pengolahan data bahan laporan;",null,12,null,180,{"v":2160,"d":"2,160"},null,"  "]
[null,null,"4)","Mengkoordinasikan dan memverifikasi data bahan laporan;",null,12,null,180,{"v":2160,"d":"2,160"},null,"  "]
[null,null,"5)","Menyusun draft laporan;",null,12,null,180,{"v":2160,"d":"2,160"}]
[null,null,"6)","Mengkonsultasikan dan menyampaikan draft laporan ke atasan.",null,12,null,60,720]
[]
[null,12,"Menyusun laporan pelaksanaan tugasnya sesuai prosedur dan peraturan yang berlaku untuk pertanggungjawaban kinerja dan rencana yang akan datang.",null,"Laporan pelaksanaan tugas",12,"dokumen",{"$f":"I431/F431","v":285},{"$f":"SUM(I432:I435)","v":{"v":3420,"d":"3,420"}}]
[null,null,"1)","Mengumpulkan bahan laporan pelaksanaan tugas;",null,12,null,60,{"$f":"F432*H432","v":720}]
[null,null,"2)","Menganalisis bahan penyusunan laporan;",null,12,null,60,{"$f":"F433*H433","v":720}]
[null,null,"3)","Membuat laporan pelaksanaan tugas;",null,12,null,120,{"$f":"F434*H434","v":{"v":1440,"d":"1,440"}}]
[null,null,"4)","Menyampaikan laporan kepada atasan;",null,12,null,45,{"$f":"F435*H435","v":540}]
[]
[null,13,"Melaksanakan tugas kedinasan lain yang diperintahkan oleh pimpinan baik lisan maupun tertulis sesuai prosedur untuk mendukung kelancaran pelaksanaan tugas satuan kerja.",null,"Kegiatan",7,"kali",{"$f":"I437/F437","v":95},{"$f":"SUM(I438:I440)","v":665}]
[null,null,"1)","Mempelajari tugas;",null,7,null,20,{"$f":"F438*H438","v":140}]
[null,null,"2)","Menjalankan tugas;",null,7,null,60,{"$f":"F439*H439","v":420}]
[null,null,"3)","Melaporkan hasil pelaksanaan tugas.",null,7,null,15,{"$f":"F440*H440","v":105}]
[]
["IV.1","KONSEPTUAL & MANAGERIAL (KASUBBAG ADMINISTRASI UMUM)",{"$nulls":6},{"$f":"I443+I449+I456+I463+I470+I477+I490+I497+I504+I510+I518+I526+I536+I542+I548","v":{"v":52490,"d":"52,490"}},"Kasubbag Administrasi Umum","1 orang"]
[null,1,"Merencanakan kegiatan Sub Bagian Administrasi Umum sesuai program kerja Sekretariat Kecamatan dan ketentuan yang berlaku untuk pedoman pelaksanaan tugas.",null,"Program Kerja",2,"dokumen",{"$f":"I443/F443","v":225},{"$f":"SUM(I444:I447)","v":450}]
[null,null,"1)","Menelaah Program Kerja Sekretariat Kecamatan;",null,2,null,60,{"$f":"F444*H444","v":120},null,"  "]
[null,null,"2)","Menyusun konsep rencana kegiatan Sub Bagian Administrasi Umum;",null,2,null,120,{"$f":"F445*H445","v":240},null,"  "]
[null,null,"3)","Mengkonsultasikan konsep rencana kegiatan dengan pimpinan untuk mendapatkan pengarahan;",null,2,null,30,{"$f":"F446*H446","v":60},null,"  "]
[null,null,"4)","Menetapkan rencana kegiatan Sub Bagian Administrasi Umum;",null,2,null,15,{"$f":"F447*H447","v":30}]
[]
[null,2,"Membagi tugas kepada bawahan di lingkungan Sub Bagian Administrasi Umum sesuai dengan beban kerja dan tanggung jawab masing-masing untuk kelancaran pelaksanaan tugas.",null,"Distribusi Tugas",12,"dokumen",{"$f":"I449/F449","v":150},{"$f":"SUM(I450:I454)","v":{"v":1800,"d":"1,800"}},null,"  "]
[null,null,"1)","Menjabarkan rencana kegiatan menjadi tugas-tugas yang harus dilaksanakan bawahan;",null,12,null,30,{"$f":"F450*H450","v":360},null,"  "]
[null,null,"2)","Memaparkan rencana kegiatan; ",null,12,null,30,{"$f":"F451*H451","v":360},null,"  "]
[null,null,"3)","Menghimpun saran dan masukan dari bawahan;",null,12,null,30,{"$f":"F452*H452","v":360},null,"  "]
[null,null,"4)","Menentukan target waktu penyelesaian;",null,12,null,30,{"$f":"F453*H453","v":360}]
[null,null,"5)","Memberikan petunjuk pelaksanaan tugas kepada bawahan.",null,12,null,30,{"$f":"F454*H454","v":360}]
[]
[null,3,"Melaksanakan supervisi pelaksanaan tugas bawahan di lingkungan Sub Bagian Administrasi Umum setiap saat sesuai dengan tugas dan tanggung jawabnya agar pekerjaan berjalan tertib dan lancar.",null,"Kegiatan ",24,"kali",{"$f":"I456/F456","v":180},{"$f":"SUM(I457:I461)","v":{"v":4320,"d":"4,320"}},null,"  "]
[null,null,"1)","Menjelaskan tugas yang akan dilaksanakan bawahan;",null,24,null,30,{"$f":"F457*H457","v":720},null,"  "]
[null,null,"2)","Mengidentifikasi kesulitan yang dialami bawahan;",null,24,null,30,{"$f":"F458*H458","v":720},null,"  "]
[null,null,"3)","Mengkoordinasikan pelaksanaan tugas;",null,24,null,60,{"$f":"F459*H459","v":{"v":1440,"d":"1,440"}}]
[null,null,"4)","Mengkonsultasikan permasalahan kepada pimpinan;",null,24,null,30,{"$f":"F460*H460","v":720},null,"  "]
[null,null,"5)","Memberikan arahan kepada bawahan terkait permasalahan dalam pelaksanaan tugas.",null,24,null,30,{"$f":"F461*H461","v":720}]
[]
[null,4,"Menyusun Rencana Kerja dan Anggaran (RKA) penetapan dan perubahan sesuai ketentuan sebagai pedoman rencana kerja dan anggaran satuan kerja.",null,"RKA",2,"dokumen",{"$f":"I463/F463","v":480},{"$f":"SUM(I464:I468)","v":960}]
[null,null,"1)","Mempelajari pedoman pelaksanaan tugas;",null,2,null,60,{"$f":"F464*H464","v":120}]
[null,null,"2)","Menelaah KUA PPAS dan RKT;",null,2,null,60,{"$f":"F465*H465","v":120}]
[null,null,"3)","Menyusun konsep RKA;",null,2,null,180,{"$f":"F466*H466","v":360}]
[null,null,"4)","Mengkoordinasikan konsep RKA ke pihak-pihak terkait;",null,2,null,120,{"$f":"F467*H467","v":240}]
[null,null,"5)","Mengkonsultasikan dan menyampaikan konsep RKA ke pimpinan.",null,2,null,60,{"$f":"F468*H468","v":120}]
[]
[null,5,"Menyusun Dokumen Pelaksanaan Anggaran (DPA) penetapan maupun perubahan anggaran sesuai ketentuan sebagai pedoman pelaksanaan kegiatan dan anggaran.",null,"DPA",2,"dokumen",{"$f":"I470/F470","v":480},{"$f":"SUM(I471:I475)","v":960}]
[null,null,"1)","Mempelajari pedoman pelaksanaan tugas;",null,2,null,60,{"$f":"F471*H471","v":120}]
[null,null,"2)","Menelaah RKA;",null,2,null,60,{"$f":"F472*H472","v":120}]
[null,null,"3)","Menyusun konsep DPA;",null,2,null,180,{"$f":"F473*H473","v":360}]
[null,null,"4)","Mengkoordinasikan konsep DPA ke pihak-pihak terkait;",null,2,null,120,{"$f":"F474*H474","v":240}]
[null,null,"5)","Mengkonsultasikan dan menyampaikan konsep DPA ke pimpinan.",null,2,null,60,{"$f":"F475*H475","v":120}]
[]
[null,6,"Mengoordinasikan administrasi pengelolaan keuangan satuan kerja mulai dari pembuatan Surat Permintaan Pembayaran (SPP) sampai dengan pengumpulan bukti pertanggungjawaban keuangan serta pembuatan Buku Kas Umum dan Buku Bantu Keuangan.",null,"SPJ",12,"dokumen",{"$f":"I477/F477","v":{"v":1170,"d":"1,170"}},{"$f":"SUM(I478:I488)","v":{"v":14040,"d":"14,040"}}]
[null,null,"1)","Mempelajari pedoman pelaksanaan tugas;",null,12,null,60,{"$f":"F478*H478","v":720}]
[null,null,"2)","Menginventarisasi rencana pencairan keuangan kegiatan;",null,12,null,60,720]
[null,null,"3)","Menyusun konsep dokumen pencairan kegiatan;",null,12,null,180,{"v":2160,"d":"2,160"}]
[null,null,"4)","Mengkonsultasikan dan menyampaikan konsep pencairan keuangan ke pimpinan;",null,12,null,30,360]
[null,null,"5)","Mengajukan dokumen pencairan keuangan;",null,12,null,120,{"v":1440,"d":"1,440"}]
[null,null,"6)","Mencairkan dan mendistribusikan keuangan;",null,12,null,120,{"v":1440,"d":"1,440"}]
[null,null,"7)","Mengumpulkan bukti-bukti pertanggungjawaban penggunaan keuangan;",null,12,null,180,{"v":2160,"d":"2,160"}]
[null,null,"8)","Menyusun konsep dokumen pertanggungjawaban keuangan;",null,12,null,180,{"v":2160,"d":"2,160"}]
[null,null,"9)","Memverifikasi konsep pertanggungjawaban keuangan;",null,12,null,60,720]
[null,null,"10)","Mengkonsultasikan dan menyampaikan konsep pertanggungjawaban keuangan ke pimpinan;",null,12,null,60,720]
[null,null,"11)","Menyampaikan dokumen pertanggungjawaban keuangan ke DPPKAD;",null,12,null,120,{"v":1440,"d":"1,440"}]
[]
[null,7,"Menyiapkan bahan evaluasi dan laporan perkembangan penyerapan anggaran kegiatan SKPD sesuai ketentuan untuk mengetahui realisasi anggaran.",null,"Laporan",12,"dokumen",{"$f":"I490/F490","v":300},{"$f":"SUM(I491:I495)","v":{"v":3600,"d":"3,600"}}]
[null,null,"1)","Mempelajari pedoman pelaksanaan tugas;",null,12,null,30,{"$f":"F491*H491","v":360}]
[null,null,"2)","Mengumpulkan bahan penyusunan laporan;",null,12,null,60,{"$f":"F492*H492","v":720}]
[null,null,"3)","Menyusun konsep laporan;",null,12,null,60,{"$f":"F493*H493","v":720}]
[null,null,"4)","Mengkonsultasikan dan mengajukan konsep laporan ke pimpinan;",null,12,null,30,{"$f":"F494*H494","v":360}]
[null,null,"5)","Menyampaikan laporan ke pihak terkait.",null,12,null,120,{"$f":"F495*H495","v":{"v":1440,"d":"1,440"}}]
[]
[null,8,"Menyusun laporan keuangan dan akuntansi sesuai ketentuan sebagai informasi pengelolaan keuangan.",null,"Laporan",12,"dokumen",{"$f":"I497/F497","v":300},{"$f":"SUM(I498:I502)","v":{"v":3600,"d":"3,600"}}]
[null,null,"1)","Mempelajari pedoman pelaksanaan tugas;",null,12,null,30,{"$f":"F498*H498","v":360}]
[null,null,"2)","Mengumpulkan bahan penyusunan laporan;",null,12,null,60,{"$f":"F499*H499","v":720}]
[null,null,"3)","Menyusun konsep laporan;",null,12,null,60,{"$f":"F500*H500","v":720}]
[null,null,"4)","Mengkonsultasikan dan mengajukan konsep laporan ke pimpinan;",null,12,null,30,{"$f":"F501*H501","v":360}]
[null,null,"5)","Menyampaikan laporan ke pihak terkait.",null,12,null,120,{"$f":"F502*H502","v":{"v":1440,"d":"1,440"}}]
[]
[null,9,"Melaksanakan urusan surat menyurat baik surat masuk maupun keluar sesuai prosedur untuk menertibkan dan memudahkan dalam pencarian kembali.",null,"Surat",500,"dokumen",{"$f":"I504/F504","v":25},{"$f":"SUM(I505:I509)","v":{"v":12500,"d":"12,500"}}]
[null,null,"1)","Menerima, meneliti, memberi lembar disposisi dan mengagenda surat;",null,500,null,10,{"$f":"F505*H505","v":{"v":5000,"d":"5,000"}}]
[null,null,"2)","Mengajukan ke pimpinan;",null,500,null,5,{"$f":"F506*H506","v":{"v":2500,"d":"2,500"}}]
[null,null,"3)","Mencatat disposisi pimpinan;",null,500,null,5,{"$f":"F507*H507","v":{"v":2500,"d":"2,500"}}]
[null,null,"4)","Menggandakan, mengarsipkan dan mendistribusikan ke pihak-pihak terkait.",null,500,null,5,{"$f":"F508*H508","v":{"v":2500,"d":"2,500"}}]
[]
[null,10,"Melaksanakan sistem jaringan dokumentasi dan informasi hukum dan kearsipan seusai ketentuan untuk memudahkan dalam pencarian kembali.",null,"Kegiatan",6,"kali",{"$f":"I510/F510","v":195},{"$f":"SUM(I511:I516)","v":{"v":1170,"d":"1,170"}}]
[null,null,"1)","Mempelajari pedoman pelaksaaan tugas;",null,6,null,30,{"$f":"F511*H511","v":180},null,"  "]
[null,null,"2)","Menyiapkan sarana dan prasarana pengelolaan dokumentasi produk hukum dan kearsipan;",null,6,null,30,180]
[null,null,"3)","Melakukan koordinasi teknis dengan pihak-pihak terkait;",null,6,null,30,180]
[null,null,"4)","Mengkonsultasikan kepada pimpinan.",null,6,null,30,180]
[null,null,"5)","Melaksanakan penataan dokumentasi produk hukum dan kearsipan;",null,6,null,60,360]
[null,null,"6)","Melaporkan hasil kegiatan kepada pimpinan.",null,6,null,15,90]
[]
[null,11,"Melaksanakan pengelolaan dan administrasi rumah tangga, barang atau perlengkapan sesuai ketentuan untuk mendukung pelaksanaan kegiatan satuan kerja.",null,"Administrasi Barang",2,"dokumen",{"$f":"I518/F518","v":555},{"$f":"SUM(I519:I524)","v":{"v":1110,"d":"1,110"}}]
[null,null,"1)","Mempelajari pedoman pelaksanaan tugas;",null,2,null,30,{"$f":"F519*H519","v":60}]
[null,null,"2)","Menyusun rencana kebutuhan barang;",null,2,null,60,120]
[null,null,"3)","Melaksanakan proses pengadaan barang;",null,2,null,60,120]
[null,null,"4)","Melaksanakan inventarisasi dan mengadministrasi barang;",null,2,null,30,60]
[null,null,"5)","Melaksanakan pengelolaan dan pemeliharaan; ",null,12,null,60,720]
[null,null,"6)","Menyusun, mengkonsultasikan dan menyampaikan laporan ke pimpinan.",null,2,null,15,30]
[]
[null,13,"Melaksanakan pengelolaan administrasi kepegawaian dan pengembangan sumber daya manusia sesuai ketentuan untuk mendukung pelaksanaan tugas satuan kerja.",null,"Administrasi Kepegawaian",12,"dokumen",{"$f":"I526/F526","v":210},{"$f":"SUM(I527:I533)","v":{"v":2520,"d":"2,520"}}]
[null,null,"1)","Mempelajari pedoman administrasi kepegawaian;",null,12,null,30,{"$f":"F527*H527","v":360}]
[{"$nulls":3},"Membuat buku-buku administrasi kepegawaian;"]
[null,null,"2)","Mengidentifikasi penjagaan administrasi Kepegawaian sesuai dengan ketentuan;",null,12,null,30,360]
[null,null,"3)","Mengkoordinasikan pelaksanaan pengelolaan administrasi kepegawaian dan pengembangan sumber daya manusia ke pihak-pihak terkait;",null,12,null,60,720]
[null,null,"4)","Menyusun konsep usulan dokumen dan laporan kepegawaian (KP, KGB, DUK, Formasi, dan lainnya);",null,12,null,30,360]
[null,null,"5)","Mengkonsultasikan dan menyampaikan konsep usulan administrasi kepegawaian ke pimpinan;",null,12,null,30,360]
[null,null,"6)","Menyampaikan usulan administrasi kepegawaian ke pihak-pihak terkait;",null,12,null,30,360]
[null,null,"7)","Mengambil, mengarsipkan dan mendistribusikan ke pihak-pihak terkait."]
[]
[null,14,"Melaksanakan monitoring dan evaluasi pelaksanaan tugas di lingkungan Sub Bagian Administrasi Umum dengan cara mengidentifikasi hambatan yang ada dalam rangka perbaikan kinerja di masa mendatang.",null,"Kegiatan",12,"dokumen",{"$f":"I536/F536","v":135},{"$f":"SUM(I537:I540)","v":{"v":1620,"d":"1,620"}},null,"  "]
[null,null,"1)","Mempelajari laporan pelaksanaan kegiatan bawahan;",null,12,null,30,{"$f":"F537*H537","v":360},null,"  "]
[null,null,"2)","Membandingkan target dengan realisasi pelaksanaan tugas;",null,12,null,45,{"$f":"F538*H538","v":540},null,"  "]
[null,null,"3)","Memberikan catatan atau penilaian pada hasil pelaksanaan tugas;",null,12,null,30,{"$f":"F539*H539","v":360},null,"  "]
[null,null,"4)","Memberikan langkah-langkah perbaikan dalam pelaksanaan kegiatan.",null,12,null,30,{"$f":"F540*H540","v":360}]
[]
[null,15,"Menyusun laporan pelaksanaan tugas di lingkungan Sub Bagian Administrasi Umum sesuai prosedur dan peraturan yang berlaku untuk pertanggungjawaban kinerja dan rencana yang akan datang.",null,"Laporan ",12,"dokumen",{"$f":"I542/F542","v":110},{"$f":"SUM(I543:I546)","v":{"v":1320,"d":"1,320"}},null,"  "]
[null,null,"1)","Mengumpulkan bahan laporan pelaksanaan tugas;",null,12,null,20,{"$f":"F543*H543","v":240},null,"  "]
[null,null,"2)","Menganalisis bahan penyusunan laporan;",null,12,null,30,{"$f":"F544*H544","v":360},null,"  "]
[null,null,"3)","Membuat laporan pelaksanaan tugas;",null,12,null,30,{"$f":"F545*H545","v":360},null,"  "]
[null,null,"4)","Menyampaikan laporan kepada pimpinan;",null,12,null,30,{"$f":"F546*H546","v":360}]
[]
[null,16,"Melaksanakan tugas kedinasan lain yang diperintahkan oleh pimpinan baik lisan maupun tertulis sesuai prosedur untuk mendukung kelancaran pelaksanaan tugas satuan kerja.",null,"kegiatan",7,"kali",{"$f":"I548/F548","v":360},{"$f":"SUM(I549:I551)","v":{"v":2520,"d":"2,520"}},null,"  "]
[null,null,"1)","Mempelajari tugas;",null,7,null,120,{"$f":"F549*H549","v":840},null,"  "]
[null,null,"2)","Menjalankan tugas;",null,7,null,60,{"$f":"F550*H550","v":420},null,"  "]
[null,null,"3)","Melaporkan hasil pelaksanaan tugas",null,7,null,180,{"$f":"F551*H551","v":{"v":1260,"d":"1,260"}},null,"  "]
[]
["IV.2","TEKNIK MENENGAH DAN RENDAH (Pengadministrasi Keuangan dan Sarana Prasarana)",{"$nulls":6},{"$f":"I554+I560+I567+I574+I587+I594+I601+I609+I615","v":{"v":38555,"d":"38,555"}},"Pengadministrasi Keuangan dan Sarana Prasarana","1 orang"]
[null,1,"Merencanakan kegiatan yang menjadi tugasnya sesuai program kerja atasannya dan ketentuan yang berlaku untuk pedoman pelaksanaan tugas.",null,"Program Kerja",2,"dokumen",{"$f":"I554/F554","v":435},{"$f":"SUM(I555:I558)","v":870}]
[null,null,"1)","Menelaah Program Kerja yang telah ditetapkan;",null,2,null,180,{"$f":"F555*H555","v":360}]
[null,null,"2)","Menyusun konsep rencana kegiatan;",null,2,null,180,{"$f":"F556*H556","v":360},null,"  "]
[null,null,"3)","Mengkonsultasikan konsep rencana kegiatan dengan pimpinan untuk mendapatkan arahan;",null,2,null,45,{"$f":"F557*H557","v":90},null,"  "]
[null,null,"4)","Menetapkan rencana pelaksanaan kegiatan;",null,2,null,30,{"$f":"F558*H558","v":60}]
[]
[null,2,"Menyiapkan bahan dan menyusun konsep Rencana Kerja dan Anggaran (RKA) penetapan dan perubahan sesuai ketentuan sebagai pedoman rencana kerja dan anggaran satuan kerja.",null,"RKA",2,"dokumen",{"$f":"I560/F560","v":660},{"$f":"SUM(I561:I565)","v":{"v":1320,"d":"1,320"}}]
[null,null,"1)","Mempelajari pedoman pelaksanaan tugas;",null,2,null,60,{"$f":"F561*H561","v":120}]
[null,null,"2)","Menelaah KUA PPAS dan RKT;",null,2,null,120,{"$f":"F562*H562","v":240}]
[null,null,"3)","Menyusun konsep RKA;",null,2,null,240,{"$f":"F563*H563","v":480}]
[null,null,"4)","Mengkoordinasikan konsep RKA ke pihak-pihak terkait;",null,2,null,180,{"$f":"F564*H564","v":360}]
[null,null,"5)","Mengkonsultasikan dan menyampaikan konsep RKA ke pimpinan.",null,2,null,60,{"$f":"F565*H565","v":120}]
[]
[null,3,"Menyiapkan bahan dan menyusun Dokumen Pelaksanaan Anggaran (DPA) penetapan maupun perubahan anggaran sesuai ketentuan sebagai pedoman pelaksanaan kegiatan dan anggaran.",null,"DPA",2,"dokumen",{"$f":"I567/F567","v":600},{"$f":"SUM(I568:I572)","v":{"v":1200,"d":"1,200"}}]
[null,null,"1)","Mempelajari pedoman pelaksanaan tugas;",null,2,null,60,{"$f":"F568*H568","v":120}]
[null,null,"2)","Menelaah RKA;",null,2,null,60,{"$f":"F569*H569","v":120}]
[null,null,"3)","Menyusun konsep DPA;",null,2,null,240,{"$f":"F570*H570","v":480}]
[null,null,"4)","Mengkoordinasikan konsep DPA ke pihak-pihak terkait;",null,2,null,180,{"$f":"F571*H571","v":360}]
[null,null,"5)","Mengkonsultasikan dan menyampaikan konsep DPA ke pimpinan.",null,2,null,60,{"$f":"F572*H572","v":120}]
[]
[null,4,"Melaksanakan pengelolaan administrasi keuangan satuan kerja mulai dari pembuatan Surat Permintaan Pembayaran (SPP) sampai dengan pengumpulan bukti pertanggungjawaban keuangan serta pembuatan Buku Kas Umum dan Buku Bantu Keuangan.",null,"SPJ",12,"dokumen",{"$f":"I574/F574","v":{"v":1440,"d":"1,440"}},{"$f":"SUM(I575:I585)","v":{"v":17280,"d":"17,280"}}]
[null,null,"1)","Mempelajari pedoman pelaksanaan tugas;",null,12,null,60,{"$f":"F575*H575","v":720}]
[null,null,"2)","Menginventarisasi rencana pencairan keuangan kegiatan;",null,12,null,60,720]
[null,null,"3)","Menyusun konsep dokumen pencairan kegiatan;",null,12,null,240,{"v":2880,"d":"2,880"}]
[null,null,"4)","Mengkonsultasikan dan menyampaikan konsep pencairan keuangan ke pimpinan;",null,12,null,60,720]
[null,null,"5)","Mengajukan dokumen pencairan keuangan;",null,12,null,120,{"v":1440,"d":"1,440"}]
[null,null,"6)","Mencairkan dan mendistribusikan keuangan;",null,12,null,120,{"v":1440,"d":"1,440"}]
[null,null,"7)","Mengumpulkan bukti-bukti pertanggungjawaban penggunaan keuangan;",null,12,null,180,{"v":2160,"d":"2,160"}]
[null,null,"8)","Menyusun konsep dokumen pertanggungjawaban keuangan;",null,12,null,300,{"v":3600,"d":"3,600"}]
[null,null,"9)","Memverifikasi konsep pertanggungjawaban keuangan;",null,12,null,120,{"v":1440,"d":"1,440"}]
[null,null,"10)","Mengkonsultasikan dan menyampaikan konsep pertanggungjawaban keuangan ke pimpinan;",null,12,null,60,720]
[null,null,"11)","Menyampaikan dokumen pertanggungjawaban keuangan ke DPPKAD;",null,12,null,120,{"v":1440,"d":"1,440"}]
[]
[null,5,"Menyiapkan bahan evaluasi dan laporan perkembangan penyerapan anggaran kegiatan SKPD sesuai ketentuan untuk mengetahui realisasi anggaran.",null,"Laporan",12,"dokumen",{"$f":"I587/F587","v":360},{"$f":"SUM(I588:I592)","v":{"v":4320,"d":"4,320"}}]
[null,null,"1)","Mempelajari pedoman pelaksanaan tugas;",null,12,null,30,{"$f":"F588*H588","v":360}]
[null,null,"2)","Mengumpulkan bahan penyusunan laporan;",null,12,null,60,{"$f":"F589*H589","v":720}]
[null,null,"3)","Menyusun konsep laporan;",null,12,null,120,{"$f":"F590*H590","v":{"v":1440,"d":"1,440"}}]
[null,null,"4)","Mengkonsultasikan dan mengajukan konsep laporan ke pimpinan;",null,12,null,30,{"$f":"F591*H591","v":360}]
[null,null,"5)","Menyampaikan laporan ke pihak terkait.",null,12,null,120,{"$f":"F592*H592","v":{"v":1440,"d":"1,440"}}]
[]
[null,6,"Menyiapkan bahan dan menyusun konsep laporan keuangan dan akuntansi sesuai ketentuan sebagai informasi pengelolaan keuangan.",null,"Laporan",12,"dokumen",{"$f":"I594/F594","v":510},{"$f":"SUM(I595:I599)","v":{"v":6120,"d":"6,120"}}]
[null,null,"1)","Mempelajari pedoman pelaksanaan tugas;",null,12,null,30,{"$f":"F595*H595","v":360}]
[null,null,"2)","Mengumpulkan bahan penyusunan laporan;",null,12,null,120,{"$f":"F596*H596","v":{"v":1440,"d":"1,440"}}]
[null,null,"3)","Menyusun konsep laporan;",null,12,null,180,{"$f":"F597*H597","v":{"v":2160,"d":"2,160"}}]
[null,null,"4)","Mengkonsultasikan dan mengajukan konsep laporan ke pimpinan;",null,12,null,60,{"$f":"F598*H598","v":720}]
[null,null,"5)","Menyampaikan laporan ke pihak terkait.",null,12,null,120,{"$f":"F599*H599","v":{"v":1440,"d":"1,440"}}]
[]
[null,7,"Melaksanakan pengelolaan dan administrasi rumah tangga, barang atau perlengkapan sesuai ketentuan untuk mendukung pelaksanaan kegiatan satuan kerja.",null,"Administrasi Barang",2,"dokumen",{"$f":"I601/F601","v":{"v":1680,"d":"1,680"}},{"$f":"SUM(I602:I607)","v":{"v":3360,"d":"3,360"}}]
[null,null,"1)","Mempelajari pedoman pelaksanaan tugas;",null,2,null,60,{"$f":"F602*H602","v":120}]
[null,null,"2)","Menyusun konsep rencana kebutuhan barang;",null,2,null,120,240]
[null,null,"3)","Memfasilitasi pelaksanakan proses pengadaan barang;",null,2,null,180,360]
[null,null,"4)","Melaksanakan inventarisasi dan mengadministrasi barang;",null,2,null,180,360]
[null,null,"5)","Melaksanakan pengelolaan dan pemeliharaan; ",null,12,null,180,{"v":2160,"d":"2,160"}]
[null,null,"6)","Menyusun, mengkonsultasikan dan menyampaikan laporan ke pimpinan.",null,2,null,60,120]
[]
[null,8,"Menyusun laporan pelaksanaan tugasnya sesuai prosedur dan peraturan yang berlaku untuk pertanggungjawaban kinerja dan rencana yang akan datang.",null,"Laporan pelaksanaan tugas",12,"dokumen",{"$f":"I609/F609","v":285},{"$f":"SUM(I610:I613)","v":{"v":3420,"d":"3,420"}}]
[null,null,"1)","Mengumpulkan bahan laporan pelaksanaan tugas;",null,12,null,60,{"$f":"F610*H610","v":720}]
[null,null,"2)","Menganalisis bahan penyusunan laporan;",null,12,null,60,{"$f":"F611*H611","v":720}]
[null,null,"3)","Membuat laporan pelaksanaan tugas;",null,12,null,120,{"$f":"F612*H612","v":{"v":1440,"d":"1,440"}}]
[null,null,"4)","Menyampaikan laporan kepada atasan;",null,12,null,45,{"$f":"F613*H613","v":540}]
[]
[null,9,"Melaksanakan tugas kedinasan lain yang diperintahkan oleh pimpinan baik lisan maupun tertulis sesuai prosedur untuk mendukung kelancaran pelaksanaan tugas satuan kerja.",null,"Kegiatan",7,"kali",{"$f":"I615/F615","v":95},{"$f":"SUM(I616:I618)","v":665}]
[null,null,"1)","Mempelajari tugas;",null,7,null,20,{"$f":"F616*H616","v":140}]
[null,null,"2)","Menjalankan tugas;",null,7,null,60,{"$f":"F617*H617","v":420}]
[null,null,"3)","Melaporkan hasil pelaksanaan tugas.",null,7,null,15,{"$f":"F618*H618","v":105}]
[]
["IV.3","TEKNIK MENENGAH DAN RENDAH (Pengadministrasi Kepegawaian dan Persuratan)",{"$nulls":6},{"$f":"I621+I627+I633+I641+I651+I657","v":{"v":37025,"d":"37,025"}},"Pengadministrasi Kepegawaian dan Persuratan","1 orang"]
[null,1,"Merencanakan kegiatan yang menjadi tugasnya sesuai program kerja atasannya dan ketentuan yang berlaku untuk pedoman pelaksanaan tugas.",null,"Program Kerja",2,"dokumen",{"$f":"I621/F621","v":435},{"$f":"SUM(I622:I625)","v":870},null,"  "]
[null,null,"1)","Menelaah Program Kerja yang telah ditetapkan;",null,2,null,180,{"$f":"F622*H622","v":360},null,"  "]
[null,null,"2)","Menyusun konsep rencana kegiatan;",null,2,null,180,{"$f":"F623*H623","v":360},null,"  "]
[null,null,"3)","Mengkonsultasikan konsep rencana kegiatan dengan pimpinan untuk mendapatkan arahan;",null,2,null,45,{"$f":"F624*H624","v":90},null,"  "]
[null,null,"4)","Menetapkan rencana pelaksanaan kegiatan;",null,2,null,30,{"$f":"F625*H625","v":60}]
[]
[null,2,"Menyiapkan bahan dan melaksanakan urusan surat menyurat baik surat masuk maupun keluar sesuai prosedur untuk menertibkan dan memudahkan dalam pencarian kembali.",null,"Surat",500,"dokumen",{"$f":"I627/F627","v":45},{"$f":"SUM(I628:I632)","v":{"v":22500,"d":"22,500"}}]
[null,null,"1)","Menerima, meneliti, memberi lembar disposisi dan mengagenda surat;",null,500,null,15,{"$f":"F628*H628","v":{"v":7500,"d":"7,500"}}]
[null,null,"2)","Mengajukan ke pimpinan;",null,500,null,10,{"$f":"F629*H629","v":{"v":5000,"d":"5,000"}}]
[null,null,"3)","Mencatat disposisi pimpinan;",null,500,null,10,{"$f":"F630*H630","v":{"v":5000,"d":"5,000"}}]
[null,null,"4)","Menggandakan, mengarsipkan dan mendistribusikan ke pihak-pihak terkait.",null,500,null,10,{"$f":"F631*H631","v":{"v":5000,"d":"5,000"}}]
[]
[null,3,"Menyiapkan bahan dan melaksanakan sistem jaringan dokumentasi dan informasi hukum dan kearsipan seusai ketentuan untuk memudahkan dalam pencarian kembali.",null,"Kegiatan",6,"kali",{"$f":"I633/F633","v":330},{"$f":"SUM(I634:I639)","v":{"v":1980,"d":"1,980"}}]
[null,null,"1)","Mempelajari pedoman pelaksaaan tugas;",null,6,null,30,{"$f":"F634*H634","v":180},null,"  "]
[null,null,"2)","Menyiapkan sarana dan prasarana pengelolaan dokumentasi produk hukum dan kearsipan;",null,6,null,60,360]
[null,null,"3)","Melakukan koordinasi teknis dengan pihak-pihak terkait;",null,6,null,60,360]
[null,null,"4)","Mengkonsultasikan kepada pimpinan.",null,6,null,30,180]
[null,null,"5)","Melaksanakan penataan dokumentasi produk hukum dan kearsipan;",null,6,null,120,720]
[null,null,"6)","Melaporkan hasil kegiatan kepada pimpinan.",null,6,null,30,180]
[]
[null,4,"Menyiapkan bahan dan melaksanakan pengelolaan administrasi kepegawaian dan pengembangan sumber daya manusia sesuai ketentuan untuk mendukung pelaksanaan tugas satuan kerja.",null,"Administrasi Kepegawaian",12,"dokumen",{"$f":"I641/F641","v":{"v":632.5,"d":"633"}},{"$f":"SUM(I642:I649)","v":{"v":7590,"d":"7,590"}}]
[null,null,"1)","Mempelajari pedoman administrasi kepegawaian;",null,12,null,60,{"$f":"F642*H642","v":720}]
[null,null,"2)","Membuat buku-buku administrasi kepegawaian;",null,1,null,30,30]
[null,null,"3)","Mengidentifikasi penjagaan administrasi kepegawaian sesuai dengan ketentuan;",null,12,null,60,720]
[null,null,"4)","Melaksanaan pengelolaan administrasi kepegawaian dan pengembangan sumber daya manusia;",null,12,null,60,720]
[null,null,"5)","Menyusun konsep usulan dokumen dan laporan kepegawaian (KP, KGB, DUK, Formasi, dan lainnya);",null,12,null,180,{"v":2160,"d":"2,160"}]
[null,null,"6)","Mengkonsultasikan dan menyampaikan konsep usulan administrasi kepegawaian ke pimpinan;",null,12,null,30,360]
[null,null,"7)","Menyampaikan usulan administrasi kepegawaian ke pihak-pihak terkait;",null,12,null,120,{"v":1440,"d":"1,440"}]
[null,null,"8)","Mengambil, mengarsipkan dan mendistribusikan ke pihak-pihak terkait.",null,12,null,120,{"v":1440,"d":"1,440"}]
[]
[null,5,"Menyusun laporan pelaksanaan tugasnya sesuai prosedur dan peraturan yang berlaku untuk pertanggungjawaban kinerja dan rencana yang akan datang.",null,"Laporan pelaksanaan tugas",12,"dokumen",{"$f":"I651/F651","v":285},{"$f":"SUM(I652:I655)","v":{"v":3420,"d":"3,420"}}]
[null,null,"1)","Mengumpulkan bahan laporan pelaksanaan tugas;",null,12,null,60,{"$f":"F652*H652","v":720}]
[null,null,"2)","Menganalisis bahan penyusunan laporan;",null,12,null,60,{"$f":"F653*H653","v":720}]
[null,null,"3)","Membuat laporan pelaksanaan tugas;",null,12,null,120,{"$f":"F654*H654","v":{"v":1440,"d":"1,440"}}]
[null,null,"4)","Menyampaikan laporan kepada atasan;",null,12,null,45,{"$f":"F655*H655","v":540}]
[]
[null,6,"Melaksanakan tugas kedinasan lain yang diperintahkan oleh pimpinan baik lisan maupun tertulis sesuai prosedur untuk mendukung kelancaran pelaksanaan tugas satuan kerja.",null,"Kegiatan",7,"kali",{"$f":"I657/F657","v":95},{"$f":"SUM(I658:I660)","v":665}]
[null,null,"1)","Mempelajari tugas;",null,7,null,20,{"$f":"F658*H658","v":140}]
[null,null,"2)","Menjalankan tugas;",null,7,null,60,{"$f":"F659*H659","v":420}]
[null,null,"3)","Melaporkan hasil pelaksanaan tugas.",null,7,null,15,{"$f":"F660*H660","v":105}]
[]
["V.1","KONSEPTUAL & MANAGERIAL (KASI TAPEM)",{"$nulls":6},{"$f":"I663+I669+I676+I683+I690+I697+I705+I712+I719+I726+I733+I740+I747+I758+I764+I770","v":{"v":88680,"d":"88,680"}},"Kasi Tata Pemerintahan","1 orang"]
[null,1,"Merencanakan kegiatan Seksi Tata Pemerintahan sesuai program kerja kecamatan dan ketentuan yang berlaku untuk pedoman pelaksanaan tugas.",null,"Program Kerja",2,"dokumen",{"$f":"I663/F663","v":225},{"$f":"SUM(I664:I667)","v":450}]
[null,null,"1)","Menelaah Program Kerja Kecamatan;",null,2,null,60,{"$f":"F664*H664","v":120},null,"  "]
[null,null,"2)","Menyusun konsep rencana kegiatan Seksi Tata Pemerintahan;",null,2,null,120,{"$f":"F665*H665","v":240},null,"  "]
[null,null,"3)","Mengkonsultasikan konsep rencana kegiatan dengan pimpinan untuk mendapatkan pengarahan;",null,2,null,30,{"$f":"F666*H666","v":60},null,"  "]
[null,null,"4)","Menetapkan rencana kegiatan Seksi Tata Pemerintahan;",null,2,null,15,{"$f":"F667*H667","v":30}]
[]
[null,2,"Membagi tugas kepada bawahan di lingkungan Seksi Tata Pemerintahan sesuai dengan beban kerja dan tanggung jawab masing-masing untuk kelancaran pelaksanaan tugas.",null,"Distribusi Tugas",12,"dokumen",{"$f":"I669/F669","v":150},{"$f":"SUM(I670:I674)","v":{"v":1800,"d":"1,800"}},null,"  "]
[null,null,"1)","Menjabarkan rencana kegiatan menjadi tugas-tugas yang harus dilaksanakan bawahan;",null,12,null,30,{"$f":"F670*H670","v":360},null,"  "]
[null,null,"2)","Memaparkan rencana kegiatan; ",null,12,null,30,{"$f":"F671*H671","v":360},null,"  "]
[null,null,"3)","Menghimpun saran dan masukan dari bawahan;",null,12,null,30,{"$f":"F672*H672","v":360},null,"  "]
[null,null,"4)","Menentukan target waktu penyelesaian;",null,12,null,30,{"$f":"F673*H673","v":360}]
[null,null,"5)","Memberikan petunjuk pelaksanaan tugas kepada bawahan.",null,12,null,30,{"$f":"F674*H674","v":360}]
[]
[null,3,"Melaksanakan supervisi pelaksanaan tugas bawahan di lingkungan Seksi Tata Pemerintahan setiap saat sesuai dengan tugas dan tanggung jawabnya agar pekerjaan berjalan tertib dan lancar.",null,"Kegiatan ",24,"kali",{"$f":"I676/F676","v":180},{"$f":"SUM(I677:I681)","v":{"v":4320,"d":"4,320"}},null,"  "]
[null,null,"1)","Menjelaskan tugas yang akan dilaksanakan bawahan;",null,24,null,30,{"$f":"F677*H677","v":720},null,"  "]
[null,null,"2)","Mengidentifikasi kesulitan yang dialami bawahan;",null,24,null,30,{"$f":"F678*H678","v":720},null,"  "]
[null,null,"3)","Mengkoordinasikan pelaksanaan tugas;",null,24,null,60,{"$f":"F679*H679","v":{"v":1440,"d":"1,440"}}]
[null,null,"4)","Mengkonsultasikan permasalahan kepada pimpinan;",null,24,null,30,{"$f":"F680*H680","v":720},null,"  "]
[null,null,"5)","Memberikan arahan kepada bawahan terkait permasalahan dalam pelaksanaan tugas.",null,24,null,30,{"$f":"F681*H681","v":720}]
[]
[null,4,"Menyiapkan bahan, rencana, dan melaksanakan pembinaan pemerintahan desa dan/atau kelurahan sesuai ketentuan untuk kelancaran penyelenggaraan pemerintahan desa dan/atau kelurahan. ",null,"Kegiatan",8,"kali",{"$f":"I683/F683","v":215},{"$f":"SUM(I684:I688)","v":{"v":1720,"d":"1,720"}}]
[null,null,"1)","Mempelajari peraturan perundangan, petunjuk teknis dan kebijakan pelaksanaan kegiatan ",null,8,null,20,{"$f":"F684*H684","v":160}]
[null,null,"2)","Mengidentifikasi kesulitan yang dialami pemerintah desa;",null,10,null,60,{"$f":"F685*H685","v":600}]
[null,null,"3)","Mengkoordinasikan pelaksanaan tugas;",null,8,null,60,{"$f":"F686*H686","v":480}]
[null,null,"4)","Mengkonsultasikan permasalahan kepada pimpinan;",null,6,null,20,{"$f":"F687*H687","v":120}]
[null,null,"5)","Mengkomunikasikan kepada pimpinan dan ke Bagian Tata Pemerintahan",null,6,null,60,{"$f":"F688*H688","v":360}]
[]
[null,5,"Melaksanakan koordinasi teknis dan sinkronisasi perencanaan dengan SKPD dan/ atau UPT serta instansi vertikal dalam penyelenggaraan kegiatan pemerintahan.",null,"Kegiatan",20,"kali",{"$f":"I690/F690","v":440},{"$f":"SUM(I691:I696)","v":{"v":8800,"d":"8,800"}}]
[null,null,"1)","Mempelajari peraturan perundangan, petunjuk teknis dan kebijakan pelaksanaan kegiatan ",null,10,null,30,{"$f":"F691*H691","v":300}]
[null,null,"2)","Menelaah pelaksanaan kegiatan tahun sebelumnya dan menyusun rencana kegiatan tahun berjalan",null,20,null,60,{"$f":"F692*H692","v":{"v":1200,"d":"1,200"}}]
[null,null,"3)","Menyusun rencana jadwal pelaksanaan kegiatan",null,20,null,120,{"$f":"F693*H693","v":{"v":2400,"d":"2,400"}}]
[null,null,"4)","Menganalisa bahan pelaksanaan kegiatan",null,20,null,200,{"$f":"F694*H694","v":{"v":4000,"d":"4,000"}}]
[null,null,"5)","Mengkonsultasikan kepada pimpinan;",null,20,null,45,{"$f":"F695*H695","v":900}]
[]
[null,6,"Melaksanakan pembinaan, bimbingan, fasilitasi, supervisi, konsultasi dan pengawasan pelaksanaan tertib administrasi desa dan/atau kelurahan sesuai ketentuan untuk terwujudnya tertib administrasi desa dan/atau kelurahan.",null,"Kegiatan",20,"kali",{"$f":"I697/F697","v":270},{"$f":"SUM(I698:I703)","v":{"v":5400,"d":"5,400"}}]
[null,null,"1)","Mempelajari peraturan perundangan, petunjuk teknis dan kebijakan pelaksanaan kegiatan ",null,8,null,30,{"$f":"F698*H698","v":240}]
[null,null,"2)","Menelaah pelaksanaan kegiatan tahun sebelumnya dan menyusun rencana kegiatan tahun berjalan",null,18,null,60,{"v":1080,"d":"1,080"}]
[null,null,"3)","Mengidentifikasi permasalahan pemerintahan desa",null,18,null,120,{"v":2160,"d":"2,160"}]
[null,null,"4)","Menyusun rancangan pedoman teknis pelaksanaan kegiatan",null,2,null,90,180]
[null,null,"5)","Mengkomunikasikan ke Bagian Tata Pemerintahan",null,20,null,60,{"v":1200,"d":"1,200"}]
[null,null,"6)","Mengkonsultasikan permasalahan kepada pimpinan",null,18,null,30,540]
[]
[null,7,"Menyelenggarakan pelayanan masyarakat yang menjadi ruang lingkup tugasnya antara lain pelayanan rekomendasi, perizinan, surat keterangan, legalisasi, pelayanan kependudukan dan pencatatan sipil.",null,"Layanan Umum",{"v":1000,"d":"1,000"},"dokumen",{"$f":"I705/F705","v":{"v":13.16,"d":"13"}},{"$f":"SUM(I706:I710)","v":{"v":13160,"d":"13,160"}}]
[null,null,"1)","Mempelajari pedoman pelaksanaan tugas;",null,12,null,30,{"$f":"F706*H706","v":360},null,"  "]
[null,null,"2)","Mempelajari, meneliti, dan memverifikasi kelangkapan dokumen pengajuan pelayanan;",null,{"v":1000,"d":"1,000"},null,5,{"$f":"F707*H707","v":{"v":5000,"d":"5,000"}},null,"  "]
[null,null,"3)","Mengkoordinasikan pengajuan pelayanan ke pihak-pihak terkait;",null,60,null,30,{"$f":"F708*H708","v":{"v":1800,"d":"1,800"}},null,"  "]
[null,null,"4)","Memberikan rekomendasi persetujuan atau penolakan atas pangajuan pelayanan;",null,{"v":1000,"d":"1,000"},null,5,{"$f":"F709*H709","v":{"v":5000,"d":"5,000"}},null,"  "]
[null,null,"5)","Menyampaikan dokumen pengajuan pelayanan ke pimpinan.",null,200,null,5,{"$f":"F710*H710","v":{"v":1000,"d":"1,000"}}]
[]
[null,8,"Melaksanakan pengisian dan pemutakhiran data monografi kecamatan sesuai ketentuan sebagai sumber informasi dinamis kecamatan.",null,"Data Monografi",12,"dokumen",{"$f":"I712/F712","v":330},{"$f":"SUM(I713:I717)","v":{"v":3960,"d":"3,960"}}]
[null,null,"1)","Melaksanakan inventarisasi data;",null,12,null,120,{"$f":"F713*H713","v":{"v":1440,"d":"1,440"}},null,"  "]
[null,null,"2)","Melaksanakan klarifikasi, verifikasi dan validasi data;",null,12,null,60,{"$f":"F714*H714","v":720},null,"  "]
[null,null,"3)","Melaksanakan pengolahan data;",null,12,null,60,{"$f":"F715*H715","v":720},null,"  "]
[null,null,"4)","Melaksanakan pengisian data monografi kecamatan;",null,12,null,60,{"$f":"F716*H716","v":720},null,"  "]
[null,null,"5)","Mengkonsultasikan dan menyampaikan data ke atasan.",null,12,null,30,{"$f":"F717*H717","v":360}]
[]
[null,9,"Melaksanakan fasilitasi penyusunan produk-produk hukum desa sesuai ketentuan untuk memberikan kemudahan desa dalam penyusunan produk hukum desa.",null,"Rancangan produk hukum desa",10,"dokumen",{"$f":"I719/F719","v":183},{"$f":"SUM(I720:I724)","v":{"v":1830,"d":"1,830"}}]
[null,null,1,"Mempelajari peraturan perundangan, petunjuk teknis dan kebijakan pelaksanaan kegiatan ",null,8,null,45,{"$f":"F720*H720","v":360}]
[null,null,2,"Menelaah pelaksanaan kegiatan tahun sebelumnya dan menyusun rencana kegiatan tahun berjalan",null,5,null,60,{"$f":"F721*H721","v":300},null,"  "]
[null,null,3,"Menyusun rancangan mekanisme pelaksanaan fasilitasi penyusunan produk hukum desa",null,4,null,120,{"$f":"F722*H722","v":480},null,"  "]
[null,null,4,"Melaksanakan fasilitasi penyusunan produk hukum desa",null,2,null,120,{"$f":"F723*H723","v":240}]
[null,null,5,"Mengkomunikasikan dengan Bagian Tata Pemerintahan dan Bagian Hukum Setda",null,10,null,45,{"$f":"F724*H724","v":450}]
[]
[null,10,"Memfasilitasi kerjasama dan penyelesaian konflik antar desa dan/atau kelurahan sesuai ketentuan untuk memacu perkembangan dan kondusifitas desa dan/atau kelurahan.",null,"Kegiatan",10,"kali",{"$f":"I726/F726","v":300},{"$f":"SUM(I727:I731)","v":{"v":3000,"d":"3,000"}}]
[null,null,"1)","Mempelajari peraturan perundangan, petunjuk teknis dan kebijakan pelaksanaan kegiatan ",null,8,null,60,{"$f":"F727*H727","v":480}]
[null,null,"2)","Meneliti substansi kebijakan kerjasama",null,10,null,60,{"$f":"F728*H728","v":600}]
[null,null,"3)","Mengkonsultasikan permasalahan kepada pimpinan;",null,8,null,60,{"$f":"F729*H729","v":480}]
[null,null,"4)","Mengidentifikasi permasalahan",null,8,null,90,{"$f":"F730*H730","v":720}]
[null,null,"5)","Memberikan langkah-langkah perbaikan dalam pelaksanaan kegiatan.",null,8,null,90,{"$f":"F731*H731","v":720}]
[]
[null,11,"Melaksanakan kegiatan administrasi kependudukan di tingkat kecamatan sesuai ketentuan untuk menyiapkan informasi kependudukan.",null,"Administrasi kependudukan",{"v":1000,"d":"1,000"},"dokumen",{"$f":"I733/F733","v":{"v":17.52,"d":"18"}},{"$f":"SUM(I734:I738)","v":{"v":17520,"d":"17,520"}}]
[null,null,"1)","Mempelajari peraturan perundangan, petunjuk teknis dan kebijakan pelaksanaan kegiatan ",null,12,null,30,{"$f":"F734*H734","v":360}]
[null,null,"2)","Menelaah pelaksanaan kegiatan tahun sebelumnya dan menyusun rencana kegiatan tahun berjalan",null,12,null,120,{"$f":"F735*H735","v":{"v":1440,"d":"1,440"}}]
[null,null,"3)","Memantau pelaksanaan pelayanan KK, KTP, dan pindah penduduk",null,250,null,30,{"$f":"F736*H736","v":{"v":7500,"d":"7,500"}}]
[null,null,"4)","Memantau proses entry data di aplikasi SIAK, berikut penerbitan KK dan KTP",null,250,null,30,{"$f":"F737*H737","v":{"v":7500,"d":"7,500"}}]
[null,null,"5)","Memantau pergerakan data jumlah penduduk setiap akhir bulan",null,12,null,60,{"$f":"F738*H738","v":720}]
[]
[null,12,"Melaksanakan pengawasan, pembinaan, dan pengurusan administrasi kepegawaian kepala desa dan perangkat desa serta Lurah dan Perangkat Kelurahan sesuai ketentuan untuk meningkatkan disiplin .",null,"Kegiatan",24,"kali",{"$f":"I740/F740","v":205},{"$f":"SUM(I741:I746)","v":{"v":4920,"d":"4,920"}}]
[null,null,"1)","Mempelajari peraturan perundangan, petunjuk teknis dan kebijakan pelaksanaan kegiatan ",null,8,null,30,{"$f":"F741*H741","v":240}]
[null,null,"2)","Menyusun rancangan mekanisme pelaksanaan kegiatan",null,8,null,180,{"$f":"F742*H742","v":{"v":1440,"d":"1,440"}}]
[null,null,"3)","Menyusun rancangan mekanisme dan pedoman pengelolaan dan peremajaan data kepala desa dan  perangkat desa",null,10,null,180,{"$f":"F743*H743","v":{"v":1800,"d":"1,800"}}]
[null,null,"4)","Melakukan pemantauan pengelolaan dan peremajaan data kepala desa dan perangkat desa",null,24,null,30,{"$f":"F744*H744","v":720}]
[null,null,"5)","Melaksanakan evaluasi pengelolaan dan peremajaan data kepala desa dan  perangkat desa",null,24,null,30,{"$f":"F745*H745","v":720}]
[]
[null,13,"Memfasilitasi kegiatan pengisian jabatan Kepala Desa, Perangkat Desa, BPD dan pengurus lembaga kemasyarakatan desa berdasarkan peraturan yang berlaku agar setiap tahapan kegiatan berjalan dengan lancar dan sesuai ketentuan yang ada.",null,"Kegiatan",25,"kali",{"$f":"I747/F747","v":{"v":617.4,"d":"617"}},{"$f":"SUM(I748:I756)","v":{"v":15435,"d":"15,435"}}]
[null,null,"1)","Mempelajari peraturan perundang-undangan terkait",null,10,null,45,{"$f":"F748*H748","v":450}]
[null,null,"2)","Menyusun rancangan tahapan kegiatan",null,2,null,180,360]
[null,null,"3)","Membagi tugas-tugas teknis kepada bawahan",null,25,null,60,{"v":1500,"d":"1,500"}]
[null,null,"4)","Menyelia tugas-tugas bawahan",null,25,null,75,{"v":1875,"d":"1,875"}]
[null,null,"5)","Berkoordinasi dengan instansi terkait",null,25,null,120,{"v":3000,"d":"3,000"}]
[null,null,"6)","Monitoring kegiatan Pilkades, pengisian perangkat desa dan pengisian BPD di lapangan",null,25,null,120,{"v":3000,"d":"3,000"}]
[null,null,"7)","mengkonsultasikan permasalahan kepada pimpinan",null,25,null,45,{"v":1125,"d":"1,125"}]
[null,null,"8)","Monitoring dan evaluasi pelaksanaan kegiatan",null,25,null,120,{"v":3000,"d":"3,000"}]
[null,null,"9)","Melaporkan hasil pelaksanaan kegiatan kepada pimpinan",null,25,null,45,{"v":1125,"d":"1,125"}]
[]
[null,14,"Melaksanakan monitoring dan evaluasi pelaksanaan tugas di lingkungan Seksi Tata Pemerintahan dengan cara mengidentifikasi hambatan yang ada dalam rangka perbaikan kinerja di masa mendatang.",null,"Laporan hasil monitoring dan evaluasi",12,"dokumen",{"$f":"I758/F758","v":135},{"$f":"SUM(I759:I762)","v":{"v":1620,"d":"1,620"}},null,"  "]
[null,null,"1)","Mempelajari laporan pelaksanaan kegiatan bawahan;",null,12,null,30,{"$f":"F759*H759","v":360},null,"  "]
[null,null,"2)","Membandingkan target dengan realisasi pelaksanaan tugas;",null,12,null,45,{"$f":"F760*H760","v":540},null,"  "]
[null,null,"3)","Memberikan catatan atau penilaian pada hasil pelaksanaan tugas;",null,12,null,30,{"$f":"F761*H761","v":360},null,"  "]
[null,null,"4)","Memberikan langkah-langkah perbaikan dalam pelaksanaan kegiatan.",null,12,null,30,{"$f":"F762*H762","v":360}]
[]
[null,15,"Menyusun laporan pelaksanaan tugas di lingkungan Seksi Tata Pemerintahan sesuai prosedur dan peraturan yang berlaku untuk pertanggungjawaban kinerja dan rencana yang akan datang.",null,"Laporan pelaksanaan tugas",12,"dokumen",{"$f":"I764/F764","v":285},{"$f":"SUM(I765:I768)","v":{"v":3420,"d":"3,420"}}]
[null,null,"1)","Mengumpulkan bahan laporan pelaksanaan tugas;",null,12,null,60,{"$f":"F765*H765","v":720}]
[null,null,"2)","Menganalisis bahan penyusunan laporan;",null,12,null,60,{"$f":"F766*H766","v":720}]
[null,null,"3)","Membuat laporan pelaksanaan tugas;",null,12,null,120,{"$f":"F767*H767","v":{"v":1440,"d":"1,440"}}]
[null,null,"4)","Menyampaikan laporan kepada atasan;",null,12,null,45,{"$f":"F768*H768","v":540}]
[]
[null,16,"Melaksanakan tugas kedinasan lain yang diperintahkan oleh pimpinan baik lisan maupun tertulis sesuai prosedur untuk mendukung kelancaran pelaksanaan tugas satuan kerja.",null,"Kegiatan",15,"kali",{"$f":"I770/F770","v":{"v":88.33333333333333,"d":"88"}},{"$f":"SUM(I771:I774)","v":{"v":1325,"d":"1,325"}}]
[null,null,"1)","Mempelajari tugas;",null,10,null,20,{"$f":"F771*H771","v":200}]
[null,null,"2)","Menjalankan tugas;",null,15,null,60,{"$f":"F772*H772","v":900}]
[null,null,"3)","Melaporkan hasil pelaksanaan tugas.",null,15,null,15,{"$f":"F773*H773","v":225}]
[]
["III.1","Teknik Tinggi",{"$nulls":6},{"$f":"I776+I782+I788+I795+I802+I809+I816+I823+I831+I838+I847+I853","v":{"v":49590,"d":"49,590"}},"Pengolah Data Pemerintahan dan Pelayanan Umum","1 orang"]
[null,1,"Merencanakan kegiatan yang menjadi tugasnya sesuai program kerja  atasannya dan ketentuan yang berlaku untuk pedoman pelaksanaan tugas.",null,"Program Kerja",2,"dokumen",{"$f":"I776/F776","v":{"v":772.5,"d":"773"}},{"$f":"SUM(I777:I780)","v":{"v":1545,"d":"1,545"}},null,"  "]
[null,null,"1)","Menelaah Program Kerja yang telah ditetapkan;",null,5,null,180,{"$f":"F777*H777","v":900},null,"  "]
[null,null,"2)","Menyusun konsep rencana kegiatan;",null,2,null,180,{"$f":"F778*H778","v":360},null,"  "]
[null,null,"3)","Mengkonsultasikan konsep rencana kegiatan dengan pimpinan untuk mendapatkan arahan;",null,5,null,45,{"$f":"F779*H779","v":225},null,"  "]
[null,null,"4)","Menetapkan rencana pelaksanaan kegiatan;",null,2,null,30,{"$f":"F780*H780","v":60}]
[]
[null,2,"Menyiapkan bahan dalam kegiatan evaluasi pegawai dilingkup seksi pemerintahan melalui pengkajian terhadap kinerja pegawai dalam rangka pengembangan karier pegawai.",null,"Laporan Pelaksa naan Tugas",6,"dokumen",{"$f":"I782/F782","v":405},{"$f":"SUM(I783:I786)","v":{"v":2430,"d":"2,430"}},null,"  "]
[null,null,"1)","Mempelajari peraturan perundangan, petunjuk teknis dan kebijakan pelaksanaan kegiatan ",null,6,null,45,{"$f":"F783*H783","v":270},null,"  "]
[null,null,"2)","Mempelajari pelaksanaan tugas tahun sebelumnya dan menyusun rencana teknis pelaksanaan tugas untuk tahun berjalan",null,6,null,60,{"$f":"F784*H784","v":360},null,"  "]
[null,null,"3)","Menyiapkan bahan penyusunan pedoman pelaksanaan dan teknis kegiatan ",null,6,null,180,{"$f":"F785*H785","v":{"v":1080,"d":"1,080"}},null,"  "]
[null,null,"4)","Menyiapkan bahan dan surat-surat yang diperlukan untuk mensosialisasikan kegiatan monitoring/pembinaan administrasi kepegawaian ",null,6,null,120,{"$f":"F786*H786","v":720}]
[]
[null,3,"Menyiapkan bahan dan menganalisis data dalam pemberian pelayanan masyarakat yang menjadi ruang lingkup tugasnya antara lain pelayanan rekomendasi, perizinan, surat keterangan, legalisasi, pelayanan kependudukan dan pencatatan sipil.",null,"Layanan Masyarakat",100,"dokumen",{"$f":"I788/F788","v":{"v":91.5,"d":"92"}},{"$f":"SUM(I789:I793)","v":{"v":9150,"d":"9,150"}}]
[null,null,"1)","Mempelajari peraturan perundangan, petunjuk teknis dan kebijakan pelaksanaan kegiatan ",null,15,null,45,{"$f":"F789*H789","v":675},null,"  "]
[null,null,"2)","Mempelajari pelaksanaan tugas tahun sebelumnya dan menyusun rencana teknis pelaksanaan tugas untuk tahun berjalan",null,15,null,45,{"$f":"F790*H790","v":675},null,"  "]
[null,null,"3)","Menyiapkan bahan penyusunan pedoman pelaksanaan dan teknis kegiatan evaluasi pelayanan masyarakat ",null,20,null,90,{"$f":"F791*H791","v":{"v":1800,"d":"1,800"}},null,"  "]
[null,null,"4)","Menyiapkan bahan dan surat-surat yang diperlukan untuk mensosialisasikan kegiatan",null,20,null,60,{"$f":"F792*H792","v":{"v":1200,"d":"1,200"}}]
[null,null,"5)","Menganalisa permasalahan-permasalahan dalam pelaksanaan kegiatan dalam rangka penyelesaian pekerjaan",null,40,null,120,{"$f":"F793*H793","v":{"v":4800,"d":"4,800"}}]
[]
[null,4,"Menyiapkan bahan untuk fasilitasi penyusunan produk-produk hukum desa sesuai ketentuan untuk mempermudah penyusunan produk hukum desa.",null,"Bahan pelaksanaan tugas",10,"dokumen",{"$f":"I795/F795","v":{"v":394.5,"d":"395"}},{"$f":"SUM(I796:I800)","v":{"v":3945,"d":"3,945"}}]
[null,null,1,"Mempelajari peraturan perundangan, petunjuk teknis dan kebijakan pelaksanaan kegiatan ",null,5,null,45,{"$f":"F796*H796","v":225}]
[null,null,2,"Mencatat dan mengoreksi tata naskah dalam produk hukum desa",null,8,null,90,{"$f":"F797*H797","v":720}]
[null,null,3,"Menyiapkan bahan penyusunan produk hukum desa",null,10,null,60,{"$f":"F798*H798","v":600}]
[null,null,4,"Menyusun konsep informasi penyusunan produk hukum desa",null,10,null,120,{"$f":"F799*H799","v":{"v":1200,"d":"1,200"}}]
[null,null,5,"Menyempurnakan kembali konsep informasi produk hukum desa setelah dikoreksi atasan",null,10,null,120,{"$f":"F800*H800","v":{"v":1200,"d":"1,200"}}]
[]
[null,5,"Menyiapkan bahan dan rencana pembinaan pemerintahan desa sesuai ketentuan untuk meningkatkan kinerja pemerintahan desa. ",null,"Bahan pelaksanaan tugas",2,"dokumen",{"$f":"I802/F802","v":990},{"$f":"SUM(I803:I807)","v":{"v":1980,"d":"1,980"}}]
[null,null,"1)","Mempelajari peraturan perundangan, petunjuk teknis dan kebijakan pelaksanaan kegiatan ",null,6,null,60,{"$f":"F803*H803","v":360}]
[null,null,"2)","Menginventarisir laporan permasalahan pemerintahan desa",null,6,null,30,{"$f":"F804*H804","v":180}]
[null,null,"3)","Mengonsep jadwal dan teknis kegiatan",null,4,null,120,{"$f":"F805*H805","v":480}]
[null,null,"4)","Menyiapkan bahan evaluasi",null,4,null,120,{"$f":"F806*H806","v":480}]
[null,null,"5)","Menyusun konsep hasil pelaksanaan kegiatan",null,4,null,120,{"$f":"F807*H807","v":480}]
[]
[null,6,"Menyiapkan bahan dan rencana fasilitasi kerjasama dan penyelesaian konflik antar desa sesuai ketentuan untuk meningkatkan kesejahteraan masyarakat desa.",null,"Bahan pelaksanaan tugas",10,"dokumen",{"$f":"I809/F809","v":366},{"$f":"SUM(I810:I814)","v":{"v":3660,"d":"3,660"}}]
[null,null,"1)","Mempelajari peraturan perundangan, petunjuk teknis dan kebijakan pelaksanaan kegiatan ",null,8,null,45,{"$f":"F810*H810","v":360}]
[null,null,"2)","Menganalisa karakteristik desa secara keseluruhan",null,10,null,90,{"$f":"F811*H811","v":900}]
[null,null,"3)","Mengonsep jadwal dan teknis kegiatan",null,8,null,120,{"$f":"F812*H812","v":960}]
[null,null,"4)","Menyiapkan bahan evaluasi",null,8,null,60,{"$f":"F813*H813","v":480}]
[null,null,"5)","Menyusun konsep hasil pelaksanaan kegiatan",null,8,null,120,{"$f":"F814*H814","v":960}]
[]
[null,7,"Menyiapkan bahan dan rencana pengendalian kegiatan administrasi kependudukan di tingkat kecamatan sesuai ketentuan untuk tertibnya administrasi kependudukan kecamatan.",null,"Bahan pelaksanaan tugas",6,"dokumen",{"$f":"I816/F816","v":360},{"$f":"SUM(I817:I821)","v":{"v":2160,"d":"2,160"}}]
[null,null,1,"Mempelajari peraturan perundangan, petunjuk teknis dan kebijakan pelaksanaan kegiatan ",null,6,null,30,{"$f":"F817*H817","v":180}]
[null,null,2,"Menerjemahkan arus pertumbuhan penduduk ke dalam grafik data monografi",null,6,null,120,{"$f":"F818*H818","v":720}]
[null,null,3,"Memantau dan memback-up data di server SIAK secara berkala",null,6,null,60,{"$f":"F819*H819","v":360}]
[null,null,4,"Menguji jaringan internet dan aplikasi SIAK untuk meminimalkan kesalahan dalam proses entry data",null,6,null,90,{"$f":"F820*H820","v":540}]
[null,null,5,"Menghimpun informasi data perkembangan penduduk",null,6,null,60,{"$f":"F821*H821","v":360}]
[]
[null,8,"Menyiapkan dan menganalisis bahan penyusunan rencana teknis kegiatan pembinaan, fasilitasi, superevisi, dan konsultasi pelaksanaan tertib administrasi desa sesuai ketentuan untuk mendukung terwujudnya tertib administrasi desa.",null,"Bahan pelaksanaan tugas",10,"dokumen",{"$f":"I823/F823","v":486},{"$f":"SUM(I824:I829)","v":{"v":4860,"d":"4,860"}}]
[null,null,"1)","Mempelajari peraturan perundangan, petunjuk teknis dan kebijakan pelaksanaan kegiatan ",null,8,null,30,{"$f":"F824*H824","v":240}]
[null,null,"2)","Mempelajari dan menganalisa pelaksanaan kegiatan tahun sebelumnya ",null,8,null,90,720]
[null,null,"3)","Mempelajari dan menyiapakan bahan untuk memformulasikan permasalahan tertib administrasi desa",null,10,null,60,600]
[null,null,4,"Mengumpulkan dan menyiapkan bahan kerja untuk menyusun rancangan pedoman pelaksanaan dan teknis kegiatan",null,10,null,90,900]
[null,null,5,"Menginventarisir permasalahan yang dituangkan kedalam jurnal pokok kecamatan untuk agenda evaluasi bulanan",null,10,null,120,{"v":1200,"d":"1,200"}]
[null,null,6,"Meneliti permasalahan-permasalahan dalam rangka penyelesaian pekerjaan",null,10,null,120,{"v":1200,"d":"1,200"}]
[]
[null,9,"Menyiapkan bahan koordinasi teknis dan sinkronisasi perencanaan dengan SKPD dan/ atau UPT serta instansi vertikal dalam penyelenggaraan kegiatan pemerintahan sesuai ketentuan untuk terwujudnya harmonisasi kegiatan pemerintahan.",null,"Bahan pelaksanaan tugas",6,"dokumen",{"$f":"I831/F831","v":360},{"$f":"SUM(I832:I836)","v":{"v":2160,"d":"2,160"}}]
[null,null,1,"Mempelajari pedoman dan petunjuk teknis pelaksanaan kegiatan ",null,6,null,30,{"$f":"F832*H832","v":180}]
[null,null,2,"Mempelajari dan menyiapakan bahan pelaksanaan kegiatan",null,6,null,60,{"$f":"F833*H833","v":360}]
[null,null,3,"Mengumpulkan dan menyiapkan bahan kerja untuk menyusun rancangan pedoman pelaksanaan dan teknis kegiatan",null,6,null,120,{"$f":"F834*H834","v":720}]
[null,null,4,"Menyusun konsep hasil pelaksanaan kegiatan",null,6,null,120,{"$f":"F835*H835","v":720}]
[null,null,5,"Melaporkan hasil kegiatan",null,6,null,30,{"$f":"F836*H836","v":180}]
[]
[null,10,"Memfasilitasi kegiatan pengisian jabatan Kepala Desa, Perangkat Desa, BPD dan pengurus lembaga kemasyarakatan berdasarkan peraturan yang berlaku agar setiap tahapan kegiatan berjalan dengan lancar dan sesuai ketentuan yang ada.",null,"Kegiatan",25,"kali",{"$f":"I838/F838","v":441},{"$f":"SUM(I839:I845)","v":{"v":11025,"d":"11,025"}}]
[null,null,"1)","mempelajari pedoman pelaksanaan tugas",null,10,null,45,{"$f":"F839*H839","v":450}]
[null,null,"2)","Mempelajari peraturan perundang-undangan terkait",null,10,null,45,450]
[null,null,"3)","Menyusun draft tahapan kegiatan pengisian kepala desa, perangkat desa/ BPD",null,25,null,120,{"v":3000,"d":"3,000"}]
[null,null,"4)","Menyusun konsep SK Camat tentang Tim Pemantau Pilkades/Pengisian Perangkat/Pengisian BPD",null,25,null,120,{"v":3000,"d":"3,000"}]
[null,null,"5)","Monitoring kegiatan Pilkades, pengisian perangkat desa dan pengisian BPD di lapangan",null,25,null,120,{"v":3000,"d":"3,000"}]
[null,null,"6)","Mengkonsultasikan permasalahan kepada atasan",null,25,null,30,750]
[null,null,"7)","melaporkan pelaksanaan tugas kepada atasan",null,25,null,15,375]
[]
[null,11,"Menyusun laporan pelaksanaan tugas sesuai ketentuan yang berlaku untuk pertanggungjawaban kinerja dan rencana yang akan datang.",null,"Laporan pelaksanaan tugas",20,null,{"$f":"I847/F847","v":225},{"$f":"SUM(I848:I851)","v":{"v":4500,"d":"4,500"}}]
[null,null,"1)","Mengumpulkan bahan laporan pelaksanaan tugas;",null,20,null,30,{"$f":"F848*H848","v":600}]
[null,null,"2)","Menganalisis bahan penyusunan laporan;",null,20,null,120,{"$f":"F849*H849","v":{"v":2400,"d":"2,400"}}]
[null,null,"3)","Membuat laporan pelaksanaan tugas;",null,20,null,60,{"$f":"F850*H850","v":{"v":1200,"d":"1,200"}}]
[null,null,"4)","Menyampaikan laporan kepada atasan;",null,20,null,15,{"$f":"F851*H851","v":300}]
[]
[null,12,"Melaksanakan tugas kedinasan lain yang diperintahkan oleh pimpinan baik lisan maupun tertulis sesuai prosedur untuk mendukung kelancaran pelaksanaan tugas satuan kerja.",null,"Kelancaran tugas",25,"dokumen",{"$f":"I853/F853","v":87},{"$f":"SUM(I854:I856)","v":{"v":2175,"d":"2,175"}}]
[null,null,"1)","Mempelajari tugas;",null,20,null,15,{"$f":"F854*H854","v":300}]
[null,null,"2)","Menjalankan tugas;",null,25,null,60,{"$f":"F855*H855","v":{"v":1500,"d":"1,500"}}]
[null,null,"3)","Melaporkan hasil pelaksanaan tugas.",null,25,null,15,{"$f":"F856*H856","v":375}]
[]
["III.2","Teknik Menengah",{"$nulls":6},{"$f":"SUM(I859,I859,I865,I872,I879,I886,I893,I901,I907)","v":{"v":185350,"d":"185,350"}},"Operator SIAK","2 orang"]
[null,1,"Merencanakan kegiatan yang menjadi tugasnya sesuai program kerja  atasannya dan ketentuan yang berlaku untuk pedoman pelaksanaan tugas.",null,"Program Kerja",2,"dokumen",{"$f":"I859/F859","v":{"v":772.5,"d":"773"}},{"$f":"SUM(I860:I863)","v":{"v":1545,"d":"1,545"}},null,"  "]
[null,null,"1)","Menelaah Program Kerja yang telah ditetapkan;",null,5,null,180,{"$f":"F860*H860","v":900},null,"  "]
[null,null,"2)","Menyusun konsep rencana kegiatan;",null,2,null,180,{"$f":"F861*H861","v":360},null,"  "]
[null,null,"3)","Mengkonsultasikan konsep rencana kegiatan dengan pimpinan untuk mendapatkan arahan;",null,5,null,45,{"$f":"F862*H862","v":225},null,"  "]
[null,null,"4)","Menetapkan rencana pelaksanaan kegiatan;",null,2,null,30,{"$f":"F863*H863","v":60}]
[]
[null,2,"Menyiapkan bahan dan melakukan pelayanan masyarakat antara lain pelayanan rekomendasi, perizinan, surat keterangan, legalisasi, pelayanan kependudukan dan pencatatan sipil sesuai ketentuan untuk meningkatkan kualitas pelayanan masyarakat.",null,"Layanan Masyarakat",500,"dokumen",{"$f":"I865/F865","v":{"v":276.3,"d":"276"}},{"$f":"SUM(I866:I870)","v":{"v":138150,"d":"138,150"}},null,"  "]
[null,null,1,"Mempelajari pelaksanaan tugas tahun sebelumnya dan merencanakan pelaksanaan tugas untuk tahun berjalan",null,5,null,30,{"$f":"F866*H866","v":150},null,"  "]
[null,null,2,"Melayanai masyarakat pemohon",null,600,null,60,{"$f":"F867*H867","v":{"v":36000,"d":"36,000"}},null,"  "]
[null,null,3,"Memverifikasi berkas permohonan",null,500,null,60,{"$f":"F868*H868","v":{"v":30000,"d":"30,000"}},null,"  "]
[null,null,4,"Melakukan entry data yang sudah valid",null,500,null,120,{"$f":"F869*H869","v":{"v":60000,"d":"60,000"}}]
[null,null,5,"Menyusun rekap kegiatan evaluasi",null,100,null,120,{"$f":"F870*H870","v":{"v":12000,"d":"12,000"}}]
[]
[null,3,"Menyiapkan bahan dan rencana fasilitasi kerjasama dan penyelesaian konflik antar desa untuk meningkatkan kesejahteraan masyarakat desa.",null,"Bahan pelaksanaan tugas",6,"dokumen",{"$f":"I872/F872","v":225},{"$f":"SUM(I873:I877)","v":{"v":1350,"d":"1,350"}},null,"  "]
[null,null,1,"Mempelajari pedoman pelaksaaan tugas",null,6,null,15,{"$f":"F873*H873","v":90},null,"  "]
[null,null,2,"Menginventarisir laporan permasalahan pemerintahan desa",null,6,null,30,{"$f":"F874*H874","v":180},null,"  "]
[null,null,3,"Memfasilitasi penyusunan materi kesepakatan bersama dan rancangan perjanjian kerjasama",null,6,null,90,{"$f":"F875*H875","v":540},null,"  "]
[null,null,4,"Menganalisa materi  kesepakatan bersama dan rancangan perjanjian kerjasama",null,6,null,60,{"$f":"F876*H876","v":360}]
[null,null,5,"Konsultasi pada pimpinan",null,6,null,30,{"$f":"F877*H877","v":180}]
[]
[null,4,"Menyiapkan bahan kegiatan administrasi kependudukan di tingkat kecamatan sesuai ketentuan untuk mendukung terwujudnya tertib administrasi kependudukan kecamatan.",null,"Bahan pelaksanaan tugas",100,"dokumen",{"$f":"I879/F879","v":{"v":219.2,"d":"219"}},{"$f":"SUM(I880:I884)","v":{"v":21920,"d":"21,920"}},null,"  "]
[null,null,1,"Mempelajari pedoman dan petunjuk teknis pelaksanaan kegiatan ",null,20,null,15,{"$f":"F880*H880","v":300},null,"  "]
[null,null,2,"Melakukan verifikasi surat permohonan administrasi kependudukan",null,300,null,5,{"$f":"F881*H881","v":{"v":1500,"d":"1,500"}},null,"  "]
[null,null,3,"Melakukan entry data penduduk di aplikasi SIAK",null,{"v":2000,"d":"2,000"},null,5,{"$f":"F882*H882","v":{"v":10000,"d":"10,000"}},null,"  "]
[null,null,4,"Melakukan pencetakan KK, KTP, surat pindah penduduk",null,{"v":2000,"d":"2,000"},null,5,{"$f":"F883*H883","v":{"v":10000,"d":"10,000"}}]
[null,null,5,"Melaporkan hasil kegiatan",null,12,null,10,{"$f":"F884*H884","v":120}]
[]
[null,5,"Melaksanakan pengelolaan administrasi pengawasan, pembinaan, dan pengurusan administrasi kepegawaian Kepala Desa dan Perangkat Desa sesuai ketentuan untuk tertibnya administrasi kepegawaian Kepala Desa dan Perangkat Desa.",null,"Administrasi Kepegawaian Kades dan Perangkat Desa",30,"dokumen",{"$f":"I886/F886","v":198},{"$f":"SUM(I887:I891)","v":{"v":5940,"d":"5,940"}},null,"  "]
[null,null,1,"Mempelajari pedoman dan petunjuk teknis pelaksanaan kegiatan ",null,6,null,15,{"$f":"F887*H887","v":90},null,"  "]
[null,null,2,"Melakukan verifikasi data kepala desa dan perangkat desa",null,30,null,30,{"$f":"F888*H888","v":900},null,"  "]
[null,null,3,"Menyiapkan bahan dan menyeleksi SK Pengangkatan  dan Pemberhentian Kepala Desa dan perangkat desa",null,30,null,30,{"$f":"F889*H889","v":900},null,"  "]
[null,null,4,"Menyusun jurnal penjagaan data kepegawaian kepala desa dan perangkat desa",null,30,null,45,{"$f":"F890*H890","v":{"v":1350,"d":"1,350"}}]
[null,null,5,"Membuat skema perkembangan data kepegawaian kepala desa dan perangkat desa kepada pimpinan",null,30,null,90,{"$f":"F891*H891","v":{"v":2700,"d":"2,700"}}]
[]
[null,6,"Memfasilitasi kegiatan pengisian jabatan Kepala Desa, Perangkat Desa, BPD dan pengurus lembaga kemasyarakatan berdasarkan peraturan yang berlaku agar setiap tahapan kegiatan berjalan dengan lancar dan sesuai ketentuan yang ada.",null,"Kegiatan",25,"kali",{"$f":"I893/F893","v":182},{"$f":"SUM(I894:I899)","v":{"v":4550,"d":"4,550"}},null,"  "]
[null,null,"1)","Mempelajari pedoman pelaksanaan tugas",null,20,null,20,{"$f":"F894*H894","v":400},null,"  "]
[null,null,"2)","Mempelajari peraturan perundang-undangan terkait",null,20,null,20,400,null,"  "]
[null,null,"3)","Menyusun konsep surat undangan dan daftar hadir dan notulen rapat",null,25,null,15,375,null,"  "]
[null,null,"4)","Mengambil SK Bupati tentang pengangkatan Kepala Desa & anggota BPD di Bagian Tapem Setda",null,25,null,60,{"v":1500,"d":"1,500"}]
[null,null,"5)","Monitoring kegiatan Pilkades, pengisian perangkat desa dan pengisian BPD di lapangan",null,25,null,60,{"v":1500,"d":"1,500"}]
[null,null,"6)","Melaporkan pelaksanaan tugas kepada atasan",null,25,null,15,375]
[]
[null,7,"Menyusun laporan pelaksanaan tugas sesuai ketentuan yang berlaku untuk pertanggungjawaban kinerja dan rencana yang akan datang.",null,"Laporan pelaksanaan tugas",20,"dokumen",{"$f":"I901/F901","v":225},{"$f":"SUM(I902:I905)","v":{"v":4500,"d":"4,500"}},null,"  "]
[null,null,"1)","Mengumpulkan bahan laporan pelaksanaan tugas;",null,20,null,30,{"$f":"F902*H902","v":600},null,"  "]
[null,null,"2)","Menganalisis bahan penyusunan laporan;",null,20,null,120,{"$f":"F903*H903","v":{"v":2400,"d":"2,400"}},null,"  "]
[null,null,"3)","Membuat laporan pelaksanaan tugas;",null,20,null,60,{"$f":"F904*H904","v":{"v":1200,"d":"1,200"}},null,"  "]
[null,null,"4)","Menyampaikan laporan kepada atasan;",null,20,null,15,{"$f":"F905*H905","v":300}]
[]
[null,8,"Melaksanakan tugas kedinasan lain yang diperintahkan oleh pimpinan baik lisan maupun tertulis sesuai prosedur untuk mendukung kelancaran pelaksanaan tugas satuan kerja.",null,"Kegiatan",70,"kali",{"$f":"I907/F907","v":{"v":83.57142857142857,"d":"84"}},{"$f":"SUM(I908:I910)","v":{"v":5850,"d":"5,850"}},null,"  "]
[null,null,"1)","Mempelajari tugas;",null,30,null,20,{"$f":"F908*H908","v":600},null,"  "]
[null,null,"2)","Menjalankan tugas;",null,70,null,60,{"$f":"F909*H909","v":{"v":4200,"d":"4,200"}},null,"  "]
[null,null,"3)","Melaporkan hasil pelaksanaan tugas",null,70,null,15,{"$f":"F910*H910","v":{"v":1050,"d":"1,050"}},null,"  "]
[]
["III.3","Teknik Rendah",{"$nulls":6},{"$f":"I913+I919+I926+I933+I940+I947+I955+I962+I969+I975","v":{"v":69095,"d":"69,095"}},"Pengarsip","1 orang"]
[null,1,"Merencanakan kegiatan yang menjadi tugasnya sesuai program kerja  atasannya dan ketentuan yang berlaku untuk pedoman pelaksanaan tugas.",null,"Program Kerja",1,"dokumen",{"$f":"I913/F913","v":240},{"$f":"SUM(I914:I917)","v":240},null,"  "]
[null,null,"1)","Menelaah Program Kerja yang telah ditetapkan;",null,1,null,60,{"$f":"F914*H914","v":60},null,"  "]
[null,null,"2)","Menyusun konsep rencana kegiatan;",null,1,null,120,{"$f":"F915*H915","v":120},null,"  "]
[null,null,"3)","Mengkonsultasikan konsep rencana kegiatan dengan pimpinan untuk mendapatkan arahan;",null,1,null,30,{"$f":"F916*H916","v":30},null,"  "]
[null,null,"4)","Menetapkan rencana pelaksanaan kegiatan;",null,1,null,30,{"$f":"F917*H917","v":30}]
[]
[null,2,"Mengarsip dokumen pelayanan masyarakat yang menjadi ruang lingkup tugasnya antara lain pelayanan rekomendasi, perizinan, surat keterangan, legalisasi, pelayanan kependudukan dan pencatatan sipil sesuai ketentuan untuk memudahkan dalam pencarian kembali.",null,"Arsip Pelayanan Masyarakat",90,"dokumen",{"$f":"I919/F919","v":{"v":177.22222222222223,"d":"177"}},{"$f":"SUM(I920:I924)","v":{"v":15950,"d":"15,950"}},null,"  "]
[null,null,1,"Mempelajari pedoman dan petunjuk teknis pelaksanaan kegiatan ",null,10,null,20,{"$f":"F920*H920","v":200},null,"  "]
[null,null,2,"Mengantar dan mengambil KK di Disdukcapil",null,90,null,120,{"$f":"F921*H921","v":{"v":10800,"d":"10,800"}},null,"  "]
[null,null,3,"Mengelompokkan dokumen yang terkait dengan kegiatan kependudukan",null,90,null,20,{"$f":"F922*H922","v":{"v":1800,"d":"1,800"}},null,"  "]
[null,null,4,"Mendokumentasikan surat dan dokumen yang terkait dengan kegiatan monitoring/pembinaan administrasi kepegawaian ",null,90,null,20,{"$f":"F923*H923","v":{"v":1800,"d":"1,800"}}]
[null,null,5,"Melaporkan pekerjaan kepada atasan langsung",null,90,null,15,{"$f":"F924*H924","v":{"v":1350,"d":"1,350"}}]
[]
[null,3,"Mendokumentasikan data dan arsip hasil dari penyusunan produk hukum desa sesuai ketentuan untuk memudahkan dalam pencarian kembali.",null,"Arsip Produk Hukum Desa",10,"dokumen",{"$f":"I926/F926","v":180},{"$f":"SUM(I927:I931)","v":{"v":1800,"d":"1,800"}},null,"  "]
[null,null,1,"Mempelajari peraturan perundangan, petunjuk teknis dan kebijakan pelaksanaan kegiatan ",null,6,null,20,{"$f":"F927*H927","v":120},null,"  "]
[null,null,2,"Mempelajari pelaksanaan tugas tahun sebelumnya dan menyusun rencana teknis pelaksanaan tugas untuk tahun berjalan",null,6,null,20,{"$f":"F928*H928","v":120},null,"  "]
[null,null,3,"Mengumpulkan data arsip produk hukum desa berupa Perdes, Perkades, SK Kades",null,50,null,20,{"$f":"F929*H929","v":{"v":1000,"d":"1,000"}},null,"  "]
[null,null,4,"Megirim Perdes ke bagian Hukum Setda ",null,6,null,60,{"$f":"F930*H930","v":360}]
[null,null,5,"Mengelompokkan data dan arsip berdasarkan tahun pengundangan",null,10,null,20,{"$f":"F931*H931","v":200}]
[]
[null,4,"Mengarsipkan bahan dan rencana fasilitasi kerjasama dan penyelesaian konflik antar desa untuk memudahkan dalam pencarian kembali.",null,"Arsip Kerjasama dan Konflik Antar Desa",6,"dokumen",{"$f":"I933/F933","v":110},{"$f":"SUM(I934:I938)","v":660},null,"  "]
[null,null,"1)","Mempelajari pedoman pelaksanaan tugas",null,6,null,15,{"$f":"F934*H934","v":90},null,"  "]
[null,null,"2)","Mengagenda surat keluar dan surat masuk",null,6,null,5,{"$f":"F935*H935","v":30},null,"  "]
[null,null,"3)","Mengirimkan surat ke instansi terkait",null,6,null,60,{"$f":"F936*H936","v":360},null,"  "]
[null,null,"4)","Menyiapkan tempat dan sarana rapat",null,6,null,15,{"$f":"F937*H937","v":90}]
[null,null,"5)","mengkonsultasikan permasalahan kepada pimpinan",null,6,null,15,{"$f":"F938*H938","v":90}]
[]
[null,5,"Melakukan pengelolaan data dan arsip administrasi kependudukan di tingkat kecamatan sesuai ketentuan untuk memudahkan dalam pencarian kembali.",null,"Arsip Kependudukan",100,"dokumen",{"$f":"I940/F940","v":{"v":330.4,"d":"330"}},{"$f":"SUM(I941:I945)","v":{"v":33040,"d":"33,040"}},null,"  "]
[null,null,1,"Mempelajari pedoman dan petunjuk teknis pelaksanaan kegiatan ",null,4,null,10,{"$f":"F941*H941","v":40},null,"  "]
[null,null,2,"Mengirim dan mengambil KK ke Disdukcapil, serta mendistribusikan produk-produk SIAK ke pemohon",null,100,null,120,{"$f":"F942*H942","v":{"v":12000,"d":"12,000"}},null,"  "]
[null,null,3,"Menerima dan mencatat surat permohonan pelayanan administrasi kependudukan ",null,{"v":2000,"d":"2,000"},null,5,{"$f":"F943*H943","v":{"v":10000,"d":"10,000"}},null,"  "]
[null,null,4,"Mencatat data pemohon pada buku agenda kependudukan",null,{"v":2000,"d":"2,000"},null,5,{"$f":"F944*H944","v":{"v":10000,"d":"10,000"}}]
[null,null,5,"Menghimpun data dan arsip kependudukan",null,100,null,10,{"$f":"F945*H945","v":{"v":1000,"d":"1,000"}}]
[]
[null,6,"Mengumpulkan dan mengarsipkan data dan bahan pelaksanaan kegiatan pembinaan, fasilitasi, supervisi, dan konsultasi pelaksanaan tertib administrasi desa sesuai ketentuan untuk memudahkan dalam pencarian kembali.",null,"Arsip Pembinaan Administrasi Desa",10,"dokumen",{"$f":"I947/F947","v":151},{"$f":"SUM(I948:I953)","v":{"v":1510,"d":"1,510"}},null,"  "]
[null,null,"1)","Mempelajari pedoman dan petunjuk teknis pelaksanaan kegiatan ",null,4,null,15,{"$f":"F948*H948","v":60},null,"  "]
[null,null,"2)","Menerima dan mencatat surat dan dokumen yang masuk",null,10,null,10,100,null,"  "]
[null,null,"3)","Menyiapkan bahan dan menginventarisir dokumen yang terkait dengan tertib administarasi desa",null,10,null,20,200,null,"  "]
[null,null,4,"Mendistribusikan surat-surat terkait pedoman dan pelaksanaan tertib administrasi desa",null,10,null,90,900]
[null,null,5,"Memeriksa kelengkapan bahan pelaksanaan kegiatan",null,10,null,15,150]
[null,null,6,"Mendokumentasikan pelaksanaan kegiatan",null,10,null,10,100]
[]
[null,7,"Melaksanakan pengelolaan dan penataan dokumen pengawasan, pembinaan, dan pengurusan administrasi kepegawaian kepala desa dan perangkat desa sesuai ketentuan untuk memudahkan dalam pencarian kembali.",null,"Arsip Kepegawaian Kepala Desa dan Perangkat Desa",30,"dokumen",{"$f":"I955/F955","v":{"v":46.333333333333336,"d":"46"}},{"$f":"SUM(I956:I960)","v":{"v":1390,"d":"1,390"}},null,"  "]
[null,null,1,"Mempelajari pedoman dan petunjuk teknis pelaksanaan kegiatan ",null,4,null,15,{"$f":"F956*H956","v":60},null,"  "]
[null,null,2,"Mengumpulkan data arsip kepala desa dan perangkat desa",null,30,null,20,{"$f":"F957*H957","v":600},null,"  "]
[null,null,3,"Menginventarisir dan mengarsipkan SK Pengangkatan  dan Pemberhentian Kepala Desa dan Perangkat Desa",null,30,null,20,{"$f":"F958*H958","v":600},null,"  "]
[null,null,4,"Membuat susunan indeks/kode arsip data kepegawaian kepala desa dan perangkat desa agar dapat memudahkan pengecekan",null,2,null,20,{"$f":"F959*H959","v":40}]
[null,null,5,"Mencatat perkembangan dan permasalahan secara periodik",null,6,null,15,{"$f":"F960*H960","v":90}]
[]
[null,8,"Menyiapkan bahan dan pengelolaan administrasi surat-menyurat kegiatan fasilitasi Tim Pemantau  Pilkades/ Pengisian perangkat desa dan BPD sesuai ketentuan agar mudah dalam pencarian kembali.",null,"Arsip Pilkades, Perangkat Desa, dan BPD.",25,"dokumen",{"$f":"I962/F962","v":{"v":76.2,"d":"76"}},{"$f":"SUM(I963:I967)","v":{"v":1905,"d":"1,905"}},null,"  "]
[null,null,"1)","mempelajari pedoman pelaksanaan tugas",null,2,null,15,{"$f":"F963*H963","v":30},null,"  "]
[null,null,"2)","Mengagenda surat masuk dan surat keluar",null,25,null,5,{"$f":"F964*H964","v":125},null,"  "]
[null,null,"3)","Mengirimkan surat kepada instansi terkait",null,25,null,45,{"$f":"F965*H965","v":{"v":1125,"d":"1,125"}},null,"  "]
[null,null,"4)","Menyiapkan tempat dan sarana rapat",null,25,null,15,{"$f":"F966*H966","v":375}]
[null,null,"5)","melaporkan pelaksanaan tugas kepada atasan",null,25,null,10,{"$f":"F967*H967","v":250}]
[]
[null,9,"Menyusun laporan pelaksanaan tugas sesuai ketentuan yang berlaku untuk pertanggungjawaban kinerja dan rencana yang akan datang",null,"Laporan pelaksanaan tugas",20,"dokumen",{"$f":"I969/F969","v":225},{"$f":"SUM(I970:I973)","v":{"v":4500,"d":"4,500"}},null,"  "]
[null,null,"1)","Mengumpulkan bahan laporan pelaksanaan tugas;",null,20,null,30,{"$f":"F970*H970","v":600},null,"  "]
[null,null,"2)","Menganalisis bahan penyusunan laporan;",null,20,null,120,{"$f":"F971*H971","v":{"v":2400,"d":"2,400"}},null,"  "]
[null,null,"3)","Membuat laporan pelaksanaan tugas;",null,20,null,60,{"$f":"F972*H972","v":{"v":1200,"d":"1,200"}},null,"  "]
[null,null,"4)","Menyampaikan laporan kepada atasan;",null,20,null,15,{"$f":"F973*H973","v":300}]
[]
[null,10,"Melaksanakan tugas kedinasan lain yang diperintahkan oleh pimpinan baik lisan maupun tertulis sesuai prosedur untuk mendukung kelancaran pelaksanaan tugas satuan kerja.",null,"Kegiatan",100,"kali",{"$f":"I975/F975","v":81},{"$f":"SUM(I976:I978)","v":{"v":8100,"d":"8,100"}},null,"  "]
[null,null,"1)","Mempelajari tugas;",null,30,null,20,{"$f":"F976*H976","v":600},null,"  "]
[null,null,"2)","Menjalankan tugas;",null,100,null,60,{"$f":"F977*H977","v":{"v":6000,"d":"6,000"}},null,"  "]
[null,null,"3)","Melaporkan hasil pelaksanaan tugas",null,100,null,15,{"$f":"F978*H978","v":{"v":1500,"d":"1,500"}},null,"  "]
[]
["VI.2","KONSEPTUAL & MANAGERIAL (KASI PMD)",{"$nulls":6},{"$f":"SUM(I981,I987,I994,I1001,I1008,I1015,I1023,I1030,I1037,I1044,I1050)","v":{"v":37145,"d":"37,145"}},"Kasi Pemberdayaan Masyarakat & Desa","1 orang"]
[null,1,"Menyusun rencana program dan kegiatan seksi Pemberdayaan Masyarakat dan Desa sebagai pedoman pelaksanaan tugas.",null,"Program Kerja",2,"dokumen",{"$f":"I981/F981","v":{"v":772.5,"d":"773"}},{"$f":"SUM(I982:I985)","v":{"v":1545,"d":"1,545"}},null,"  "]
[null,null,"1)","Menelaah Program Kerja Kecamatan",null,5,null,180,{"$f":"F982*H982","v":900},null,"  "]
[null,null,"2)","Menyusun konsep rencana kegiatan Seksi Pemberdayaan Masyarakat dan Desa",null,2,null,180,{"$f":"F983*H983","v":360},null,"  "]
[null,null,"3)","Mengkonsultasikan konsep rencana kegiatan dengan pimpinan;",null,5,null,45,{"$f":"F984*H984","v":225},null,"  "]
[null,null,"4)","Menetapkan rencana kegiatan seksi Pemberdayaan Masyarakat dan Desa",null,2,null,30,{"$f":"F985*H985","v":60}]
[]
[null,2,"Membimbing dan mengkoordinasikan pelaksanaan tugas bawahan di lingkup Seksi Pemberdayaan Masyarakat dan Desa setiap saat sesuai dengan tugas dan tanggung jawabnya agar pekerjaan berjalan tertib dan lancar.",null,"Kegiatan",24,"kali",{"$f":"I987/F987","v":{"v":171.66666666666666,"d":"172"}},{"$f":"SUM(I988:I992)","v":{"v":4120,"d":"4,120"}},null,"  "]
[null,null,"1)","Menjelaskan tugas yang akan dilaksanakan bawahan;",null,36,null,30,{"$f":"F988*H988","v":{"v":1080,"d":"1,080"}},null,"  "]
[null,null,"2)","Mengidentifikasi kesulitan yang dialami bawahan;",null,24,null,45,{"$f":"F989*H989","v":{"v":1080,"d":"1,080"}},null,"  "]
[null,null,"3)","Mengkoordinasikan pelaksanaan tugas;",null,24,null,45,{"$f":"F990*H990","v":{"v":1080,"d":"1,080"}},null,"  "]
[null,null,"4)","Mengkonsultasikan permasalahan kepada pimpinan;",null,20,null,20,{"$f":"F991*H991","v":400}]
[null,null,"5)","Memberikan arahan kepada bawahan terkait permasalahan dalam pelaksanaan tugas.",null,24,null,20,{"$f":"F992*H992","v":480}]
[]
[null,3,"Melaksanakan supervisi pelaksanaan tugas bawahan dilingkup Seksi Pemberdayaan Masyarakat dan Desa sesuai dengan prosedur dan peraturan yang berlaku untuk mencapai target yang telah ditetapkan.",null,"Kegiatan Supervisi Internal",12,"kali",{"$f":"I994/F994","v":325},{"$f":"SUM(I995:I999)","v":{"v":3900,"d":"3,900"}},null,"  "]
[null,null,"1)","Menentukan standar kualitas dan/atau kuantitas kerja;",null,12,null,60,{"$f":"F995*H995","v":720},null,"  "]
[null,null,"2)","Menelaah pelaksanaan tugas bawahan;",null,12,null,90,{"$f":"F996*H996","v":{"v":1080,"d":"1,080"}},null,"  "]
[null,null,"3)","Mengidentifikasi kesalahan dalam pelaksanaan tugas sesuai dengan prosedur yang telah ditentukan;",null,14,null,60,{"$f":"F997*H997","v":840},null,"  "]
[null,null,"4)","Mengoreksi pelaksanaan tugas bawahan;",null,18,null,45,{"$f":"F998*H998","v":810}]
[null,null,"5)","Memberikan arahan terkait koreksi pelaksanaan tugas.",null,15,null,30,{"$f":"F999*H999","v":450}]
[]
[null,4,"Menyiapkan bahan rencana dan koordinasi dengan SKPD, UPT, instansi vertikal atau swasta mengenai pelaksanaan pemeliharaan prasarana dan fasilitas pelayanan umum sesuai ketentuan untuk terwujudnya harmonisasi pemeliharaan prasarana dan fasilitas pelayanan umum.",null,"Bahan pelaksanaan tugas",20,"dokumen",{"$f":"I1001/F1001","v":440},{"$f":"SUM(I1002:I1007)","v":{"v":8800,"d":"8,800"}},null,"  "]
[null,null,"1)","Mempelajari peraturan perundangan, petunjuk teknis dan kebijakan pelaksanaan kegiatan ",null,10,null,30,{"$f":"F1002*H1002","v":300},null,"  "]
[null,null,"2)","Menelaah pelaksanaan kegiatan tahun sebelumnya dan menyusun rencana kegiatan tahun berjalan",null,20,null,60,{"$f":"F1003*H1003","v":{"v":1200,"d":"1,200"}},null,"  "]
[null,null,"3)","Menyusun rencana jadwal pelaksanaan kegiatan",null,20,null,120,{"$f":"F1004*H1004","v":{"v":2400,"d":"2,400"}},null,"  "]
[null,null,"4)","Menganalisa bahan pelaksanaan kegiatan",null,20,null,200,{"$f":"F1005*H1005","v":{"v":4000,"d":"4,000"}}]
[null,null,"5)","Mengkonsultasikan kepada pimpinan;",null,20,null,45,{"$f":"F1006*H1006","v":900}]
[]
[null,5,"Mendorong partisipasi masyarakat untuk ikut serta dalam perencanaan pembangunan lingkup kecamatan dalam forum musyawarah perencanaan pembangunan di desa / kelurahan dan kecamatan sesuai ketentuan untuk meningkatkan partisipasi masyarakat dalam pembangunan.",null,"Kegiatan",10,"kali",{"$f":"I1008/F1008","v":260},{"$f":"SUM(I1009:I1014)","v":{"v":2600,"d":"2,600"}},null,"  "]
[null,null,1,"Mempelajari pedoman pelaksanaan tugas",null,10,null,20,{"$f":"F1009*H1009","v":200},null,"  "]
[null,null,2,"Menyusun rancangan tahapan kegiatan",null,10,null,60,{"$f":"F1010*H1010","v":600},null,"  "]
[null,null,3,"Berkoordinasi dengan instansi terkait",null,10,null,60,{"$f":"F1011*H1011","v":600},null,"  "]
[null,null,4,"Monitoring dan evaluasi pelaksanaan kegiatan",null,10,null,60,{"$f":"F1012*H1012","v":600}]
[null,null,5,"Melaporkan hasil pelaksanaan kegiatan kepada pimpinan",null,10,null,60,{"$f":"F1013*H1013","v":600}]
[]
[null,6,"Menyiapkan bahan pembinaan dan pengawasan terhadap pelaksanaan program kerja dan kegiatan pemberdayaan masyarakat di wilayah kerja yang dilaksanakan oleh SKPD dan / atau UPT , instansi vertikal dan swasta sesuai ketentuan untuk mewujudkan masyarakat yang berdaya.",null,"Bahan pelaksanaan tugas",8,"dokumen",{"$f":"I1015/F1015","v":{"v":232.5,"d":"233"}},{"$f":"SUM(I1016:I1021)","v":{"v":1860,"d":"1,860"}},null,"  "]
[null,null,1,"Mempelajari pedoman pelaksaaan tugas",null,3,null,20,{"$f":"F1016*H1016","v":60},null,"  "]
[null,null,2,"Menyiapkan dan mengolah bahan",null,8,null,60,480,null,"  "]
[null,null,3,"Mengecek persyaratan dan kelengkapan administrasi",null,8,null,30,240,null,"  "]
[null,null,4,"Melayani konsultasi ",null,12,null,30,360]
[null,null,5,"Menganalisa bahan",null,12,null,45,540]
[null,null,6,"Memberikan rekomendasi kepada atasan",null,12,null,15,180]
[]
[null,7,"Mengkoordinasikan penyusunan profil desa / kelurahan sesuai ketentuan untuk tersusunnya profil desa/kelurahan.",null,"Kegiatan",6,"kali",{"$f":"I1023/F1023","v":{"v":152.5,"d":"153"}},{"$f":"SUM(I1024:I1028)","v":915},null,"  "]
[null,null,1,"Mempelajari pedoman dan aturan terkait",null,3,null,20,{"$f":"F1024*H1024","v":60},null,"  "]
[null,null,2,"Koordinasi dengan pihak-pihak terkait",null,6,null,45,{"$f":"F1025*H1025","v":270},null,"  "]
[null,null,3,"Mengkonsultasikan permasalahan kepada pimpinan",null,6,null,30,{"$f":"F1026*H1026","v":180},null,"  "]
[null,null,4,"Melakukan evaluasi pelaksanaan dan hasil kegiatan",null,6,null,60,{"$f":"F1027*H1027","v":360}]
[null,null,5,"Melaporkan pelaksanaan kegiatan kepada pimpinan",null,3,null,15,{"$f":"F1028*H1028","v":45}]
[]
[null,8,"Melaksanakan tugas-tugas lain di bidang pemberdayaan masyarakat sesuai dengan peraturan perundang-undangan.",null,"Kegiatan",18,"kali",{"$f":"I1030/F1030","v":{"v":306.6666666666667,"d":"307"}},{"$f":"SUM(I1031:I1035)","v":{"v":5520,"d":"5,520"}},null,"  "]
[null,null,"1)","Mempelajari pedoman dan aturan terkait",null,6,null,20,{"$f":"F1031*H1031","v":120},null,"  "]
[null,null,"2)","Merencanakan tahapan kerja dalam rangka pemberdayaan masyarakat desa",null,18,null,60,{"$f":"F1032*H1032","v":{"v":1080,"d":"1,080"}},null,"  "]
[null,null,"3)","Menyusun rancangan mekanisme dan pedoman pemberdayaan masyarakat",null,18,null,120,{"$f":"F1033*H1033","v":{"v":2160,"d":"2,160"}},null,"  "]
[null,null,"4)","Melaksanakan monitoring dan pendampingan kegiatan",null,18,null,60,{"$f":"F1034*H1034","v":{"v":1080,"d":"1,080"}}]
[null,null,"5)","Melaksanakan evaluasi kegiatan",null,18,null,60,{"$f":"F1035*H1035","v":{"v":1080,"d":"1,080"}}]
[]
[null,9,"Melaksanakan monitoring, pengendalian, pengawasan dan evaluasi penyelenggaraan pemberdayaan masyarakat dan pemeliharaan prasarana dan fasilitas pelayanan umum serta pelaksanaan kewenangan pemerintahan dalam menangani sebagian urusan otonomi daerah sesuai dengan bidangnya.",null,"Kegiatan",12,"kali",{"$f":"I1037/F1037","v":{"v":396.6666666666667,"d":"397"}},{"$f":"SUM(I1038:I1042)","v":{"v":4760,"d":"4,760"}},null,"  "]
[null,null,"1)","Mempelajari peraturan perundangan, petunjuk teknis dan kebijakan pelaksanaan kegiatan ",null,4,null,20,{"$f":"F1038*H1038","v":80},null,"  "]
[null,null,"2)","Menyusun rancangan mekanisme pelaksanaan kegiatan",null,12,null,120,{"$f":"F1039*H1039","v":{"v":1440,"d":"1,440"}},null,"  "]
[null,null,"3)","Menyusun rancangan mekanisme dan pedoman pengelolaan dan peremajaan data ",null,12,null,150,{"$f":"F1040*H1040","v":{"v":1800,"d":"1,800"}},null,"  "]
[null,null,"4)","Melakukan pemantauan pengelolaan dan peremajaan data ",null,12,null,60,{"$f":"F1041*H1041","v":720}]
[null,null,"5)","Melaksanakan evaluasi pengelolaan dan peremajaan data ",null,12,null,60,{"$f":"F1042*H1042","v":720}]
[]
[null,10,"Menyusun laporan pelaksanaan tugas sesuai ketentuan yang berlaku untuk pertanggungjawaban kinerja dan rencana yang akan datang",null,"Laporan pelaksanaan tugas",10,"dokumen",{"$f":"I1044/F1044","v":180},{"$f":"SUM(I1045:I1048)","v":{"v":1800,"d":"1,800"}},null,"  "]
[null,null,"1)","Mengumpulkan bahan laporan pelaksanaan tugas;",null,10,null,15,{"$f":"F1045*H1045","v":150},null,"  "]
[null,null,"2)","Menganalisis bahan penyusunan laporan;",null,10,null,60,{"$f":"F1046*H1046","v":600},null,"  "]
[null,null,"3)","Membuat laporan pelaksanaan tugas;",null,10,null,90,{"$f":"F1047*H1047","v":900},null,"  "]
[null,null,"4)","Menyampaikan laporan kepada atasan;",null,10,null,15,{"$f":"F1048*H1048","v":150}]
[]
[null,11,"Melaksanakan tugas kedinasan lain yang diperintahkan oleh pimpinan baik lisan maupun tertulis sesuai prosedur untuk mendukung kelancaran pelaksanaan tugas satuan kerja.",null,"Kegiatan",15,"kali",{"$f":"I1050/F1050","v":{"v":88.33333333333333,"d":"88"}},{"$f":"SUM(I1051:I1054)","v":{"v":1325,"d":"1,325"}},null,"  "]
[null,null,"1)","Mempelajari tugas;",null,10,null,20,{"$f":"F1051*H1051","v":200},null,"  "]
[null,null,"2)","Menjalankan tugas;",null,15,null,60,{"$f":"F1052*H1052","v":900},null,"  "]
[null,null,"3)","Melaporkan hasil pelaksanaan tugas.",null,15,null,15,{"$f":"F1053*H1053","v":225},null,"  "]
[]
["III.2","Teknik Tinggi dan Menengah",{"$nulls":6},{"$f":"I1056+I1062+I1069+I1078+I1088+I1097+I1107+I1113","v":{"v":37930,"d":"37,930"}},"Pengadministrasi Pemberdayaan Masyarakat ","1 orang"]
[null,1,"Merencanakan kegiatan yang menjadi tugasnya sesuai program kerja Seksi Pemberdayaan Masyarakat dan Desa dan ketentuan yang berlaku untuk pedoman pelaksanaan tugas.",null,"Program kerja",24,"dokumen",{"$f":"I1056/F1056","v":{"v":156.25,"d":"156"}},{"$f":"SUM(I1057:I1060)","v":{"v":3750,"d":"3,750"}}]
[null,null,"1)","Menelaah Program Kerja yang telah ditetapkan;",null,12,null,60,{"$f":"F1057*H1057","v":720}]
[null,null,"2)","Menyusun konsep rencana kegiatan;",null,12,null,120,{"$f":"F1058*H1058","v":{"v":1440,"d":"1,440"}},null,"  "]
[null,null,"3)","Mengkonsultasikan konsep rencana kegiatan dengan pimpinan untuk mendapatkan arahan;",null,30,null,45,{"$f":"F1059*H1059","v":{"v":1350,"d":"1,350"}},null,"  "]
[null,null,"4)","Menetapkan rencana pelaksanaan kegiatan;",null,12,null,20,{"$f":"F1060*H1060","v":240}]
[]
[null,2,"Menyiapkan bahan koordinasi teknis dan sinkronisasi perencanaan dengan SKPD dan/ atau UPT serta instansi vertikal dalam penyelenggaraan kegiatan pemerintahan.",null,"Bahan Koordinasi",8,"dokumen",{"$f":"I1062/F1062","v":165},{"$f":"SUM(I1063:I1067)","v":{"v":1320,"d":"1,320"}},null,"  "]
[null,null,1,"Mempelajari pedoman dan petunjuk teknis pelaksanaan kegiatan ",null,3,null,20,{"$f":"F1063*H1063","v":60},null,"  "]
[null,null,2,"Mempelajari dan menyiapakan bahan pelaksanaan kegiatan",null,3,null,60,{"$f":"F1064*H1064","v":180},null,"  "]
[null,null,3,"Mengumpulkan dan menyiapkan bahan kerja untuk menyusun rancangan pedoman pelaksanaan dan teknis kegiatan",null,8,null,60,{"$f":"F1065*H1065","v":480},null,"  "]
[null,null,4,"Menyusun konsep hasil pelaksanaan kegiatan",null,8,null,60,{"$f":"F1066*H1066","v":480}]
[null,null,5,"Melaporkan hasil kegiatan",null,8,null,15,{"$f":"F1067*H1067","v":120}]
[]
[null,3,"Menyiapkan bahan dalam hal partisipasi masyarakat untuk ikut serta dalam perencanaan pembangunan lingkup kecamatan dalam forum musyawarah perencanaan pembangunan di desa / kelurahan dan kecamatan.",null,"Bahan pelaksanaan tugas",10,"dokumen",{"$f":"I1069/F1069","v":380},{"$f":"SUM(I1070:I1076)","v":{"v":3800,"d":"3,800"}},null,"  "]
[null,null,"1)","Mempelajari pedoman pelaksanaan tugas",null,10,null,20,{"$f":"F1070*H1070","v":200},null,"  "]
[null,null,"2)","Menyusun konsep pelaksanaan kegiatan",null,10,null,60,600,null,"  "]
[null,null,"3)","Membuat surat undangan",null,10,null,60,600,null,"  "]
[null,null,"4)","Membuat notulen rapat",null,10,null,60,600,null,"  "]
[null,null,"5)","Mengkonsultasikan permasalahan kepada pimpinan",null,10,null,60,600,null,"  "]
[null,null,"6)","Kunjungan lapangan untk mendapatkan informasi dan data yang akurat",null,10,null,60,600]
[null,null,"7)","Mengkonsultasikan dan menyampaikan konsep rancangan kegiatan ke pimpinan.",null,10,null,60,600]
[]
[null,4,"Menyiapkan bahan koordinasi penyusunan profil desa / kelurahan sesuai ketentuan untuk tersusunnya profil desa/kelurahan.",null,"Bahan pelaksanaan tugas",6,"dokumen",{"$f":"I1078/F1078","v":{"v":1410,"d":"1,410"}},{"$f":"SUM(I1079:I1086)","v":{"v":8460,"d":"8,460"}},null,"  "]
[null,null,"1)","Mempelajari pedoman dan aturan terkait.",null,6,null,20,{"$f":"F1079*H1079","v":120},null,"  "]
[null,null,"2)","Menyusun draft pedoman teknis kegiatan",null,6,null,45,270,null,"  "]
[null,null,"3)","Menghimpun dokumen-dokumen dari desa ",null,18,null,45,810,null,"  "]
[null,null,"4)","Memverifikasi dokumen yang telah dikirim oleh desa",null,18,null,30,540,null,"  "]
[null,null,"5)","Membuat konsep surat undangan rapat, daftar hadir dan membuat notulen rapat",null,100,null,60,{"v":6000,"d":"6,000"}]
[null,null,"6)","Koordinasi dengan instansi terkait",null,6,null,60,360]
[null,null,"7)","Menyusun konsep administrasi kegiatan",null,3,null,60,180]
[null,null,"8)","Mengkonsultasikan dan menyampaikan konsep rancangan kegiatan ke pimpinan.",null,3,null,60,180]
[]
[null,5,"Melaksanakan tugas-tugas lain di bidang pemberdayaan masyarakat sesuai dengan peraturan perundang-undangan.",null,"Kegiatan",10,"kali",{"$f":"I1088/F1088","v":265},{"$f":"SUM(I1089:I1092)","v":{"v":2650,"d":"2,650"}},null,"  "]
[null,null,"1)","Menyiapkan bahan dan data pelaksanaan tugas yang telah dilaksanakan",null,20,null,20,{"$f":"F1089*H1089","v":400},null,"  "]
[null,null,"2)","Menyusun konsep/ target dengan realisasi pelaksanaan tugas;",null,10,null,60,600,null,"  "]
[null,null,"3)","Memberikan catatan atau penilaian tersendiri pada hasil pelaksanaan tugas;",null,10,null,45,450,null,"  "]
[null,null,"4)","Menyiapkan langkah-langkah perbaikan dalam pelaksanaan kegiatan.",null,20,null,60,{"v":1200,"d":"1,200"}]
[null,null,"5)","Membandingkan target dengan realisasi pelaksanaan tugas;",null,25,null,60,{"v":1500,"d":"1,500"},null,"  "]
[null,null,"6)","Menyiapkan segala keperluan administrasi;",null,25,null,45,{"v":1125,"d":"1,125"},null,"  "]
[null,null,"7)","Mengkonsultasikan dan menyampaikan konsep rancangan kegiatan ke pimpinan.",null,12,null,60,720]
[]
[null,6,"Menyusun konsep pelaksanaan monitoring, pengendalian, pengawasan dan evaluasi penyelenggaraan pemberdayaan masyarakat dan pemeliharaan prasarana dan fasilitas pelayanan umum serta pelaksanaan kewenangan pemerintahan dalam menangani sebagian urusan otonomi daerah sesuai dengan bidangnya.",null,"Konsep",10,"dokumen",{"$f":"I1097/F1097","v":{"v":1330,"d":"1,330"}},{"$f":"SUM(I1098:I1105)","v":{"v":13300,"d":"13,300"}},null,"  "]
[null,null,"1)","Mempelajari pedoman dan aturan terkait",null,20,null,20,{"$f":"F1098*H1098","v":400},null,"  "]
[null,null,"2)","Menyusun konsep surat undangan dan daftar hadir",null,120,null,20,{"v":2400,"d":"2,400"},null,"  "]
[null,null,"3)","Membuat checklist data yang dikirimkan desa",null,150,null,20,{"v":3000,"d":"3,000"},null,"  "]
[null,null,"4)","Membuat notulen kegiatan rapat",null,120,null,30,{"v":3600,"d":"3,600"}]
[null,null,"5)","Menyusun konsep surat edaran dan contoh kegiatan monitoring",null,8,null,120,960,null,"  "]
[null,null,"6)","Memverifikasi konsep kegiatan monitoring sebelum disahkan pejabat berwenang",null,10,null,150,{"v":1500,"d":"1,500"},null,"  "]
[null,null,"7)","Membuat catatan-catatan atas konsep rancangan kegiatan monitoring",null,12,null,60,720]
[null,null,"8)","Mengkonsultasikan dan menyampaikan konsep rancangan kegiatan ke pimpinan.",null,12,null,60,720]
[]
[null,7,"Menyusun laporan pelaksanaan tugas sesuai ketentuan yang berlaku untuk pertanggungjawaban kinerja dan rencana yang akan datang",null,"Laporan pelaksanaan tugas",12,"dokumen",{"$f":"I1107/F1107","v":150},{"$f":"SUM(I1108:I1111)","v":{"v":1800,"d":"1,800"}},null,"  "]
[null,null,"1)","Mengumpulkan bahan laporan pelaksanaan tugas;",null,12,null,15,{"$f":"F1108*H1108","v":180},null,"  "]
[null,null,"2)","Menganalisis bahan penyusunan laporan;",null,12,null,60,{"$f":"F1109*H1109","v":720},null,"  "]
[null,null,"3)","Membuat laporan pelaksanaan tugas;",null,12,null,60,{"$f":"F1110*H1110","v":720},null,"  "]
[null,null,"4)","Menyampaikan laporan kepada atasan;",null,12,null,15,{"$f":"F1111*H1111","v":180}]
[]
[null,8,"Melaksanakan tugas kedinasan lain yang diperintahkan oleh pimpinan baik lisan maupun tertulis sesuai prosedur untuk mendukung kelancaran pelaksanaan tugas satuan kerja.",null,"Kegiatan",25,"kali",{"$f":"I1113/F1113","v":114},{"$f":"SUM(I1114:I1116)","v":{"v":2850,"d":"2,850"}},null,"  "]
[null,null,"1)","Mempelajari tugas;",null,30,null,20,{"$f":"F1114*H1114","v":600},null,"  "]
[null,null,"2)","Menjalankan tugas;",null,30,null,60,{"$f":"F1115*H1115","v":{"v":1800,"d":"1,800"}},null,"  "]
[null,null,"3)","Melaporkan hasil pelaksanaan tugas.",null,30,null,15,{"$f":"F1116*H1116","v":450},null,"  "]
[]
["V.2","Teknik Rendah",{"$nulls":6},{"$f":"SUM(I1119,I1126,I1133,I1140,I1146,I1152,I1158)","v":{"v":37855,"d":"37,855"}},"Pengarsip ","1 orang"]
[null,1,"Menyiapkan bahan koordinasi teknis dan sinkronisasi perencanaan dengan SKPD dan/ atau UPT serta instansi vertikal dalam penyelenggaraan kegiatan pemerintahan.",null,"Arsip Rencana Kegiatan",20,"dokumen",{"$f":"I1119/F1119","v":{"v":258.75,"d":"259"}},{"$f":"SUM(I1120:I1124)","v":{"v":5175,"d":"5,175"}},null,"  "]
[null,null,"1)","Mempelajari pedoman pelaksanaan tugas",null,4,null,20,{"$f":"F1120*H1120","v":80},null,"  "]
[null,null,"2)","Mengagenda surat keluar dan surat masuk",null,100,null,10,{"$f":"F1121*H1121","v":{"v":1000,"d":"1,000"}},null,"  "]
[null,null,"3)","Mengirimkan surat ke instansi terkait",null,100,null,30,{"$f":"F1122*H1122","v":{"v":3000,"d":"3,000"}},null,"  "]
[null,null,"4)","Menyiapkan tempat dan sarana rapat",null,48,null,15,{"$f":"F1123*H1123","v":720}]
[null,null,"5)","Mengkonsultasikan permasalahan kepada pimpinan",null,25,null,15,{"$f":"F1124*H1124","v":375}]
[]
[null,2,"Menyiapkan bahan kegiatan partisipasi masyarakat untuk ikut serta dalam perencanaan pembangunan lingkup kecamatan dalam forum musyawarah perencanaan pembangunan di desa / kelurahan dan kecamatan.",null,"Bahan pelaksanaan tugas",20,"dokumen",{"$f":"I1126/F1126","v":{"v":258.75,"d":"259"}},{"$f":"SUM(I1127:I1131)","v":{"v":5175,"d":"5,175"}},null,"  "]
[null,null,"1)","Mempelajari pedoman pelaksanaan tugas",null,4,null,20,{"$f":"F1127*H1127","v":80},null,"  "]
[null,null,"2)","Mengagenda surat keluar dan surat masuk",null,100,null,10,{"$f":"F1128*H1128","v":{"v":1000,"d":"1,000"}},null,"  "]
[null,null,"3)","Mengirimkan surat ke instansi terkait",null,100,null,30,{"$f":"F1129*H1129","v":{"v":3000,"d":"3,000"}},null,"  "]
[null,null,"4)","Menyiapkan tempat dan sarana rapat",null,48,null,15,{"$f":"F1130*H1130","v":720}]
[null,null,"5)","Mengkonsultasikan permasalahan kepada pimpinan",null,25,null,15,{"$f":"F1131*H1131","v":375}]
[]
[null,3,"Mengumpulkan dan mengarsipkan dokumen koordinasi penyusunan profil desa / kelurahan sesuai ketentuan untuk memudahkan dalam pencarian.",null,"Arsip profil desa/kelurahan",20,"dokumen",{"$f":"I1133/F1133","v":{"v":187.5,"d":"188"}},{"$f":"SUM(I1134:I1138)","v":{"v":3750,"d":"3,750"}},null,"  "]
[null,null,"1)","Mengagenda surat masuk dan surat keluar",null,50,null,10,{"$f":"F1134*H1134","v":500},null,"  "]
[null,null,"2)","Menyimpan arsip surat masuk dan surat keluar",null,50,null,5,{"$f":"F1135*H1135","v":250},null,"  "]
[null,null,"3)","Menyiapkan tempat dan sarana rapat",null,50,null,15,{"$f":"F1136*H1136","v":750},null,"  "]
[null,null,"4)","Mengirimkan surat kepada instansi terkait",null,50,null,30,{"$f":"F1137*H1137","v":{"v":1500,"d":"1,500"}}]
[null,null,"5)","Melaporkan pelaksanaan kegiatan kepada pimpinan",null,50,null,15,{"$f":"F1138*H1138","v":750}]
[]
[null,4,"Melaksanakan tugas-tugas lain di bidang pemberdayaan masyarakat sesuai dengan peraturan perundang-undangan.",null,"Kegiatan",25,"kali",{"$f":"I1140/F1140","v":97},{"$f":"SUM(I1141:I1144)","v":{"v":2425,"d":"2,425"}},null,"  "]
[null,null,"1)","Menyiapkan bahan dan data pelaksanaan tugas yang telah dilaksanakan",null,25,null,45,{"$f":"F1141*H1141","v":{"v":1125,"d":"1,125"}},null,"  "]
[null,null,"2)","Mengagenda surat keluar dan masuk",null,25,null,10,{"$f":"F1142*H1142","v":250},null,"  "]
[null,null,"3)","Mengirim/ kurir surat",null,25,null,30,{"$f":"F1143*H1143","v":750},null,"  "]
[null,null,"4)","Melaporkan kepada pimpinan",null,20,null,15,{"$f":"F1144*H1144","v":300}]
[]
[null,5,"Menghimpun dokumen monitoring, pengendalian, pengawasan dan evaluasi penyelenggaraan pemberdayaan masyarakat dan pemeliharaan prasarana dan fasilitas pelayanan umum serta pelaksanaan kewenangan pemerintahan dalam menangani sebagian urusan otonomi daerah sesuai dengan bidangnya.",null,"Arsip Pemberdayaan Masyarakat",70,"dokumen",{"$f":"I1146/F1146","v":85},{"$f":"SUM(I1147:I1150)","v":{"v":5950,"d":"5,950"}},null,"  "]
[null,null,"1)","Mengagenda surat masuk dan surat keluar",null,70,null,20,{"$f":"F1147*H1147","v":{"v":1400,"d":"1,400"}},null,"  "]
[null,null,"2)","Menyimpan arsip surat masuk dan surat keluar",null,70,null,20,{"$f":"F1148*H1148","v":{"v":1400,"d":"1,400"}},null,"  "]
[null,null,"3)","Menyiapkan tempat dan sarana rapat",null,70,null,15,{"$f":"F1149*H1149","v":{"v":1050,"d":"1,050"}},null,"  "]
[null,null,"4)","Mengirimkan surat kepada instansi terkait",null,70,null,30,{"$f":"F1150*H1150","v":{"v":2100,"d":"2,100"}}]
[]
[null,6,"Menyusun laporan pelaksanaan tugas sesuai ketentuan yang berlaku untuk pertanggungjawaban kinerja dan rencana yang akan datang",null,"Laporan pelaksanaan tugas",48,"dokumen",{"$f":"I1152/F1152","v":{"v":147.5,"d":"148"}},{"$f":"SUM(I1153:I1156)","v":{"v":7080,"d":"7,080"}},null,"  "]
[null,null,"1)","Mengumpulkan bahan laporan pelaksanaan tugas;",null,48,null,15,{"$f":"F1153*H1153","v":720},null,"  "]
[null,null,"2)","Menganalisis bahan penyusunan laporan;",null,48,null,60,{"$f":"F1154*H1154","v":{"v":2880,"d":"2,880"}},null,"  "]
[null,null,"3)","Membuat laporan pelaksanaan tugas;",null,48,null,60,{"$f":"F1155*H1155","v":{"v":2880,"d":"2,880"}},null,"  "]
[null,null,"4)","Menyampaikan laporan kepada atasan;",null,40,null,15,{"$f":"F1156*H1156","v":600}]
[]
[null,7,"Melaksanakan tugas kedinasan lain yang diperintahkan oleh pimpinan baik lisan maupun tertulis sesuai prosedur untuk mendukung kelancaran pelaksanaan tugas satuan kerja.",null,"Kegiatan",100,"kali",{"$f":"I1158/F1158","v":83},{"$f":"SUM(I1159:I1161)","v":{"v":8300,"d":"8,300"}},null,"  "]
[null,null,"1)","Mempelajari tugas;",null,40,null,20,{"$f":"F1159*H1159","v":800},null,"  "]
[null,null,"2)","Menjalankan tugas;",null,100,null,60,{"$f":"F1160*H1160","v":{"v":6000,"d":"6,000"}},null,"  "]
[null,null,"3)","Melaporkan hasil pelaksanaan tugas.",null,100,null,15,{"$f":"F1161*H1161","v":{"v":1500,"d":"1,500"}},null,"  "]
[]
["VII.3","KONSEPTUAL & MANAGERIAL (KASI TRANTIBUM & KESRA)",{"$nulls":6},{"$f":"SUM(I1164,I1170,I1178,I1186,I1194,I1201,I1208,I1215,I1223,I1231,I1239,I1246,I1253,I1260,I1266)","v":{"v":65980,"d":"65,980"}},"Kasi Trantibum dan Kesra","1 orang"]
[null,1,"Menyusun rencana program dan kegiatan seksi Trantibum & Kesra sesuai program kerja Kecamatan dan ketentuan yang berlaku untuk pedoman pelaksanaan tugas.",null,"Program Kerja",2,"dokumen",{"$f":"I1164/F1164","v":{"v":772.5,"d":"773"}},{"$f":"SUM(I1165:I1168)","v":{"v":1545,"d":"1,545"}},null,"  "]
[null,null,"1)","Menelaah Program Kerja Kecamatan",null,5,null,180,{"$f":"F1165*H1165","v":900},null,"  "]
[null,null,"2)","Menyusun konsep rencana kegiatan Seksi Trantibum & Kesra",null,2,null,180,{"$f":"F1166*H1166","v":360},null,"  "]
[null,null,"3)","Mengkonsultasikan konsep rencana kegiatan dengan pimpinan;",null,5,null,45,{"$f":"F1167*H1167","v":225},null,"  "]
[null,null,"4)","Menetapkan rencana kegiatan Seksi Trantibum & Kesra",null,2,null,30,{"$f":"F1168*H1168","v":60}]
[]
[null,2,"Menyiapkan bahan rencana dan melaksanakan penyelenggaraan ketentraman dan ketertiban umum di wilayah kerja kecamatan sesuai ketentuan untuk mewujudkan kondisi yang aman, tenteram dan tertib.",null,"Kegiatan",48,"kali",{"$f":"I1170/F1170","v":{"v":150.83333333333334,"d":"151"}},{"$f":"SUM(I1171:I1176)","v":{"v":7240,"d":"7,240"}},null,"  "]
[null,null,1,"Mempelajari pedoman pelaksanaan tugas",null,8,null,20,{"$f":"F1171*H1171","v":160},null,"  "]
[null,null,2,"Menyiapkan dan mengolah bahan",null,48,null,60,{"v":2880,"d":"2,880"},null,"  "]
[null,null,3,"Mengecek persyaratan dan kelengkapan administrasi",null,48,null,30,{"v":1440,"d":"1,440"},null,"  "]
[null,null,4,"Melayani konsultasi ",null,48,null,15,720]
[null,null,5,"Menganalisa bahan",null,48,null,30,{"v":1440,"d":"1,440"}]
[null,null,6,"Memberikan rekomendasi kepada atasan",null,30,null,20,600]
[]
[null,3,"Menyiapkan bahan rencana dan melaksanakan kegiatan kesejahteraan rakyat antara lain di bidang agama, pendidikan dan kebudayaan, kesehatan, ketenagakerjaan, bantuan sosial, penanganan masalah kesejahteraan sosial, penanggulangan kemiskinan dan penanggulangan bencana sesuai ketentuan untuk meningkatkan kesejahteraan rakyat.",null,"Kegiatan",30,"kali",{"$f":"I1178/F1178","v":{"v":210.33333333333334,"d":"210"}},{"$f":"SUM(I1179:I1184)","v":{"v":6310,"d":"6,310"}},null,"  "]
[null,null,"1)","Mempelajari pedoman pelaksaaan tugas",null,8,null,20,{"$f":"F1179*H1179","v":160},null,"  "]
[null,null,"2)","Mengalisa dan mengevaluasi bahan kebijakan teknis",null,30,null,60,{"v":1800,"d":"1,800"},null,"  "]
[null,null,"3)","Mengumpulkan bahan dan data",null,40,null,30,{"v":1200,"d":"1,200"},null,"  "]
[null,null,"4)","Mengonsep rencana kebijakan teknis",null,30,null,60,{"v":1800,"d":"1,800"}]
[null,null,"5)","Mengkonsultasikan dengan pimpinan ",null,30,null,30,900]
[null,null,"6)","Merevisi konsep kebijakan teknis",null,30,null,15,450]
[]
[null,4,"Menyiapkan bahan rencana dan menyelenggarakan pelaksanaan kewenangan pemerintahan dalam menangani sebagian urusan otonomi daerah sesuai dengan bidangnya sesuai ketentuan sebagai pelaksanaan tugas satuan kerja.",null,"Kegiatan",18,"kali",{"$f":"I1186/F1186","v":{"v":238.33333333333334,"d":"238"}},{"$f":"SUM(I1187:I1192)","v":{"v":4290,"d":"4,290"}},null,"  "]
[null,null,1,"Mempelajari pedoman pelaksanaan tugas",null,4,null,20,{"$f":"F1187*H1187","v":80},null,"  "]
[null,null,2,"Menyiapkan dan mengolah bahan",null,18,null,60,{"v":1080,"d":"1,080"},null,"  "]
[null,null,3,"Mengecek persyaratan dan kelengkapan  administrasi",null,18,null,45,810,null,"  "]
[null,null,4,"Melayani konsultasi ",null,24,null,20,480]
[null,null,5,"Menganalisa bahan",null,24,null,60,{"v":1440,"d":"1,440"}]
[null,null,6,"Memberikan rekomendasi kepada atasan",null,20,null,20,400]
[]
[null,5,"Melaksanakan koordinasi teknis dengan Kepolisian Sektor (Polsek) dan / atau Komando Rayon Militer (KORAMIL) mengenai program dan kegiatan penyelenggaraan ketenteraman dan ketertiban umum di wilayah kerja kecamatan sesuai kewenangan yang dimiliki untuk mewujudkan ketenteraman dan ketertiban.",null,"Kegiatan",24,"kali",{"$f":"I1194/F1194","v":{"v":197.08333333333334,"d":"197"}},{"$f":"SUM(I1195:I1199)","v":{"v":4730,"d":"4,730"}},null,"  "]
[null,null,"1)","Mempelajari peraturan perundangan, petunjuk teknis dan kebijakan pelaksanaan kegiatan ",null,4,null,20,{"$f":"F1195*H1195","v":80},null,"  "]
[null,null,"2)","Menelaah pelaksanaan kegiatan tahun sebelumnya dan menyusun rencana kegiatan tahun berjalan",null,20,null,60,{"v":1200,"d":"1,200"},null,"  "]
[null,null,"3)","Menyusun rencana jadwal pelaksanaan kegiatan",null,2,null,60,120,null,"  "]
[null,null,"4)","Menganalisa bahan pelaksanaan kegiatan",null,48,null,60,{"v":2880,"d":"2,880"}]
[null,null,"5)","Mengkonsultasikan kepada pimpinan;",null,30,null,15,450]
[]
[null,6,"Menjalin komunikasi yang intensif dengan tokoh masyarakat / pemuka agama yang berada di wilayah kerja kecamatan untuk mewujudkan ketentraman dan ketertiban umum masyarakat di wilayah kerja kecamatan.",null,"Kegiatan",24,"kali",{"$f":"I1201/F1201","v":{"v":158.33333333333334,"d":"158"}},{"$f":"SUM(I1202:I1206)","v":{"v":3800,"d":"3,800"}},null,"  "]
[null,null,"1)","Mempelajari peraturan perundangan, petunjuk teknis dan kebijakan pelaksanaan kegiatan ",null,4,null,20,80,null,"  "]
[null,null,"2)","Menelaah pelaksanaan kegiatan tahun sebelumnya",null,24,null,60,{"v":1440,"d":"1,440"},null,"  "]
[null,null,"3)","Menyusun rencana/ jadwal pelaksanaan kegiatan",null,20,null,60,{"v":1200,"d":"1,200"},null,"  "]
[null,null,"4)","Berkoordinasi dengan pihak-pihak terkait",null,24,null,30,720]
[null,null,"5)","Mengkonsultasikan kepada pimpinan;",null,24,null,15,360]
[]
[null,7,"Melaksanakan koordinasi teknis dengan Satuan Polisi Pamong Praja mengenai penegakan Peraturan Daerah, Peraturan Bupati dan Keputusan Bupati.",null,"Kegiatan",24,"kali",{"$f":"I1208/F1208","v":{"v":113.33333333333333,"d":"113"}},{"$f":"SUM(I1209:I1213)","v":{"v":2720,"d":"2,720"}},null,"  "]
[null,null,"1)","Mempelajari peraturan perundangan, petunjuk teknis dan kebijakan pelaksanaan kegiatan ",null,4,null,20,{"$f":"F1209*H1209","v":80},null,"  "]
[null,null,"2)","Menelaah pelaksanaan kegiatan tahun sebelumnya dan menyusun rencana kegiatan tahun berjalan",null,24,null,60,{"$f":"F1210*H1210","v":{"v":1440,"d":"1,440"}},null,"  "]
[null,null,"3)","Menyusun rencana jadwal pelaksanaan kegiatan",null,2,null,60,{"$f":"F1211*H1211","v":120},null,"  "]
[null,null,"4)","Menganalisa bahan pelaksanaan kegiatan",null,24,null,30,{"$f":"F1212*H1212","v":720}]
[null,null,"5)","Mengkonsultasikan kepada pimpinan;",null,24,null,15,{"$f":"F1213*H1213","v":360}]
[]
[null,8,"Melaksanakan upaya preventif dalam penanggulangan penyakit masyarakat dan penanggulangan bencana.",null,"Kegiatan",20,"kali",{"$f":"I1215/F1215","v":175},{"$f":"SUM(I1216:I1221)","v":{"v":3500,"d":"3,500"}},null,"  "]
[null,null,1,"Mempelajari peraturan perundangan, petunjuk teknis dan kebijakan pelaksanaan kegiatan ",null,4,null,20,{"$f":"F1216*H1216","v":80},null,"  "]
[null,null,2,"Menyusun rancangan mekanisme pelaksanaan kegiatan",null,2,null,60,120,null,"  "]
[null,null,3,"Kunjungan ke lapangan untuk mengamati kondisi yang sebenarnya",null,36,null,60,{"v":2160,"d":"2,160"},null,"  "]
[null,null,4,"Mengidentifikasi karakter sosial & geografis desa",null,12,null,30,360]
[null,null,5,"Berkoordinasi dengan instansi terkait",null,12,null,15,180]
[null,null,6,"Memformulasikan permasalahan untuk dicarikan solusi",null,10,null,60,600]
[]
[null,9,"Melaksanakan upaya pengamanan atas aset pemerintah kabupaten di lingkungan kecamatan.",null,"Kegiatan",250,"kali",{"$f":"I1223/F1223","v":{"v":6.88,"d":"7"}},{"$f":"SUM(I1224:I1229)","v":{"v":1720,"d":"1,720"}},null,"  "]
[null,null,"1)","Mempelajari peraturan perundangan, petunjuk teknis dan kebijakan pelaksanaan kegiatan ",null,4,null,20,{"$f":"F1224*H1224","v":80},null,"  "]
[null,null,"2)","Menyusun rancangan mekanisme pelaksanaan kegiatan",null,2,null,60,120,null,"  "]
[null,null,"3)","Menyusun jadwal dan membagi tugas pada bawahan",null,2,null,60,120,null,"  "]
[null,null,"4)","Mengidentifikasi objek dan lingkungan sekitar",null,10,null,20,200]
[null,null,"5)","Berkoordinasi dengan Polsek & Koramil",null,48,null,20,960]
[null,null,"6)","Monitoring dan evaluasi pelaksanaan kegiatan",null,12,null,20,240]
[]
[null,10,"Melaksanakan pemantauan terhadap hal-hal yang memungkinkan terjadinya gangguan ketentraman dan ketertiban umum.",null,"Kegiatan",24,"kali",{"$f":"I1231/F1231","v":{"v":383.3333333333333,"d":"383"}},{"$f":"SUM(I1232:I1237)","v":{"v":9200,"d":"9,200"}},null,"  "]
[null,null,"1)","Mempelajari peraturan perundangan, petunjuk teknis dan kebijakan pelaksanaan kegiatan ",null,10,null,20,{"$f":"F1232*H1232","v":200},null,"  "]
[null,null,"2)","Menyusun rancangan mekanisme pelaksanaan kegiatan",null,24,null,90,{"v":2160,"d":"2,160"},null,"  "]
[null,null,"3)","Menyusun jadwal dan membagi tugas pada bawahan",null,24,null,90,{"v":2160,"d":"2,160"},null,"  "]
[null,null,"4)","Mengidentifikasi objek dan lingkungan sekitar",null,24,null,90,{"v":2160,"d":"2,160"}]
[null,null,"5)","Berkoordinasi dengan Polsek & Koramil",null,24,null,45,{"v":1080,"d":"1,080"}]
[null,null,"6)","Monitoring dan evaluasi pelaksanaan kegiatan",null,24,null,60,{"v":1440,"d":"1,440"}]
[]
[null,11,"Melaksanakan koordinasi teknis dengan SKPD yang membidangi penanggulangan gangguan ketentraman dan ketertiban umum.",null,"Kegiatan",20,"kali",{"$f":"I1239/F1239","v":250},{"$f":"SUM(I1240:I1245)","v":{"v":5000,"d":"5,000"}},null,"  "]
[null,null,"1)","Mempelajari peraturan perundangan, petunjuk teknis dan kebijakan pelaksanaan kegiatan ",null,10,null,30,{"$f":"F1240*H1240","v":300},null,"  "]
[null,null,"2)","Menelaah pelaksanaan kegiatan tahun sebelumnya dan menyusun rencana kegiatan tahun berjalan",null,20,null,60,{"$f":"F1241*H1241","v":{"v":1200,"d":"1,200"}},null,"  "]
[null,null,"3)","Menyusun rencana jadwal pelaksanaan kegiatan",null,20,null,70,{"$f":"F1242*H1242","v":{"v":1400,"d":"1,400"}},null,"  "]
[null,null,"4)","Menganalisa bahan pelaksanaan kegiatan",null,20,null,60,{"$f":"F1243*H1243","v":{"v":1200,"d":"1,200"}}]
[null,null,"5)","Mengkonsultasikan kepada pimpinan;",null,20,null,45,{"$f":"F1244*H1244","v":900}]
[]
[null,12,"Melaksanakan koordinasi teknis dengan SKPD, UPT, instansi vertikal atau swasta yang membidangi penanganan penyandang masalah kesejahteraan sosial, penanggulangan kemiskinan dan penanggulangan bencana.",null,"Kegiatan",20,"kali",{"$f":"I1246/F1246","v":330},{"$f":"SUM(I1247:I1252)","v":{"v":6600,"d":"6,600"}},null,"  "]
[null,null,"1)","Mempelajari peraturan perundangan, petunjuk teknis dan kebijakan pelaksanaan kegiatan ",null,10,null,30,{"$f":"F1247*H1247","v":300},null,"  "]
[null,null,"2)","Menelaah pelaksanaan kegiatan tahun sebelumnya dan menyusun rencana kegiatan tahun berjalan",null,20,null,60,{"$f":"F1248*H1248","v":{"v":1200,"d":"1,200"}},null,"  "]
[null,null,"3)","Menyusun rencana jadwal pelaksanaan kegiatan",null,20,null,120,{"$f":"F1249*H1249","v":{"v":2400,"d":"2,400"}},null,"  "]
[null,null,"4)","Menganalisa bahan pelaksanaan kegiatan",null,20,null,90,{"$f":"F1250*H1250","v":{"v":1800,"d":"1,800"}}]
[null,null,"5)","Mengkonsultasikan kepada pimpinan;",null,20,null,45,{"$f":"F1251*H1251","v":900}]
[]
[null,13,"Melaksanakan koordinasi teknis mengenai pengamanan tamu daerah yang berkunjung di wilayah kerja kecamatan.",null,"Kegiatan",24,"kali",{"$f":"I1253/F1253","v":{"v":258.3333333333333,"d":"258"}},{"$f":"SUM(I1254:I1258)","v":{"v":6200,"d":"6,200"}},null,"  "]
[null,null,"1)","Mempelajari peraturan perundangan, petunjuk teknis dan kebijakan pelaksanaan kegiatan ",null,4,null,20,{"$f":"F1254*H1254","v":80},null,"  "]
[null,null,"2)","Menelaah pelaksanaan kegiatan tahun sebelumnya dan menyusun rencana kegiatan tahun berjalan",null,24,null,60,{"$f":"F1255*H1255","v":{"v":1440,"d":"1,440"}},null,"  "]
[null,null,"3)","Menyusun rencana jadwal pelaksanaan kegiatan",null,24,null,90,{"$f":"F1256*H1256","v":{"v":2160,"d":"2,160"}},null,"  "]
[null,null,"4)","Menganalisa bahan pelaksanaan kegiatan",null,24,null,90,{"$f":"F1257*H1257","v":{"v":2160,"d":"2,160"}}]
[null,null,"5)","Mengkonsultasikan kepada pimpinan;",null,24,null,15,{"$f":"F1258*H1258","v":360}]
[]
[null,14,"Menyusun laporan pelaksanaan tugas sesuai ketentuan yang berlaku untuk pertanggungjawaban kinerja dan rencana yang akan datang",null,"Laporan pelaksanaan tugas",10,"dokumen",{"$f":"I1260/F1260","v":180},{"$f":"SUM(I1261:I1264)","v":{"v":1800,"d":"1,800"}},null,"  "]
[null,null,"1)","Mengumpulkan bahan laporan pelaksanaan tugas;",null,10,null,15,{"$f":"F1261*H1261","v":150},null,"  "]
[null,null,"2)","Menganalisis bahan penyusunan laporan;",null,10,null,60,{"$f":"F1262*H1262","v":600},null,"  "]
[null,null,"3)","Membuat laporan pelaksanaan tugas;",null,10,null,90,{"$f":"F1263*H1263","v":900},null,"  "]
[null,null,"4)","Menyampaikan laporan kepada atasan;",null,10,null,15,{"$f":"F1264*H1264","v":150}]
[]
[null,15,"Melaksanakan tugas kedinasan lain yang diperintahkan oleh pimpinan baik lisan maupun tertulis sesuai prosedur untuk mendukung kelancaran pelaksanaan tugas satuan kerja.",null,"Kelancaran tugas",15,"dokumen",{"$f":"I1266/F1266","v":{"v":88.33333333333333,"d":"88"}},{"$f":"SUM(I1267:I1270)","v":{"v":1325,"d":"1,325"}},null,"  "]
[null,null,"1)","Mempelajari tugas;",null,10,null,20,{"$f":"F1267*H1267","v":200},null,"  "]
[null,null,"2)","Menjalankan tugas;",null,15,null,60,{"$f":"F1268*H1268","v":900},null,"  "]
[null,null,"3)","Melaporkan hasil pelaksanaan tugas.",null,15,null,15,{"$f":"F1269*H1269","v":225},null,"  "]
[]
["III.3","Teknik Tinggi dan Menengah",{"$nulls":6},{"$f":"I1272+I1278+I1287+I1299+I1311+I1319+I1324+I1329+I1341+I1348+I1355+I1361","v":{"v":56650,"d":"56,650"}},"Pengadministrasi Umum","1 orang"]
[null,1,"Merencanakan kegiatan yang menjadi tugasnya sesuai program kerja  Seksi Trantibum dan Kesra dan ketentuan yang berlaku untuk pedoman pelaksanaan tugas.",null,"Program kerja",24,"dokumen",{"$f":"I1272/F1272","v":{"v":122.5,"d":"123"}},{"$f":"SUM(I1273:I1276)","v":{"v":2940,"d":"2,940"}}]
[null,null,"1)","Menelaah Program Kerja yang telah ditetapkan;",null,12,null,60,{"$f":"F1273*H1273","v":720}]
[null,null,"2)","Menyusun konsep rencana kegiatan;",null,12,null,120,{"$f":"F1274*H1274","v":{"v":1440,"d":"1,440"}},null,"  "]
[null,null,"3)","Mengkonsultasikan konsep rencana kegiatan dengan pimpinan untuk mendapatkan arahan;",null,12,null,45,{"$f":"F1275*H1275","v":540},null,"  "]
[null,null,"4)","Menetapkan rencana pelaksanaan kegiatan;",null,12,null,20,{"$f":"F1276*H1276","v":240}]
[]
[null,2,"Menyiapkan bahan dan administrasi pelaksanaan kegiatan pembekalan/ bimtek pengendalian keamananan & siaga bencana.",null,"Bahan pembekalan",50,"dokumen",{"$f":"I1278/F1278","v":{"v":128.5,"d":"129"}},{"$f":"SUM(I1279:I1284)","v":{"v":6425,"d":"6,425"}},null,"  "]
[null,null,"1)","Mempelajari pedoman pelaksanaan tugas",null,5,null,15,{"$f":"F1279*H1279","v":75},null,"  "]
[null,null,"2)","Membuat notulen rapat",null,70,null,30,{"v":2100,"d":"2,100"},null,"  "]
[null,null,"3)","Membuat dokumentasi kegiatan",null,50,null,20,{"v":1000,"d":"1,000"},null,"  "]
[null,null,"4)","Membuat konsep surat undangan dan daftar hadir kegiatan pembekalan/bimtek",null,50,null,20,{"v":1000,"d":"1,000"}]
[null,null,"5)","melakukan koordinasi persiapan teknis dengan pihak-pihak terkait",null,50,null,30,{"v":1500,"d":"1,500"}]
[null,null,6,"Melaporkan kepada pimpinan",null,50,null,15,750]
[]
[]
[null,3,"Menyusun konsep kegiatan koordinasi teknis dengan Kepolisian Sektor (Polsek) dan / atau Komando Rayon Militer (KORAMIL) mengenai program dan kegiatan penyelenggaraan ketentraman dan ketertiban umum di wilayah kerja kecamatan.",null,"Kegiatan",24,"kali",{"$f":"I1287/F1287","v":{"v":329.7916666666667,"d":"330"}},{"$f":"SUM(I1288:I1297)","v":{"v":7915,"d":"7,915"}},null,"  "]
[null,null,"1)","Mempelajari pedoman dan petunjuk teknis pelaksanaan kegiatan ",null,4,null,20,{"$f":"F1288*H1288","v":80},null,"  "]
[null,null,"2)","Mempelajari dan menyiapakan bahan pelaksanaan kegiatan",null,12,null,60,720,null,"  "]
[null,null,"3)","Mengumpulkan dan menyiapkan bahan kerja untuk menyusun rancangan pedoman pelaksanaan dan teknis kegiatan",null,12,null,30,360,null,"  "]
[null,null,"4)","Menyusun konsep surat undangan rapat persiapan/ evaluasi kegiatan dan daftar hadir",null,5,null,15,75,null,"  "]
[null,null,"5)","Membuat notulen rapat",null,70,null,30,{"v":2100,"d":"2,100"},null,"  "]
[null,null,"6)","Membuat dokumentasi kegiatan",null,50,null,20,{"v":1000,"d":"1,000"},null,"  "]
[null,null,"7)","Membuat konsep surat undangan dan daftar hadir kegiatan pembekalan/bimtek",null,50,null,20,{"v":1000,"d":"1,000"}]
[null,null,"8)","Melakukan koordinasi persiapan teknis dengan pihak-pihak terkait",null,50,null,30,{"v":1500,"d":"1,500"}]
[null,null,"9)","Menyusun laporan hasil pelaksanaan kegiatan",null,24,null,30,720]
[null,null,"10)","Melaporkan hasil kegiatan",null,24,null,15,360]
[]
[null,4,"Menyusun konsep kegiatan koordinasi teknis dengan Satuan Polisi Pamong Praja mengenai penegakan Peraturan Daerah, Peraturan Bupati dan Keputusan Bupati.",null,"Kegiatan",24,"kali",{"$f":"I1299/F1299","v":{"v":253.33333333333334,"d":"253"}},{"$f":"SUM(I1300:I1309)","v":{"v":6080,"d":"6,080"}},null,"  "]
[null,null,"1)","Mempelajari pedoman dan petunjuk teknis pelaksanaan kegiatan; ",null,4,null,20,{"$f":"F1300*H1300","v":80},null,"  "]
[null,null,"2)","Mempelajari dan menyiapkan bahan pelaksanaan kegiatan;",null,25,null,60,{"v":1500,"d":"1,500"},null,"  "]
[null,null,"3)","Mengumpulkan dan menyiapkan bahan kerja untuk menyusun rancangan pedoman pelaksanaan dan teknis kegiatan;",null,25,null,30,750,null,"  "]
[null,null,"4)","Menyusun konsep surat undangan rapat persiapan/ evaluasi kegiatan dan daftar hadir",null,25,null,15,375,null,"  "]
[null,null,"5)","Membuat notulen rapat",null,25,null,20,500,null,"  "]
[null,null,"6)","Membuat dokumentasi kegiatan",null,25,null,20,500,null,"  "]
[null,null,"7)","Membuat konsep surat undangan dan daftar hadir kegiatan pembekalan/bimtek",null,25,null,20,500]
[null,null,"8)","melakukan koordinasi persiapan teknis dengan pihak-pihak terkait",null,25,null,30,750]
[null,null,"9)","Menyusun laporan hasil pelaksanaan kegiatan",null,25,null,30,750]
[null,null,"10)","Melaporkan hasil kegiatan",null,25,null,15,375]
[]
[null,5,"Menyiapkan bahan dan melaksanakan upaya preventif dalam penanggulangan penyakit masyarakat dan penanggulangan bencana sesuai ketentuan agar menghindari jatuhnya korban.",null,"Kegiatan",20,"kali",{"$f":"I1311/F1311","v":253},{"$f":"SUM(I1312:I1317)","v":{"v":5060,"d":"5,060"}},null,"  "]
[null,null,"1)","Mempelajari pedoman pelaksanaan tugas",null,4,null,20,{"$f":"F1312*H1312","v":80},null,"  "]
[null,null,"2)","Menyusun konsep upaya penanggulangan dan kerjasama antar desa/ kelurahan",null,2,null,60,120,null,"  "]
[null,null,"3)","Kunjungan lapangan untuk mendapatkan informasi dan data yang akurat",null,36,null,60,{"v":2160,"d":"2,160"},null,"  "]
[null,null,"4)","Mengkonsultasikan permasalahan kepada pimpinan",null,36,null,30,{"v":1080,"d":"1,080"}]
[null,null,"5)","Mengkoordinasikan ke pihak-pihak terkait;",null,36,null,30,{"v":1080,"d":"1,080"}]
[null,null,"6)","Melaporkan hasil pelaksanaan kegiatan kepada pimpinan",null,36,null,15,540]
[]
[null,6,"Melaksanakan upaya pengamanan atas aset pemerintah kabupaten di lingkungan kecamatan sesuai ketentuan untuk mengamankan aset pemerintah kabupaten.",null,"Kegiatan",200,"kali",{"$f":"I1319/F1319","v":{"v":61.6,"d":"62"}},{"$f":"SUM(I1320:I1323)","v":{"v":12320,"d":"12,320"}},null,"  "]
[null,null,"1)","Mempelajari pedoman pelaksanaan tugas",null,4,null,20,{"$f":"F1320*H1320","v":80},null,"  "]
[null,null,"2)","Menjalankan tugas;",null,200,null,60,{"$f":"F1321*H1321","v":{"v":12000,"d":"12,000"}},null,"  "]
[null,null,"3)","Melaporkan hasil pelaksanaan tugas.",null,12,null,20,{"$f":"F1322*H1322","v":240}]
[]
[null,7,"Melaksanakan pemantauan terhadap hal-hal yang memungkinkan terjadinya gangguan ketentraman dan ketertiban umum sesuai ketentuan untuk mengetahui kondisi ketenteraman dan ketertiban umum.",null,"Kegiatan",24,"kali",{"$f":"I1324/F1324","v":{"v":78.33333333333333,"d":"78"}},{"$f":"SUM(I1325:I1327)","v":{"v":1880,"d":"1,880"}},null,"  "]
[null,null,"1)","Mempelajari pedoman pelaksanaan tugas",null,4,null,20,{"$f":"F1325*H1325","v":80},null,"  "]
[null,null,"2)","Menjalankan tugas;",null,24,null,60,{"$f":"F1326*H1326","v":{"v":1440,"d":"1,440"}},null,"  "]
[null,null,"3)","Melaporkan hasil pelaksanaan tugas.",null,24,null,15,{"$f":"F1327*H1327","v":360}]
[]
[null,8,"Menyiapkan bahan dan melaksanakan koordinasi teknis mengenai pengamanan tamu daerah yang berkunjung di wilayah kerja kecamatan.",null,"Kegiatan",25,"kali",{"$f":"I1329/F1329","v":{"v":270.2,"d":"270"}},{"$f":"SUM(I1330:I1339)","v":{"v":6755,"d":"6,755"}},null,"  "]
[null,null,"1)","Mempelajari pedoman dan petunjuk teknis pelaksanaan kegiatan; ",null,4,null,20,{"$f":"F1330*H1330","v":80},null,"  "]
[null,null,"2)","Mempelajari dan menyiapkan bahan pelaksanaan kegiatan;",null,25,null,30,750,null,"  "]
[null,null,"3)","Mengumpulkan dan menyiapkan bahan kerja untuk menyusun rancangan pedoman pelaksanaan dan teknis kegiatan;",null,25,null,60,{"v":1500,"d":"1,500"},null,"  "]
[null,null,"4)","Menyusun konsep surat undangan rapat persiapan/ evaluasi kegiatan dan daftar hadir",null,25,null,15,375,null,"  "]
[null,null,"5)","Membuat notulen rapat",null,25,null,20,500,null,"  "]
[null,null,"6)","Membuat dokumentasi kegiatan",null,25,null,20,500,null,"  "]
[null,null,"7)","Membuat konsep surat undangan dan daftar hadir kegiatan pembekalan/bimtek",null,25,null,20,500]
[null,null,"8)","melakukan koordinasi persiapan teknis dengan pihak-pihak terkait",null,25,null,30,750]
[null,null,"9)","Menyusun konsep hasil pelaksanaan kegiatan;",null,24,null,60,{"v":1440,"d":"1,440"}]
[null,null,"10)","Melaporkan dan menyampaikan konsep laporann hasil kegiatan ke pimpinan.",null,24,null,15,360]
[]
[null,9,"Menyusun konsep surat-menyurat koordinasi teknis dengan SKPD, UPT, instansi vertikal atau swasta yang membidangi penanganan penyandang masalah kesejahteraan sosial, penanggulangan kemiskinan dan penanggulangan bencana.",null,"Surat",25,"dokumen",{"$f":"I1341/F1341","v":105},{"$f":"SUM(I1342:I1346)","v":{"v":2625,"d":"2,625"}},null,"  "]
[null,null,"1)","Menyusun konsep surat undangan rapat persiapan/ evaluasi kegiatan dan daftar hadir",null,25,null,15,{"$f":"F1342*H1342","v":375},null,"  "]
[null,null,"2)","Membuat notulen rapat",null,25,null,20,{"$f":"F1343*H1343","v":500},null,"  "]
[null,null,"3)","Membuat dokumentasi kegiatan",null,25,null,20,{"$f":"F1344*H1344","v":500},null,"  "]
[null,null,"4)","Membuat konsep surat undangan dan daftar hadir kegiatan pembekalan/bimtek",null,25,null,20,{"$f":"F1345*H1345","v":500}]
[null,null,"5)","melakukan koordinasi persiapan teknis dengan pihak-pihak terkait",null,25,null,30,{"$f":"F1346*H1346","v":750}]
[]
[null,10,"Menyusun konsep surat-menyurat koordinasi teknis dengan SKPD yang membidangi penanggulangan gangguan ketentraman dan ketertiban umum.",null,"Surat",10,"dokumen",{"$f":"I1348/F1348","v":{"v":107.5,"d":"108"}},{"$f":"SUM(I1349:I1353)","v":{"v":1075,"d":"1,075"}},null,"  "]
[null,null,"1)","Menyusun konsep surat undangan rapat persiapan/ evaluasi kegiatan dan daftar hadir",null,5,null,15,{"$f":"F1349*H1349","v":75},null,"  "]
[null,null,"2)","Membuat notulen rapat",null,10,null,30,{"$f":"F1350*H1350","v":300},null,"  "]
[null,null,"3)","Membuat dokumentasi kegiatan",null,10,null,20,{"$f":"F1351*H1351","v":200},null,"  "]
[null,null,"4)","Membuat konsep surat undangan dan daftar hadir kegiatan pembekalan/bimtek",null,10,null,20,{"$f":"F1352*H1352","v":200}]
[null,null,"5)","melakukan koordinasi persiapan teknis dengan pihak-pihak terkait",null,10,null,30,{"$f":"F1353*H1353","v":300}]
[]
[null,11,"Menyusun laporan pelaksanaan tugas sesuai ketentuan yang berlaku untuk pertanggungjawaban kinerja dan rencana yang akan datang",null,"Laporan pelaksanaan tugas",10,"dokumen",{"$f":"I1355/F1355","v":150},{"$f":"SUM(I1356:I1359)","v":{"v":1500,"d":"1,500"}},null,"  "]
[null,null,"1)","Mengumpulkan bahan laporan pelaksanaan tugas;",null,10,null,15,{"$f":"F1356*H1356","v":150},null,"  "]
[null,null,"2)","Menganalisis bahan penyusunan laporan;",null,10,null,60,{"$f":"F1357*H1357","v":600},null,"  "]
[null,null,"3)","Membuat laporan pelaksanaan tugas;",null,10,null,60,{"$f":"F1358*H1358","v":600},null,"  "]
[null,null,"4)","Menyampaikan laporan kepada atasan;",null,10,null,15,{"$f":"F1359*H1359","v":150}]
[]
[null,12,"Melaksanakan tugas kedinasan lain yang diperintahkan oleh pimpinan baik lisan maupun tertulis sesuai prosedur untuk mendukung kelancaran pelaksanaan tugas satuan kerja.",null,"Kegiatan",25,"kali",{"$f":"I1361/F1361","v":83},{"$f":"SUM(I1362:I1364)","v":{"v":2075,"d":"2,075"}},null,"  "]
[null,null,"1)","Mempelajari tugas;",null,10,null,20,{"$f":"F1362*H1362","v":200},null,"  "]
[null,null,"2)","Menjalankan tugas;",null,25,null,60,{"$f":"F1363*H1363","v":{"v":1500,"d":"1,500"}},null,"  "]
[null,null,"3)","Melaporkan hasil pelaksanaan tugas.",null,25,null,15,{"$f":"F1364*H1364","v":375},null,"  "]
[]
["V.3","Teknik Rendah",{"$nulls":6},{"$f":"SUM(I1367,I1374,I1381,I1389,I1394,I1399,I1406,I1413,I1420,I1426)","v":{"v":50880,"d":"50,880"}},"Pengarsip ","1 orang"]
[null,1,"Membantu pelaksanaan kegiatan  koordinasi teknis dengan Kepolisian Sektor (Polsek) dan / atau Komando Rayon Militer (KORAMIL) mengenai program dan kegiatan penyelenggaraan ketentraman dan ketertiban umum di wilayah kerja kecamatan agar dapat berjalan dengan lancar.",null,"Kegiatan",50,"kali",{"$f":"I1367/F1367","v":{"v":77.5,"d":"78"}},{"$f":"SUM(I1368:I1372)","v":{"v":3875,"d":"3,875"}},null,"  "]
[null,null,"1)","Mengagenda surat masuk dan surat keluar",null,5,null,5,{"$f":"F1368*H1368","v":25},null,"  "]
[null,null,"2)","Menyimpan arsip surat masuk dan surat keluar",null,70,null,5,{"$f":"F1369*H1369","v":350},null,"  "]
[null,null,"3)","Menyiapkan tempat dan sarana rapat-rapat persiapan dan evaluasi kegiatan",null,50,null,20,{"$f":"F1370*H1370","v":{"v":1000,"d":"1,000"}},null,"  "]
[null,null,"4)","Mengirimkan surat kepada instansi terkait",null,50,null,20,{"$f":"F1371*H1371","v":{"v":1000,"d":"1,000"}}]
[null,null,"5) ","Menyiapkan tempat dan sarana yang dibutuhkan pada saat pelaksanaan kegiatan",null,50,null,30,{"$f":"F1372*H1372","v":{"v":1500,"d":"1,500"}}]
[]
[null,2,"Membantu pelaksanaan kegiatan koordinasi teknis dengan Satuan Polisi Pamong Praja mengenai penegakan Peraturan Daerah, Peraturan Bupati dan Keputusan Bupati agar dapat berjalan dengan lancar.",null,"Kegiatan",50,"kali",{"$f":"I1374/F1374","v":{"v":77.5,"d":"78"}},{"$f":"SUM(I1375:I1379)","v":{"v":3875,"d":"3,875"}},null,"  "]
[null,null,"1)","Mengagenda surat masuk dan surat keluar",null,5,null,5,{"$f":"F1375*H1375","v":25},null,"  "]
[null,null,"2)","Menyimpan arsip surat masuk dan surat keluar",null,70,null,5,{"$f":"F1376*H1376","v":350},null,"  "]
[null,null,"3)","Menyiapkan tempat dan sarana rapat-rapat persiapan dan evaluasi kegiatan",null,50,null,20,{"$f":"F1377*H1377","v":{"v":1000,"d":"1,000"}},null,"  "]
[null,null,"4)","Mengirimkan surat kepada instansi terkait",null,50,null,20,{"$f":"F1378*H1378","v":{"v":1000,"d":"1,000"}}]
[null,null,"5) ","Menyiapkan tempat dan sarana yang dibutuhkan pada saat pelaksanaan kegiatan",null,50,null,30,{"$f":"F1379*H1379","v":{"v":1500,"d":"1,500"}}]
[]
[null,3,"Membantu pelaksanaan kegiatan  pelaksanaan upaya preventif dalam penanggulangan penyakit masyarakat dan penanggulangan bencana agar dapat berjalan dengan lancar.",null,"Kegiatan",50,"kali",{"$f":"I1381/F1381","v":{"v":93.5,"d":"94"}},{"$f":"SUM(I1382:I1387)","v":{"v":4675,"d":"4,675"}},null,"  "]
[null,null,"1)","mempelajari pedoman pelaksanaan tugas",null,5,null,15,{"$f":"F1382*H1382","v":75},null,"  "]
[null,null,"2)","Mengagenda surat keluar dan surat masuk",null,70,null,5,350,null,"  "]
[null,null,"3)","Mengirimkan surat ke instansi terkait",null,50,null,20,{"v":1000,"d":"1,000"},null,"  "]
[null,null,"4)","Menyiapkan tempat dan sarana rapat",null,50,null,20,{"v":1000,"d":"1,000"}]
[null,null,"5)","mengkonsultasikan permasalahan kepada pimpinan",null,50,null,30,{"v":1500,"d":"1,500"}]
[null,null,"6)","Melaporkan hasil pelaksanaan kegiatan kepada pimpinan",null,50,null,15,750]
[]
[null,4,"Membantu melaksanakan upaya pengamanan atas aset pemerintah kabupaten di lingkungan perkantoran kecamatan sesuai ketentuan agar aset terjaga keamanannya.",null,"Kegiatan",200,"kali",{"$f":"I1389/F1389","v":{"v":91.5,"d":"92"}},{"$f":"SUM(I1390:I1394)","v":{"v":18300,"d":"18,300"}},null,"  "]
[null,null,"1)","mempelajari pedoman pelaksanaan tugas",null,4,null,20,{"$f":"F1390*H1390","v":80},null,"  "]
[null,null,"2)","Menjalankan tugas;",null,200,null,60,{"$f":"F1391*H1391","v":{"v":12000,"d":"12,000"}},null,"  "]
[null,null,"3)","Melaporkan hasil pelaksanaan tugas.",null,12,null,20,{"$f":"F1392*H1392","v":240}]
[]
[null,5,"Membantu melaksanakan pemantauan terhadap hal-hal yang memungkinkan terjadinya gangguan ketentraman dan ketertiban umum.",null,"Kegiatan",24,"kali",{"$f":"I1394/F1394","v":{"v":249.16666666666666,"d":"249"}},{"$f":"SUM(I1395:I1399)","v":{"v":5980,"d":"5,980"}},null,"  "]
[null,null,"1)","mempelajari pedoman pelaksanaan tugas",null,4,null,20,{"$f":"F1395*H1395","v":80},null,"  "]
[null,null,"2)","Menjalankan tugas;",null,24,null,60,{"$f":"F1396*H1396","v":{"v":1440,"d":"1,440"}},null,"  "]
[null,null,"3)","Melaporkan hasil pelaksanaan tugas.",null,24,null,15,{"$f":"F1397*H1397","v":360}]
[]
[null,6,"Menghimpun dan mengagendakan arsip kegiatan pelaksanaan koordinasi teknis dengan SKPD yang membidangi penanggulangan gangguan ketentraman dan ketertiban umum.",null,"Himpunan arsip",50,"dokumen",{"$f":"I1399/F1399","v":82},{"$f":"SUM(I1400:I1404)","v":{"v":4100,"d":"4,100"}},null,"  "]
[null,null,"1)","Mengagenda surat masuk dan surat keluar",null,50,null,5,{"$f":"F1400*H1400","v":250},null,"  "]
[null,null,"2)","Menyimpan arsip surat masuk dan surat keluar",null,70,null,5,{"$f":"F1401*H1401","v":350},null,"  "]
[null,null,"3)","Menyiapkan tempat dan sarana rapat-rapat persiapan dan evaluasi kegiatan",null,50,null,20,{"$f":"F1402*H1402","v":{"v":1000,"d":"1,000"}},null,"  "]
[null,null,"4)","Mengirimkan surat kepada instansi terkait",null,50,null,20,{"$f":"F1403*H1403","v":{"v":1000,"d":"1,000"}}]
[null,null,"5) ","Menyiapkan tempat dan sarana yang dibutuhkan pada saat pelaksanaan kegiatan",null,50,null,30,{"$f":"F1404*H1404","v":{"v":1500,"d":"1,500"}}]
[]
[null,7,"Menghimpun dan mendokumentasikan pelaksanaan kegiatan  koordinasi teknis dengan SKPD, UPT, instansi vertikal atau swasta yang membidangi penanganan penyandang masalah kesejahteraan sosial, penanggulangan kemiskinan dan penanggulangan bencana.",null,"Himpunan arsip",50,"dokumen",{"$f":"I1406/F1406","v":65},{"$f":"SUM(I1407:I1411)","v":{"v":3250,"d":"3,250"}},null,"  "]
[null,null,"1)","Mengagenda surat masuk dan surat keluar",null,50,null,5,{"$f":"F1407*H1407","v":250},null,"  "]
[null,null,"2)","Menyimpan arsip surat masuk dan surat keluar",null,50,null,5,{"$f":"F1408*H1408","v":250},null,"  "]
[null,null,"3)","Menyiapkan tempat dan sarana rapat-rapat persiapan dan evaluasi kegiatan",null,50,null,15,{"$f":"F1409*H1409","v":750},null,"  "]
[null,null,"4)","Mengirimkan surat kepada instansi terkait",null,50,null,20,{"$f":"F1410*H1410","v":{"v":1000,"d":"1,000"}}]
[null,null,"5) ","Menyiapkan tempat dan sarana yang dibutuhkan pada saat pelaksanaan kegiatan",null,50,null,20,{"$f":"F1411*H1411","v":{"v":1000,"d":"1,000"}}]
[]
[null,8,"Menghimpun dan mendokumentasikan pelaksanaan kegiatan koordinasi teknis mengenai pengamanan tamu daerah yang berkunjung di wilayah kerja kecamatan.",null,"Himpunan arsip",50,"dokumen",{"$f":"I1413/F1413","v":65},{"$f":"SUM(I1414:I1418)","v":{"v":3250,"d":"3,250"}},null,"  "]
[null,null,"1)","Mengagenda surat masuk dan surat keluar",null,50,null,5,{"$f":"F1414*H1414","v":250},null,"  "]
[null,null,"2)","Menyimpan arsip surat masuk dan surat keluar",null,50,null,5,{"$f":"F1415*H1415","v":250},null,"  "]
[null,null,"3)","Menyiapkan tempat dan sarana rapat-rapat persiapan dan evaluasi kegiatan",null,50,null,15,{"$f":"F1416*H1416","v":750},null,"  "]
[null,null,"4)","Mengirimkan surat kepada instansi terkait",null,50,null,20,{"$f":"F1417*H1417","v":{"v":1000,"d":"1,000"}}]
[null,null,"5) ","Menyiapkan tempat dan sarana yang dibutuhkan pada saat pelaksanaan kegiatan",null,50,null,20,{"$f":"F1418*H1418","v":{"v":1000,"d":"1,000"}}]
[]
[null,9,"Menyusun laporan pelaksanaan tugas sesuai ketentuan yang berlaku untuk pertanggungjawaban kinerja dan rencana yang akan datang.",null,"Laporan pelaksanaan tugas",10,"dokumen",{"$f":"I1420/F1420","v":150},{"$f":"SUM(I1421:I1424)","v":{"v":1500,"d":"1,500"}},null,"  "]
[null,null,"1)","Mengumpulkan bahan laporan pelaksanaan tugas;",null,10,null,15,{"$f":"F1421*H1421","v":150},null,"  "]
[null,null,"2)","Menganalisis bahan penyusunan laporan;",null,10,null,60,{"$f":"F1422*H1422","v":600},null,"  "]
[null,null,"3)","Membuat laporan pelaksanaan tugas;",null,10,null,60,{"$f":"F1423*H1423","v":600},null,"  "]
[null,null,"4)","Menyampaikan laporan kepada atasan;",null,10,null,15,{"$f":"F1424*H1424","v":150}]
[]
[null,10,"Melaksanakan tugas kedinasan lain yang diperintahkan oleh pimpinan baik lisan maupun tertulis sesuai prosedur untuk mendukung kelancaran pelaksanaan tugas satuan kerja.",null,"Kegiatan",25,"kali",{"$f":"I1426/F1426","v":83},{"$f":"SUM(I1427:I1430)","v":{"v":2075,"d":"2,075"}},null,"  "]
[null,null,"1)","Mempelajari tugas;",null,10,null,20,{"$f":"F1427*H1427","v":200},null,"  "]
[null,null,"2)","Menjalankan tugas;",null,25,null,60,{"$f":"F1428*H1428","v":{"v":1500,"d":"1,500"}},null,"  "]
[null,null,"3)","Melaporkan hasil pelaksanaan tugas.",null,25,null,15,{"$f":"F1429*H1429","v":375},null,"  "]
[]
["VIII.4","KONSEPTUAL & MANAGERIAL (KASI POTWIL)",{"$nulls":6},{"$f":"SUM(I1432,I1438,I1445,I1452,I1460,I1468,I1475,I1482,I1489,I1496,I1503,I1509)","v":{"v":37510,"d":"37,510"}},"Kasi Potensi Wilayah","1 orang"]
[null,1,"Menyusun rencana program dan kegiatan seksi Potensi Wilayah berdasarkan program kerja kecamatan sebagai pedoman pelaksanaan tugas.",null,"Program Kerja",2,"dokumen",{"$f":"I1432/F1432","v":{"v":562.5,"d":"563"}},{"$f":"SUM(I1433:I1436)","v":{"v":1125,"d":"1,125"}},null,"  "]
[null,null,"1)","Menelaah Program Kerja Kecamatan",null,5,null,120,{"$f":"F1433*H1433","v":600},null,"  "]
[null,null,"2)","Menyusun konsep rencana kegiatan Seksi Potensi Wilayah",null,2,null,120,{"$f":"F1434*H1434","v":240},null,"  "]
[null,null,"3)","Mengkonsultasikan konsep rencana kegiatan dengan pimpinan;",null,5,null,45,{"$f":"F1435*H1435","v":225}]
[null,null,"4)","Menetapkan rencana kegiatan seksi Potensi Wilayah",null,2,null,30,{"$f":"F1436*H1436","v":60}]
[]
[null,2,"Membimbing dan mengkoordinasikan pelaksanaan tugas bawahan di lingkup Seksi Potensi Wilayah setiap saat sesuai dengan tugas dan tanggung jawabnya agar pekerjaan berjalan tertib dan lancar.",null,"Koordinasi pelaksanaan tugas",24,"kali",{"$f":"I1438/F1438","v":{"v":181.25,"d":"181"}},{"$f":"SUM(I1439:I1443)","v":{"v":4350,"d":"4,350"}},null,"  "]
[null,null,"1)","Menjelaskan tugas yang akan dilaksanakan bawahan;",null,24,null,30,{"$f":"F1439*H1439","v":720},null,"  "]
[null,null,"2)","Mengidentifikasi kesulitan yang dialami bawahan;",null,24,null,45,{"$f":"F1440*H1440","v":{"v":1080,"d":"1,080"}},null,"  "]
[null,null,"3)","Mengkoordinasikan pelaksanaan tugas;",null,30,null,45,{"$f":"F1441*H1441","v":{"v":1350,"d":"1,350"}},null,"  "]
[null,null,"4)","Mengkonsultasikan permasalahan kepada pimpinan;",null,30,null,20,{"$f":"F1442*H1442","v":600}]
[null,null,"5)","Memberikan arahan kepada bawahan terkait permasalahan dalam pelaksanaan tugas.",null,30,null,20,{"$f":"F1443*H1443","v":600}]
[]
[null,3,"Melaksanakan supervisi pelaksanaan tugas bawahan dilingkup Seksi Potensi Wilayah sesuai dengan prosedur dan peraturan yang berlaku untuk mencapai target yang telah ditetapkan.",null,"Kegiatan Supervisi Internal",30,"kali",{"$f":"I1445/F1445","v":220},{"$f":"SUM(I1446:I1450)","v":{"v":6600,"d":"6,600"}},null,"  "]
[null,null,"1)","Menentukan standar kualitas dan/atau kuantitas kerja;",null,30,null,60,{"$f":"F1446*H1446","v":{"v":1800,"d":"1,800"}},null,"  "]
[null,null,"2)","Menelaah pelaksanaan tugas bawahan;",null,40,null,30,{"$f":"F1447*H1447","v":{"v":1200,"d":"1,200"}},null,"  "]
[null,null,"3)","Mengidentifikasi kesalahan dalam pelaksanaan tugas sesuai dengan prosedur yang telah ditentukan;",null,40,null,30,{"$f":"F1448*H1448","v":{"v":1200,"d":"1,200"}},null,"  "]
[null,null,"4)","Mengoreksi pelaksanaan tugas bawahan;",null,60,null,30,{"$f":"F1449*H1449","v":{"v":1800,"d":"1,800"}}]
[null,null,"5)","Memberikan arahan terkait koreksi pelaksanaan tugas.",null,30,null,20,{"$f":"F1450*H1450","v":600}]
[]
[null,4,"Menyiapkan bahan rencana dan melaksanakan pengembangan dan penanganan potensi dan karakteristik wilayah kecamatan.",null,"Kegiatan",30,"kali",{"$f":"I1452/F1452","v":160},{"$f":"SUM(I1453:I1458)","v":{"v":4800,"d":"4,800"}},null,"  "]
[null,null,"1)","Mempelajari pedoman pelaksanaan tugas",null,10,null,15,{"$f":"F1453*H1453","v":150},null,"  "]
[null,null,"2)","Mengalisa dan mengevaluasi bahan kebijakan teknis",null,30,null,30,900,null,"  "]
[null,null,"3)","Mengumpulkan bahan dan data",null,30,null,30,900,null,"  "]
[null,null,"4)","Mengonsep rencana kebijakan teknis",null,25,null,60,{"v":1500,"d":"1,500"}]
[null,null,"5)","Mengkonsultasikan dengan pimpinan ",null,30,null,15,450]
[null,null,"6)","Merevisi konsep kebijakan teknis",null,30,null,30,900]
[]
[null,5,"Menyiapkan bahan rencana dan menyelenggarakan pelaksanaan kewenangan pemerintahan dalam menangani sebagian urusan otonomi daerah sesuai dengan bidangnya.",null,"Kegiatan",12,"kali",{"$f":"I1460/F1460","v":{"v":123.33333333333333,"d":"123"}},{"$f":"SUM(I1461:I1466)","v":{"v":1480,"d":"1,480"}}]
[null,null,1,"Mempelajari pedoman pelaksaaan tugas",null,4,null,20,{"$f":"F1461*H1461","v":80}]
[null,null,2,"Menyiapkan dan mengolah bahan",null,12,null,30,360]
[null,null,3,"Mengecek persyaratan dan kelengkapan  administrasi",null,12,null,30,360]
[null,null,4,"Melayani konsultasi ",null,24,null,15,360]
[null,null,5,"Menganalisa bahan",null,10,null,20,200]
[null,null,6,"Memberikan rekomendasi kepada atasan",null,8,null,15,120]
[]
[null,6,"Menyiapkan bahan rencana dan koordinasi dengan SKPD dan / atau UPT, instansi vertikal dan swasta mengenai pengembangan dan penanganan potensi dan karakteristik wilayah kecamatan.",null,"Kegiatan",10,"kali",{"$f":"I1468/F1468","v":141},{"$f":"SUM(I1469:I1474)","v":{"v":1410,"d":"1,410"}}]
[null,null,"1)","Mempelajari peraturan perundangan, petunjuk teknis dan kebijakan pelaksanaan kegiatan ",null,4,null,15,{"$f":"F1469*H1469","v":60}]
[null,null,"2)","Menelaah pelaksanaan kegiatan tahun sebelumnya dan menyusun rencana kegiatan tahun berjalan",null,15,null,30,{"$f":"F1470*H1470","v":450}]
[null,null,"3)","Menyusun rencana jadwal pelaksanaan kegiatan",null,10,null,45,{"$f":"F1471*H1471","v":450}]
[null,null,"4)","Menganalisa bahan pelaksanaan kegiatan",null,10,null,30,{"$f":"F1472*H1472","v":300}]
[null,null,"5)","Mengkonsultasikan kepada pimpinan;",null,10,null,15,{"$f":"F1473*H1473","v":150}]
[]
[null,7,"Menyiapkan bahan inovasi pengembangan potensi wilayah kecamatan.",null,"Kegiatan",10,"kali",{"$f":"I1475/F1475","v":660},{"$f":"SUM(I1476:I1481)","v":{"v":6600,"d":"6,600"}}]
[null,null,"1)","Mempelajari peraturan perundangan, petunjuk teknis dan kebijakan pelaksanaan kegiatan ",null,20,null,30,{"$f":"F1476*H1476","v":600}]
[null,null,"2)","Menelaah pelaksanaan kegiatan tahun sebelumnya dan menyusun rencana kegiatan tahun berjalan",null,20,null,90,{"$f":"F1477*H1477","v":{"v":1800,"d":"1,800"}}]
[null,null,"3)","Menyusun rencana jadwal pelaksanaan kegiatan",null,20,null,60,{"$f":"F1478*H1478","v":{"v":1200,"d":"1,200"}}]
[null,null,"4)","Menganalisa bahan pelaksanaan kegiatan",null,20,null,120,{"$f":"F1479*H1479","v":{"v":2400,"d":"2,400"}}]
[null,null,"5)","Mengkonsultasikan kepada pimpinan;",null,20,null,30,{"$f":"F1480*H1480","v":600}]
[]
[null,8,"Memfasilitasi, melaksanakan koordinasi teknis dengan SKPD, UPT, instansi vertikal atau swasta terkait mengenai pembangunan di bidang pertanian, perikanan dan kehutanan sesuai potensi wilayah kecamatan.",null,"Kegiatan",20,"kali",{"$f":"I1482/F1482","v":81},{"$f":"SUM(I1483:I1488)","v":{"v":1620,"d":"1,620"}}]
[null,null,"1)","Mempelajari peraturan perundangan, petunjuk teknis dan kebijakan pelaksanaan kegiatan ",null,4,null,30,{"$f":"F1483*H1483","v":120}]
[null,null,"2)","Menelaah pelaksanaan kegiatan tahun sebelumnya dan menyusun rencana kegiatan tahun berjalan",null,10,null,60,{"$f":"F1484*H1484","v":600}]
[null,null,"3)","Menyusun rencana jadwal pelaksanaan kegiatan",null,5,null,60,{"$f":"F1485*H1485","v":300}]
[null,null,"4)","Menganalisa bahan pelaksanaan kegiatan",null,5,null,60,{"$f":"F1486*H1486","v":300}]
[null,null,"5)","Mengkonsultasikan kepada pimpinan;",null,15,null,20,{"$f":"F1487*H1487","v":300}]
[]
[null,9,"Memfasilitasi, melaksanakan koordinasi teknis dengan SKPD, UPT, instansi vertikal atau swasta terkait mengenai pengembangan perekonomian masyarakat.",null,"Kegiatan",20,"kali",{"$f":"I1489/F1489","v":{"v":87.5,"d":"88"}},{"$f":"SUM(I1490:I1495)","v":{"v":1750,"d":"1,750"}}]
[null,null,"1)","Mempelajari peraturan perundangan, petunjuk teknis dan kebijakan pelaksanaan kegiatan ",null,5,null,20,{"$f":"F1490*H1490","v":100}]
[null,null,"2)","Menelaah pelaksanaan kegiatan tahun sebelumnya dan menyusun rencana kegiatan tahun berjalan",null,5,null,30,{"$f":"F1491*H1491","v":150}]
[null,null,"3)","Menyusun rencana jadwal pelaksanaan kegiatan",null,20,null,30,{"$f":"F1492*H1492","v":600}]
[null,null,"4)","Menganalisa bahan pelaksanaan kegiatan",null,20,null,30,{"$f":"F1493*H1493","v":600}]
[null,null,"5)","Mengkonsultasikan kepada pimpinan;",null,20,null,15,{"$f":"F1494*H1494","v":300}]
[]
[null,10,"Memfasilitasi, melaksanakan koordinasi teknis dengan SKPD, UPT, instansi vertikal atau swasta terkait pelaksanaan urusan di bidang perindustrian, perdagangan, koperasi, usaha mikro, kecil dan menengah.",null,"Kegiatan",20,"kali",{"$f":"I1496/F1496","v":135},{"$f":"SUM(I1497:I1502)","v":{"v":2700,"d":"2,700"}}]
[null,null,"1)","Mempelajari peraturan perundangan, petunjuk teknis dan kebijakan pelaksanaan kegiatan ",null,10,null,30,{"$f":"F1497*H1497","v":300}]
[null,null,"2)","Menelaah pelaksanaan kegiatan tahun sebelumnya dan menyusun rencana kegiatan tahun berjalan",null,20,null,30,{"$f":"F1498*H1498","v":600}]
[null,null,"3)","Menyusun rencana jadwal pelaksanaan kegiatan",null,20,null,45,{"$f":"F1499*H1499","v":900}]
[null,null,"4)","Menganalisa bahan pelaksanaan kegiatan",null,20,null,30,{"$f":"F1500*H1500","v":600}]
[null,null,"5)","Mengkonsultasikan kepada pimpinan;",null,20,null,15,{"$f":"F1501*H1501","v":300}]
[]
[null,11,"Menyusun laporan pelaksanaan tugas sesuai ketentuan yang berlaku untuk pertanggungjawaban kinerja dan rencana yang akan datang",null,"Laporan pelaksanaan tugas",20,"dokumen",{"$f":"I1503/F1503","v":150},{"$f":"SUM(I1504:I1507)","v":{"v":3000,"d":"3,000"}}]
[null,null,"1)","Mengumpulkan bahan laporan pelaksanaan tugas;",null,20,null,15,{"$f":"F1504*H1504","v":300}]
[null,null,"2)","Menganalisis bahan penyusunan laporan;",null,20,null,60,{"$f":"F1505*H1505","v":{"v":1200,"d":"1,200"}}]
[null,null,"3)","Membuat laporan pelaksanaan tugas;",null,20,null,60,{"$f":"F1506*H1506","v":{"v":1200,"d":"1,200"}}]
[null,null,"4)","Menyampaikan laporan kepada atasan;",null,20,null,15,{"$f":"F1507*H1507","v":300}]
[]
[null,12,"Melaksanakan tugas kedinasan lain yang diperintahkan oleh pimpinan baik lisan maupun tertulis sesuai prosedur untuk mendukung kelancaran pelaksanaan tugas satuan kerja.",null,"Kegiatan",25,"kali",{"$f":"I1509/F1509","v":83},{"$f":"SUM(I1510:I1513)","v":{"v":2075,"d":"2,075"}}]
[null,null,"1)","Mempelajari tugas;",null,10,null,20,{"$f":"F1510*H1510","v":200}]
[null,null,"2)","Menjalankan tugas;",null,25,null,60,{"$f":"F1511*H1511","v":{"v":1500,"d":"1,500"}}]
[null,null,"3)","Melaporkan hasil pelaksanaan tugas.",null,25,null,15,{"$f":"F1512*H1512","v":375}]
[]
["II.3","Teknik Tinggi + Menengah + Rendah",{"$nulls":6},{"$f":"I1515+I1521+I1538+I1555+I1572+I1578","v":{"v":31085,"d":"31,085"}},null,"TMS 1 jabatan"]
[null,1,"Menyusun rencana program dan kegiatan yang menjadi tugasnya berdasarkan program kerja seksi Potensi Wilayah sebagai pedoman pelaksanaan tugas.",null,"Program Kerja",2,"dokumen",{"$f":"I1515/F1515","v":{"v":562.5,"d":"563"}},{"$f":"SUM(I1516:I1519)","v":{"v":1125,"d":"1,125"}},null,"  "]
[null,null,"1)","Menelaah Program Kerja Kecamatan",null,5,null,120,{"$f":"F1516*H1516","v":600},null,"  "]
[null,null,"2)","Menyusun konsep rencana kegiatan Seksi Potensi Wilayah",null,2,null,120,{"$f":"F1517*H1517","v":240},null,"  "]
[null,null,"3)","Mengkonsultasikan konsep rencana kegiatan dengan pimpinan;",null,5,null,45,{"$f":"F1518*H1518","v":225}]
[null,null,"4)","Menetapkan rencana kegiatan seksi Potensi Wilayah",null,2,null,30,{"$f":"F1519*H1519","v":60}]
[]
[null,2,"Menyiapkan bahan inovasi pengembangan potensi wilayah kecamatan sesuai ketentuan untuk mempercepat pengembangan wilayah kecamatan.",null,"Kelancaran tugas",10,"kali",{"$f":"I1521/F1521","v":{"v":879.5,"d":"880"}},{"$f":"SUM(I1522:I1536)","v":{"v":8795,"d":"8,795"}}]
[null,null,"1)","Mempelajari pedoman dan petunjuk teknis pelaksanaan kegiatan ",null,8,null,15,{"$f":"F1522*H1522","v":120}]
[null,null,"2)","Mengagenda surat masuk dan surat keluar",null,50,null,5,250]
[null,null,"3)","Menyimpan arsip surat masuk dan surat keluar",null,50,null,5,250]
[null,null,"4)","Mempelajari dan menyiapkan bahan pelaksanaan kegiatan",null,20,null,30,600]
[null,null,"5)","Mengumpulkan dan menyiapkan bahan kerja untuk menyusun rancangan pedoman pelaksanaan dan teknis kegiatan",null,20,null,45,900]
[null,null,"6)","Menyusun konsep surat undangan rapat persiapan/ evaluasi kegiatan dan daftar hadir",null,25,null,20,500]
[null,null,"7)","Mengirimkan surat kepada instansi terkait",null,50,null,20,{"v":1000,"d":"1,000"}]
[null,null,"8)","Menyiapkan tempat dan sarana rapat-rapat persiapan dan evaluasi kegiatan",null,50,null,15,750]
[null,null,"9)","Membuat notulen rapat",null,25,null,20,500]
[null,null,"10)","Membuat dokumentasi kegiatan",null,35,null,15,525]
[null,null,"11)","Membuat konsep surat undangan dan daftar hadir kegiatan pembekalan/bimtek",null,30,null,20,600]
[null,null,"12)","Melakukan koordinasi persiapan teknis dengan pihak-pihak terkait",null,30,null,30,900]
[null,null,"13) ","Menyiapkan tempat dan sarana yang dibutuhkan pada saat pelaksanaan kegiatan",null,50,null,20,{"v":1000,"d":"1,000"}]
[null,null,"14)","Menyusun konsep hasil pelaksanaan kegiatan",null,20,null,30,600]
[null,null,"15)","Melaporkan hasil kegiatan",null,20,null,15,300]
[]
[null,3,"Menyiapkan bahan kegiatan fasilitasi, pelaksanaan koordinasi teknis dengan SKPD, UPT, instansi vertikal atau swasta terkait mengenai pengembangan perekonomian masyarakat.",null,"Kelancaran tugas",20,"kali",{"$f":"I1538/F1538","v":{"v":439.75,"d":"440"}},{"$f":"SUM(I1539:I1553)","v":{"v":8795,"d":"8,795"}}]
[null,null,"1)","Mempelajari pedoman dan petunjuk teknis pelaksanaan kegiatan ",null,8,null,15,{"$f":"F1539*H1539","v":120}]
[null,null,"2)","Mengagenda surat masuk dan surat keluar",null,50,null,5,250]
[null,null,"3)","Menyimpan arsip surat masuk dan surat keluar",null,50,null,5,250]
[null,null,"4)","Mempelajari dan menyiapkan bahan pelaksanaan kegiatan",null,20,null,30,600]
[null,null,"5)","Mengumpulkan dan menyiapkan bahan kerja untuk menyusun rancangan pedoman pelaksanaan dan teknis kegiatan",null,20,null,45,900]
[null,null,"6)","Menyusun konsep surat undangan rapat persiapan/ evaluasi kegiatan dan daftar hadir",null,25,null,20,500]
[null,null,"7)","Mengirimkan surat kepada instansi terkait",null,50,null,20,{"v":1000,"d":"1,000"}]
[null,null,"8)","Menyiapkan tempat dan sarana rapat-rapat persiapan dan evaluasi kegiatan",null,50,null,15,750]
[null,null,"9)","Membuat notulen rapat",null,25,null,20,500]
[null,null,"10)","Membuat dokumentasi kegiatan",null,35,null,15,525]
[null,null,"11)","Membuat konsep surat undangan dan daftar hadir kegiatan pembekalan/bimtek",null,30,null,20,600]
[null,null,"12)","Melakukan koordinasi persiapan teknis dengan pihak-pihak terkait",null,30,null,30,900]
[null,null,"13) ","Menyiapkan tempat dan sarana yang dibutuhkan pada saat pelaksanaan kegiatan",null,50,null,20,{"v":1000,"d":"1,000"}]
[null,null,"14)","Menyusun konsep hasil pelaksanaan kegiatan",null,20,null,30,600]
[null,null,"15)","Melaporkan hasil kegiatan",null,20,null,15,300]
[]
[null,4,"Menyiapkan bahan kegiatan fasilitasi, pelaksanaan koordinasi teknis dengan SKPD, UPT, instansi vertikal atau swasta terkait pelaksanaan urusan di bidang perindustrian, perdagangan, koperasi, usaha mikro, kecil dan menengah.",null,"Kelancaran tugas",20,"kali",{"$f":"I1555/F1555","v":{"v":439.75,"d":"440"}},{"$f":"SUM(I1556:I1570)","v":{"v":8795,"d":"8,795"}}]
[null,null,"1)","Mempelajari pedoman dan petunjuk teknis pelaksanaan kegiatan ",null,8,null,15,{"$f":"F1556*H1556","v":120}]
[null,null,"2)","Mengagenda surat masuk dan surat keluar",null,50,null,5,250]
[null,null,"3)","Menyimpan arsip surat masuk dan surat keluar",null,50,null,5,250]
[null,null,"4)","Mempelajari dan menyiapkan bahan pelaksanaan kegiatan",null,20,null,30,600]
[null,null,"5)","Mengumpulkan dan menyiapkan bahan kerja untuk menyusun rancangan pedoman pelaksanaan dan teknis kegiatan",null,20,null,45,900]
[null,null,"6)","Menyusun konsep surat undangan rapat persiapan/ evaluasi kegiatan dan daftar hadir",null,25,null,20,500]
[null,null,"7)","Mengirimkan surat kepada instansi terkait",null,50,null,20,{"v":1000,"d":"1,000"}]
[null,null,"8)","Menyiapkan tempat dan sarana rapat-rapat persiapan dan evaluasi kegiatan",null,50,null,15,750]
[null,null,"9)","Membuat notulen rapat",null,25,null,20,500]
[null,null,"10)","Membuat dokumentasi kegiatan",null,35,null,15,525]
[null,null,"11)","Membuat konsep surat undangan dan daftar hadir kegiatan pembekalan/bimtek",null,30,null,20,600]
[null,null,"12)","Melakukan koordinasi persiapan teknis dengan pihak-pihak terkait",null,30,null,30,900]
[null,null,"13) ","Menyiapkan tempat dan sarana yang dibutuhkan pada saat pelaksanaan kegiatan",null,50,null,20,{"v":1000,"d":"1,000"}]
[null,null,"14)","Menyusun konsep hasil pelaksanaan kegiatan",null,20,null,30,600]
[null,null,"15)","Melaporkan hasil kegiatan",null,20,null,15,300]
[]
[null,5,"Menyusun laporan pelaksanaan tugas sesuai ketentuan yang berlaku untuk pertanggungjawaban kinerja dan rencana yang akan datang",null,"Laporan pelaksanaan tugas",10,"dokumen",{"$f":"I1572/F1572","v":150},{"$f":"SUM(I1573:I1576)","v":{"v":1500,"d":"1,500"}}]
[null,null,"1)","Mengumpulkan bahan laporan pelaksanaan tugas;",null,10,null,15,{"$f":"F1573*H1573","v":150}]
[null,null,"2)","Menganalisis bahan penyusunan laporan;",null,10,null,60,{"$f":"F1574*H1574","v":600}]
[null,null,"3)","Membuat laporan pelaksanaan tugas;",null,10,null,60,{"$f":"F1575*H1575","v":600}]
[null,null,"4)","Menyampaikan laporan kepada atasan;",null,10,null,15,{"$f":"F1576*H1576","v":150}]
[]
[null,6,"Melaksanakan tugas kedinasan lain yang diperintahkan oleh pimpinan baik lisan maupun tertulis sesuai prosedur untuk mendukung kelancaran pelaksanaan tugas satuan kerja.",null,"Kegiatan",25,"kali",{"$f":"I1578/F1578","v":83},{"$f":"SUM(I1579:I1581)","v":{"v":2075,"d":"2,075"}}]
[null,null,"1)","Mempelajari tugas;",null,10,null,20,{"$f":"F1579*H1579","v":200}]
[null,null,"2)","Menjalankan tugas;",null,25,null,60,{"$f":"F1580*H1580","v":{"v":1500,"d":"1,500"}}]
[null,null,"3)","Melaporkan hasil pelaksanaan tugas",null,25,null,15,{"$f":"F1581*H1581","v":375}]
[]
[{"$nulls":3},"Jumlah Beban Kerja",{"$nulls":4},{"$f":"I10+I113+I230+I346+I442+I553+I620+I662+I775+I858+I912+I980+I1055+I1118+I1163+I1271+I1366+I1431+I1514","v":{"v":1162950,"d":"1,162,950"}},{"$f":"I1583/72000","v":{"v":16.152083333333334,"d":"16"}},null,null,{"$f":"I1583/60","v":{"v":19382.5,"d":"19,383"}}]
[{"$nulls":3},"Jumlah Pegawai yang ada",{"$nulls":4},{"$f":"72000*J1584","v":{"v":1008000,"d":"1,008,000"}},14,null,null,{"$f":"I1584/60","v":{"v":16800,"d":"16,800"}}]
[{"$nulls":3},"Efisiensi/Inefisiensi",{"$nulls":4},{"$f":"I1583-I1584","v":{"v":154950,"d":"154,950"}},{"$f":"J1583-J1584","v":{"v":2.1520833333333336,"d":"2"}},null,null,{"$f":"I1585/60","v":{"v":2582.5,"d":"2,583"}}]
[]
[]
[{"$nulls":8},"………………………, ……………………………………"]
[{"$nulls":8},"CAMAT …………………….."]
[]
[]
[]
[{"$nulls":8},"NAMA"]
[{"$nulls":8},"Pangkat"]
[{"$nulls":8},"NIP."]